{"text_format":"1","workbook":"xlsx","n_sheets":3,"sheets":["Input","Simulador_TC","Cronograma"],"not_rendered":{"charts":0,"images":10,"macros":1,"external_links":0,"defined_names":25,"comments":3,"pivot_tables":0},"unopened":[],"bounds":{"document_bytes":16777216,"sheet_cells":100000,"rows_first":2000,"rows_last":500,"rows_between":2000,"halvings":0,"cell_chars":16384,"cell_head_chars":4096},"cells_cut":0,"cells_raw":0,"read":"whole","date_system":"1900"}

{"sheet":"Input","index":0,"n_rows":386,"n_cols":59,"rows_kept":386,"cut":false,"hidden":true,"merged":[]}
[]
[null,"Tipo de tarjeta de crédito","Límite inferior","Tipo de tarjeta elegida",null,"Tipo de consumo (opciones)","Tipo de consumo (visualizado)",null,"Situación laboral (opciones)","Situación laboral (visualizado)",null,"Sector donde labora - Activo","Sector donde labora - Pensionista","Sector Laboral\n(Opciones mostradas)","Sector Laboral\n(Visualizado)",null,"Sector donde labora - Activo o Pensionista","Situación Laboral","Sit. Laboral & Sector","Fecha de PAGO - Activo o Pensionista","Fecha de FACTURACIÓN - Activo o Pensionista","Sit. Laboral & Sector","FECHA DE PAGO","FECHA DE FACTURACIÓN",null,"Sector donde labora - Pensionista","Fecha de pago - Pensionista","Fecha de facturación - Pensionista",null,"Tipo de Seguro para LINEA","Importe","Seguro que se muestra",null,"Seguros para TC Clásica/Gold/Platinium","Seguros para TC Clasica\nSin Seg. Desgravamen","Seguro Opciones",null,"Tipo de Seguro para COMPRAS / DISP. EFECT","Importe","Seguro que se muestra",null,"Nro de cuotas Opciones","Nro de cuotas que se muestra",null,"Envío de EECC","Costo","Envío de EECC que se muestra",null,"TEA",{"$f":"AZ2&BA2","v":"Tipo de ConsumoPlazo"},"Tarjeta","Tipo de Consumo","Plazo",null,"Tarjeta","Tipo de Consumo","Plazo",{"$f":"+BD2&BE2","v":"Tipo de ConsumoPlazo"},"TEA"]
[null,"Clásica Sin Seg. Desgravamen",1000,"Clásica Sin Seg. Desgravamen",null,"Compra","Compra",null,"Activo","Activo",null,"Gobiernos Regionales: Unidades Ejecutoras de Agricultura","Banco de la Nación",{"$f":"IF($J$3=\"Activo\",L3,M3)","v":"Gobiernos Regionales: Unidades Ejecutoras de Agricultura"},"Consejo Nacional de la Magistratura",null,"Gobiernos Regionales: Unidades Ejecutoras de Agricultura","Activo",{"$f":"R3&Q3","v":"ActivoGobiernos Regionales: Unidades Ejecutoras de Agricultura"},16,1,{"$f":"J3&O3","v":"ActivoConsejo Nacional de la Magistratura"},{"$f":"VLOOKUP(V3,S3:T86,2)","v":16},{"$f":"VLOOKUP(V3,S3:U86,3,FALSE)","v":4},null,"Banco de la Nación",8,23,null,"Sin Seguro de Desgravamen",0,"Sin Seguro de Desgravamen",null,"Individual clásico","Sin Seguro de Desgravamen",{"$f":"IF(OR(D3=\"Clásica\",D3=\"Gold\",D3=\"Platinium\"),AH3:AH4,AI3)","v":"Sin Seguro de Desgravamen"},null,"Sin Seguro de Desgravamen",0,"Sin Seguro de Desgravamen",null,1,"17",null,"Virtual",0,"Virtual",null,{"$f":"VLOOKUP(AX3,BF3:BG386,2,FALSE)","v":0.36},{"$f":"AY3&AZ3&BA3","v":"Clásica Sin Seg. DesgravamenCompra17"},{"$f":"+D3","v":"Clásica Sin Seg. Desgravamen"},{"$f":"+G3","v":"Compra"},{"$f":"AQ3","v":"17"},null,"Clásica","Compra",1,{"$f":"BC3&BD3&BE3","v":"ClásicaCompra1"},0.23499999999999999]
[null,null,null,null,null,"Disposición de efectivo",null,null,"Pensionista",null,null,"Ministerio de Defensa (FAP, Marina, Ejército)","Presidencia Consejo de Ministros",{"$f":"IF($J$3=\"Activo\",L4,M4)","v":"Ministerio de Defensa (FAP, Marina, Ejército)"},null,null,"Ministerio de Defensa (FAP, Marina, Ejército)","Activo","ActivoMinisterio de Defensa (FAP, Marina, Ejército)",18,1,null,null,null,null,"Presidencia Consejo de Ministros",9,24,null,null,null,null,null,"Endosado",null,null,null,null,null,null,null,2,null,null,"Físico",6,null,null,null,null,null,null,null,null,"Clásica","Compra",{"$f":"+BE3+1","v":2},{"$f":"BC4&BD4&BE4","v":"ClásicaCompra2"},0.23499999999999999]
[null,null,null,null,null,null,null,null,null,null,null,"Presidencia Consejo de Ministros","Despacho Presidencial","Presidencia Consejo de Ministros",null,null,"Presidencia Consejo de Ministros","Activo","ActivoPresidencia Consejo de Ministros",16,1,null,null,null,null,"Despacho Presidencial",9,24,null,null,null,null,null,null,null,null,null,null,null,null,null,3,null,null,null,null,null,null,null,null,null,null,null,null,"Clásica","Compra",{"$f":"+BE4+1","v":3},"ClásicaCompra3",0.23499999999999999]
[null,null,null,null,null,null,null,null,null,null,null,"Poder Judicial","Poder Judicial","Poder Judicial",null,null,"Poder Judicial","Activo","ActivoPoder Judicial",16,1,null,null,null,null,"Poder Judicial",9,24,null,null,null,null,null,null,null,null,null,null,null,null,null,4,null,null,null,null,null,null,null,null,null,null,null,null,"Clásica","Compra",{"$f":"+BE5+1","v":4},"ClásicaCompra4",0.23499999999999999]
[null,null,null,null,null,null,null,null,null,null,null,"Ministerio de Justicia","Ministerio de Justicia","Ministerio de Justicia",null,null,"Ministerio de Justicia","Activo","ActivoMinisterio de Justicia",15,1,null,null,null,null,"Ministerio de Justicia",9,24,null,null,null,null,null,null,null,null,null,null,null,null,null,5,null,null,null,null,null,null,null,null,null,null,null,null,"Clásica","Compra",5,"ClásicaCompra5",0.23499999999999999]
[null,null,null,null,null,null,null,null,null,null,null,"Ministerio de Relaciones Exteriores","Ministerio de Relaciones Exteriores","Ministerio de Relaciones Exteriores",null,null,"Ministerio de Relaciones Exteriores","Activo","ActivoMinisterio de Relaciones Exteriores",16,1,null,null,null,null,"Ministerio de Relaciones Exteriores",9,24,null,null,null,null,null,null,null,null,null,"Tasa de Seguro de Desgravamen","Porcentaje","Porcentaje que se muestra",null,6,null,null,null,null,null,null,null,null,null,null,null,null,"Clásica","Compra",6,"ClásicaCompra6",0.23499999999999999]
[null,null,null,null,null,null,null,null,null,null,null,"Ministerio de Economía y Finanzas","Ministerio de Economía y Finanzas","Ministerio de Economía y Finanzas",null,null,"Ministerio de Economía y Finanzas","Activo","ActivoMinisterio de Economía y Finanzas",16,1,null,null,null,null,"Ministerio de Economía y Finanzas",9,24,null,null,null,null,null,null,null,null,null,"Sin Seguro de Desgravamen",0,{"$f":"VLOOKUP(AN3,AL9:AM11,2,FALSE)","v":0},null,7,null,null,null,null,null,null,null,null,null,null,null,null,"Clásica","Compra",7,"ClásicaCompra7",0.23499999999999999]
[null,null,null,null,null,null,null,null,null,null,null,"Universidades Públicas ","Universidades Públicas ","Universidades Públicas ",null,null,"Universidades Públicas ","Activo","ActivoUniversidades Públicas ",17,1,null,null,null,null,"Universidades Públicas ",9,24,null,null,null,null,null,null,null,null,null,null,null,null,null,8,null,null,null,null,null,null,null,null,null,null,null,null,"Clásica","Compra",8,"ClásicaCompra8",0.23499999999999999]
[null,null,null,null,null,null,null,null,null,null,null,"Ministerio de Agricultura ","Contraloría General de la República ","Ministerio de Agricultura ",null,null,"Ministerio de Agricultura ","Activo","ActivoMinisterio de Agricultura ",15,1,null,null,null,null,"Contraloría General de la República ",9,24,null,null,null,null,null,null,null,null,null,null,null,null,null,9,null,null,null,null,null,null,null,null,null,null,null,null,"Clásica","Compra",9,"ClásicaCompra9",0.23499999999999999]
[null,null,null,null,null,null,null,null,null,null,null,"Contraloría General de la República ","Defensoría del Pueblo","Contraloría General de la República ",null,null,"Contraloría General de la República ","Activo","ActivoContraloría General de la República ",17,4,null,null,null,null,"Defensoría del Pueblo",9,24,null,null,null,null,null,null,null,null,null,null,null,null,null,10,null,null,null,null,null,null,null,null,null,null,null,null,"Clásica","Compra",10,"ClásicaCompra10",0.23499999999999999]
[null,null,null,null,null,null,null,null,null,null,null,"Defensoría del Pueblo","Consejo Nacional de la Magistratura","Defensoría del Pueblo",null,null,"Defensoría del Pueblo","Activo","ActivoDefensoría del Pueblo",15,3,null,null,null,null,"Consejo Nacional de la Magistratura",9,24,null,null,null,null,null,null,null,null,null,null,null,null,null,11,null,null,null,null,null,null,null,null,null,null,null,null,"Clásica","Compra",11,"ClásicaCompra11",0.23499999999999999]
[null,null,null,null,null,null,null,null,null,null,null,"Consejo Nacional de la Magistratura","Ministerio Público","Consejo Nacional de la Magistratura",null,null,"Consejo Nacional de la Magistratura","Activo","ActivoConsejo Nacional de la Magistratura",16,4,null,null,null,null,"Ministerio Público",9,24,null,null,null,null,null,null,null,null,null,null,null,null,null,12,null,null,null,null,null,null,null,null,null,null,null,null,"Clásica","Compra",12,"ClásicaCompra12",0.25]
[null,null,null,null,null,null,null,null,null,null,null,"Ministerio Público","Tribunal Constitucional","Ministerio Público",null,null,"Ministerio Público","Activo","ActivoMinisterio Público",15,1,null,null,null,null,"Tribunal Constitucional",9,24,null,null,null,null,null,null,null,null,null,null,null,null,null,13,null,null,null,null,null,null,null,null,null,null,null,null,"Clásica","Compra",13,"ClásicaCompra13",0.23499999999999999]
[null,null,null,null,null,null,null,null,null,null,null,"Tribunal Constitucional","Congreso de la República","Tribunal Constitucional",null,null,"Tribunal Constitucional","Activo","ActivoTribunal Constitucional",16,2,null,null,null,null,"Congreso de la República",9,24,null,null,null,null,null,null,null,null,null,null,null,null,null,14,null,null,null,null,null,null,null,null,null,null,null,null,"Clásica","Compra",14,"ClásicaCompra14",0.23499999999999999]
[null,null,null,null,null,null,null,null,null,null,null,"Congreso de la República","Jurado Nacional de Elecciones","Congreso de la República",null,null,"Congreso de la República","Activo","ActivoCongreso de la República",16,1,null,null,null,null,"Jurado Nacional de Elecciones",9,24,null,null,null,null,null,null,null,null,null,null,null,null,null,15,null,null,null,null,null,null,null,null,null,null,null,null,"Clásica","Compra",15,"ClásicaCompra15",0.23499999999999999]
[null,null,null,null,null,null,null,null,null,null,null,"Jurado Nacional de Elecciones","Oficina Nacional de Procesos Electorales","Jurado Nacional de Elecciones",null,null,"Jurado Nacional de Elecciones","Activo","ActivoJurado Nacional de Elecciones",16,1,null,null,null,null,"Oficina Nacional de Procesos Electorales",9,24,null,null,null,null,null,null,null,null,null,null,null,null,null,16,null,null,null,null,null,null,null,null,null,null,null,null,"Clásica","Compra",16,"ClásicaCompra16",0.23499999999999999]
[null,null,null,null,null,null,null,null,null,null,null,"Oficina Nacional de Procesos Electorales","Registro Nacional de Identificación y Estado Civil","Oficina Nacional de Procesos Electorales",null,null,"Oficina Nacional de Procesos Electorales","Activo","ActivoOficina Nacional de Procesos Electorales",16,3,null,null,null,null,"Registro Nacional de Identificación y Estado Civil",9,24,null,null,null,null,null,null,null,null,null,null,null,null,null,17,null,null,null,null,null,null,null,null,null,null,null,null,"Clásica","Compra",17,"ClásicaCompra17",0.23499999999999999]
[null,null,null,null,null,null,null,null,null,null,null,"Registro Nacional de Identificación y Estado Civil","Gobiernos Regionales: Unidades Ejecutoras de Agricultura","Registro Nacional de Identificación y Estado Civil",null,null,"Registro Nacional de Identificación y Estado Civil","Activo","ActivoRegistro Nacional de Identificación y Estado Civil",16,2,null,null,null,null,"Gobiernos Regionales: Unidades Ejecutoras de Agricultura",9,24,null,null,null,null,null,null,null,null,null,null,null,null,null,18,null,null,null,null,null,null,null,null,null,null,null,null,"Clásica","Compra",18,"ClásicaCompra18",0.23499999999999999]
[null,null,null,null,null,null,null,null,null,null,null,"Ministerio de Transporte y Comunicaciones","Ministerio de Cultura","Ministerio de Transporte y Comunicaciones",null,null,"Ministerio de Transporte y Comunicaciones","Activo","ActivoMinisterio de Transporte y Comunicaciones",15,1,null,null,null,null,"Ministerio de Cultura",11,28,null,null,null,null,null,null,null,null,null,null,null,null,null,19,null,null,null,null,null,null,null,null,null,null,null,null,"Clásica","Compra",19,"ClásicaCompra19",0.23499999999999999]
[null,null,null,null,null,null,null,null,null,null,null,"Despacho Presidencial","Ministerio de Educación: excepto UGEL 01, 03 y 07","Despacho Presidencial",null,null,"Despacho Presidencial","Activo","ActivoDespacho Presidencial",16,1,null,null,null,null,"Ministerio de Educación: excepto UGEL 01, 03 y 07",11,28,null,null,null,null,null,null,null,null,null,null,null,null,null,20,null,null,null,null,null,null,null,null,null,null,null,null,"Clásica","Compra",20,"ClásicaCompra20",0.23499999999999999]
[null,null,null,null,null,null,null,null,null,null,null,"Banco de la Nación","Gobiernos Regionales: Unidades Ejecutoras de Educación","Banco de la Nación",null,null,"Banco de la Nación","Activo","ActivoBanco de la Nación",16,2,null,null,null,null,"Gobiernos Regionales: Unidades Ejecutoras de Educación",11,28,null,null,null,null,null,null,null,null,null,null,null,null,null,21,null,null,null,null,null,null,null,null,null,null,null,null,"Clásica","Compra",21,"ClásicaCompra21",0.23499999999999999]
[null,null,null,null,null,null,null,null,null,null,null,"Gobiernos Regionales: Unidades Ejecutoras de Educación","Ministerio de Educación: UGEL 01, 03 y 07","Gobiernos Regionales: Unidades Ejecutoras de Educación",null,null,"Gobiernos Regionales: Unidades Ejecutoras de Educación","Activo","ActivoGobiernos Regionales: Unidades Ejecutoras de Educación",16,3,null,null,null,null,"Ministerio de Educación: UGEL 01, 03 y 07",10,27,null,null,null,null,null,null,null,null,null,null,null,null,null,22,null,null,null,null,null,null,null,null,null,null,null,null,"Clásica","Compra",22,"ClásicaCompra22",0.23499999999999999]
[null,null,null,null,null,null,null,null,null,null,null,"Ministerio de Cultura","Ministerio del Ambiente","Ministerio de Cultura",null,null,"Ministerio de Cultura","Activo","ActivoMinisterio de Cultura",16,2,null,null,null,null,"Ministerio del Ambiente",12,26,null,null,null,null,null,null,null,null,null,null,null,null,null,23,null,null,null,null,null,null,null,null,null,null,null,null,"Clásica","Compra",23,"ClásicaCompra23",0.23499999999999999]
[null,null,null,null,null,null,null,null,null,null,null,"Ministerio de Educación: excepto UGEL 01, 03 y 07","Ministerio de Trabajo y Promoción del Empleo","Ministerio de Educación: excepto UGEL 01, 03 y 07",null,null,"Ministerio de Educación: excepto UGEL 01, 03 y 07","Activo","ActivoMinisterio de Educación: excepto UGEL 01, 03 y 07",16,3,null,null,null,null,"Ministerio de Trabajo y Promoción del Empleo",12,26,null,null,null,null,null,null,null,null,null,null,null,null,null,24,null,null,null,null,null,null,null,null,null,null,null,null,"Clásica","Compra",24,"ClásicaCompra24",0.23499999999999999]
[null,null,null,null,null,null,null,null,null,null,null,"Ministerio de Educación: UGEL 01, 03 y 07","Ministerio de Agricultura ","Ministerio de Educación: UGEL 01, 03 y 07",null,null,"Ministerio de Educación: UGEL 01, 03 y 07","Activo","ActivoMinisterio de Educación: UGEL 01, 03 y 07",16,1,null,null,null,null,"Ministerio de Agricultura ",12,26,null,null,null,null,null,null,null,null,null,null,null,null,null,25,null,null,null,null,null,null,null,null,null,null,null,null,"Clásica","Compra",25,"ClásicaCompra25",0.255]
[null,null,null,null,null,null,null,null,null,null,null,"Gobierno Regional: Todas las Unidades Ejecutoras excepto las de Educación y Agricultura.","Ministerio de Energía y Minas","Gobierno Regional: Todas las Unidades Ejecutoras excepto las de Educación y Agricultura.",null,null,"Gobierno Regional: Todas las Unidades Ejecutoras excepto las de Educación y Agricultura.","Activo","ActivoGobierno Regional: Todas las Unidades Ejecutoras excepto las de Educación y Agricultura.",16,3,null,null,null,null,"Ministerio de Energía y Minas",12,26,null,null,null,null,null,null,null,null,null,null,null,null,null,26,null,null,null,null,null,null,null,null,null,null,null,null,"Clásica","Compra",26,"ClásicaCompra26",0.255]
[null,null,null,null,null,null,null,null,null,null,null,"Ministerio del Ambiente","Ministerio de Comercio Exterior y Turismo","Ministerio del Ambiente",null,null,"Ministerio del Ambiente","Activo","ActivoMinisterio del Ambiente",16,3,null,null,null,null,"Ministerio de Comercio Exterior y Turismo",12,26,null,null,null,null,null,null,null,null,null,null,null,null,null,27,null,null,null,null,null,null,null,null,null,null,null,null,"Clásica","Compra",27,"ClásicaCompra27",0.255]
[null,null,null,null,null,null,null,null,null,null,null,"Ministerio de Trabajo y Promoción del Empleo","Ministerio de Transporte y Comunicaciones","Ministerio de Trabajo y Promoción del Empleo",null,null,"Ministerio de Trabajo y Promoción del Empleo","Activo","ActivoMinisterio de Trabajo y Promoción del Empleo",16,1,null,null,null,null,"Ministerio de Transporte y Comunicaciones",12,26,null,null,null,null,null,null,null,null,null,null,null,null,null,28,null,null,null,null,null,null,null,null,null,null,null,null,"Clásica","Compra",28,"ClásicaCompra28",0.255]
[null,null,null,null,null,null,null,null,null,null,null,"Ministerio de Energía y Minas","Ministerio de Vivienda, Construcción y Saneamiento","Ministerio de Energía y Minas",null,null,"Ministerio de Energía y Minas","Activo","ActivoMinisterio de Energía y Minas",19,3,null,null,null,null,"Ministerio de Vivienda, Construcción y Saneamiento",12,26,null,null,null,null,null,null,null,null,null,null,null,null,null,29,null,null,null,null,null,null,null,null,null,null,null,null,"Clásica","Compra",29,"ClásicaCompra29",0.255]
[null,null,null,null,null,null,null,null,null,null,null,"Ministerio de Comercio Exterior y Turismo","Ministerio de la Producción","Ministerio de Comercio Exterior y Turismo",null,null,"Ministerio de Comercio Exterior y Turismo","Activo","ActivoMinisterio de Comercio Exterior y Turismo",16,3,null,null,null,null,"Ministerio de la Producción",12,26,null,null,null,null,null,null,null,null,null,null,null,null,null,30,null,null,null,null,null,null,null,null,null,null,null,null,"Clásica","Compra",30,"ClásicaCompra30",0.255]
[null,null,null,null,null,null,null,null,null,null,null,"Ministerio de Vivienda, Construcción y Saneamiento","Ministerio de la Mujer y Poblaciones Vulnerables","Ministerio de Vivienda, Construcción y Saneamiento",null,null,"Ministerio de Vivienda, Construcción y Saneamiento","Activo","ActivoMinisterio de Vivienda, Construcción y Saneamiento",16,1,null,null,null,null,"Ministerio de la Mujer y Poblaciones Vulnerables",12,26,null,null,null,null,null,null,null,null,null,null,null,null,null,31,null,null,null,null,null,null,null,null,null,null,null,null,"Clásica","Compra",31,"ClásicaCompra31",0.255]
[null,null,null,null,null,null,null,null,null,null,null,"Ministerio de la Producción","Ministerio de Desarrollo e Inclusión Social","Ministerio de la Producción",null,null,"Ministerio de la Producción","Activo","ActivoMinisterio de la Producción",16,3,null,null,null,null,"Ministerio de Desarrollo e Inclusión Social",12,26,null,null,null,null,null,null,null,null,null,null,null,null,null,32,null,null,null,null,null,null,null,null,null,null,null,null,"Clásica","Compra",32,"ClásicaCompra32",0.255]
[null,null,null,null,null,null,null,null,null,null,null,"Ministerio de la Mujer y Poblaciones Vulnerables","Gobiernos Regionales: Todas las Unidades Ejecutoras excepto las de Educación y Agricultura","Ministerio de la Mujer y Poblaciones Vulnerables",null,null,"Ministerio de la Mujer y Poblaciones Vulnerables","Activo",{"$f":"R35&Q35","v":"ActivoMinisterio de la Mujer y Poblaciones Vulnerables"},16,3,null,null,null,null,"Gobiernos Regionales: Todas las Unidades Ejecutoras excepto las de Educación y Agricultura",12,26,null,null,null,null,null,null,null,null,null,null,null,null,null,33,null,null,null,null,null,null,null,null,null,null,null,null,"Clásica","Compra",33,"ClásicaCompra33",0.255]
[null,null,null,null,null,null,null,null,null,null,null,"Ministerio de Desarrollo e Inclusión Social","Ministerio de Defensa (FAP, Marina, Ejército)","Ministerio de Desarrollo e Inclusión Social",null,null,"Ministerio de Desarrollo e Inclusión Social","Activo","ActivoMinisterio de Desarrollo e Inclusión Social",17,4,null,null,null,null,"Ministerio de Defensa (FAP, Marina, Ejército)",12,26,null,null,null,null,null,null,null,null,null,null,null,null,null,34,null,null,null,null,null,null,null,null,null,null,null,null,"Clásica","Compra",34,"ClásicaCompra34",0.255]
[null,null,null,null,null,null,null,null,null,null,null,"Ministerio de Salud","Ministerio de Salud","Ministerio de Salud",null,null,"Ministerio de Salud","Activo","ActivoMinisterio de Salud",16,1,null,null,null,null,"Ministerio de Salud",12,26,null,null,null,null,null,null,null,null,null,null,null,null,null,35,null,null,null,null,null,null,null,null,null,null,null,null,"Clásica","Compra",35,"ClásicaCompra35",0.255]
[null,null,null,null,null,null,null,null,null,null,null,"Gobiernos Locales (Municipalidades)","Gobiernos Locales (Municipalidades) (2)","Gobiernos Locales (Municipalidades)",null,null,"Gobiernos Locales (Municipalidades)","Activo","ActivoGobiernos Locales (Municipalidades)",16,1,null,null,null,null,"Gobiernos Locales (Municipalidades) (2)",13,25,null,null,null,null,null,null,null,null,null,null,null,null,null,36,null,null,null,null,null,null,null,null,null,null,null,null,"Clásica","Compra",36,"ClásicaCompra36",0.255]
[null,null,null,null,null,null,null,null,null,null,null,"Ministerio del Interior (PNP)","Ministerio del Interior (PNP) ","Ministerio del Interior (PNP)",null,null,"Ministerio del Interior (PNP)","Activo","ActivoMinisterio del Interior (PNP)",16,1,null,null,null,null,"Ministerio del Interior (PNP) ",13,25,null,null,null,null,null,null,null,null,null,null,null,null,null,37,null,null,null,null,null,null,null,null,null,null,null,null,"Clásica","Compra",37,"ClásicaCompra37",0.27500000000000002]
[null,null,null,null,null,null,null,null,null,null,null,"Fuero Militar Policial","ONP : D.L. 19990 y Ley 26790","Fuero Militar Policial",null,null,"Fuero Militar Policial","Activo","ActivoFuero Militar Policial",16,1,null,null,null,null,"ONP : D.L. 19990 y Ley 26790",4,19,null,null,null,null,null,null,null,null,null,null,null,null,null,38,null,null,null,null,null,null,null,null,null,null,null,null,"Clásica","Compra",38,"ClásicaCompra38",0.27500000000000002]
[null,null,null,null,null,null,null,null,null,null,null,{"$f":"\"\"","v":""},"ONP: D.L. 18846, Pensiones por Encargo (D.L. 20530), RTP, Electrolima, Empresa Nacional Tabaco","",null,null,"Banco de la Nación","Pensionista","PensionistaBanco de la Nación",16,1,null,null,null,null,"ONP: D.L. 18846, Pensiones por Encargo (D.L. 20530), RTP, Electrolima, Empresa Nacional Tabaco",13,29,null,null,null,null,null,null,null,null,null,null,null,null,null,39,null,null,null,null,null,null,null,null,null,null,null,null,"Clásica","Compra",39,"ClásicaCompra39",0.27500000000000002]
[null,null,null,null,null,null,null,null,null,null,null,null,null,null,null,null,"Presidencia Consejo de Ministros","Pensionista","PensionistaPresidencia Consejo de Ministros",16,1,null,null,null,null,null,null,null,null,null,null,null,null,null,null,null,null,null,null,null,null,40,null,null,null,null,null,null,null,null,null,null,null,null,"Clásica","Compra",40,"ClásicaCompra40",0.27500000000000002]
[null,null,null,null,null,null,null,null,null,null,null,null,null,null,null,null,"Despacho Presidencial","Pensionista","PensionistaDespacho Presidencial",16,1,null,null,null,null,null,null,null,null,null,null,null,null,null,null,null,null,null,null,null,null,41,null,null,null,null,null,null,null,null,null,null,null,null,"Clásica","Compra",41,"ClásicaCompra41",0.27500000000000002]
[null,null,null,null,null,null,null,null,null,null,null,null,null,null,null,null,"Poder Judicial","Pensionista","PensionistaPoder Judicial",10,24,null,null,null,null,null,null,null,null,null,null,null,null,null,null,null,null,null,null,null,null,42,null,null,null,null,null,null,null,null,null,null,null,null,"Clásica","Compra",42,"ClásicaCompra42",0.27500000000000002]
[null,null,null,null,null,null,null,null,null,null,null,null,null,null,null,null,"Ministerio de Justicia","Pensionista","PensionistaMinisterio de Justicia",8,23,null,null,null,null,null,null,null,null,null,null,null,null,null,null,null,null,null,null,null,null,43,null,null,null,null,null,null,null,null,null,null,null,null,"Clásica","Compra",43,"ClásicaCompra43",0.27500000000000002]
[null,null,null,null,null,null,null,null,null,null,null,null,null,null,null,null,"Ministerio de Relaciones Exteriores","Pensionista","PensionistaMinisterio de Relaciones Exteriores",10,24,null,null,null,null,null,null,null,null,null,null,null,null,null,null,null,null,null,null,null,null,44,null,null,null,null,null,null,null,null,null,null,null,null,"Clásica","Compra",44,"ClásicaCompra44",0.27500000000000002]
[null,null,null,null,null,null,null,null,null,null,null,null,null,null,null,null,"Ministerio de Economía y Finanzas","Pensionista","PensionistaMinisterio de Economía y Finanzas",10,24,null,null,null,null,null,null,null,null,null,null,null,null,null,null,null,null,null,null,null,null,45,null,null,null,null,null,null,null,null,null,null,null,null,"Clásica","Compra",45,"ClásicaCompra45",0.27500000000000002]
[null,null,null,null,null,null,null,null,null,null,null,null,null,null,null,null,"Universidades Públicas ","Pensionista","PensionistaUniversidades Públicas ",11,26,null,null,null,null,null,null,null,null,null,null,null,null,null,null,null,null,null,null,null,null,46,null,null,null,null,null,null,null,null,null,null,null,null,"Clásica","Compra",46,"ClásicaCompra46",0.27500000000000002]
[null,null,null,null,null,null,null,null,null,null,null,null,null,null,null,null,"Contraloría General de la República ","Pensionista","PensionistaContraloría General de la República ",10,24,null,null,null,null,null,null,null,null,null,null,null,null,null,null,null,null,null,null,null,null,47,null,null,null,null,null,null,null,null,null,null,null,null,"Clásica","Compra",47,"ClásicaCompra47",0.27500000000000002]
[null,null,null,null,null,null,null,null,null,null,null,null,null,null,null,null,"Defensoría del Pueblo","Pensionista","PensionistaDefensoría del Pueblo",10,24,null,null,null,null,null,null,null,null,null,null,null,null,null,null,null,null,null,null,null,null,48,null,null,null,null,null,null,null,null,null,null,null,null,"Clásica","Compra",48,"ClásicaCompra48",0.27500000000000002]
[null,null,null,null,null,null,null,null,null,null,null,null,null,null,null,null,"Consejo Nacional de la Magistratura","Pensionista","PensionistaConsejo Nacional de la Magistratura",10,24,null,null,null,null,null,null,null,null,null,null,null,null,null,null,null,null,null,null,null,null,null,null,null,null,null,null,null,null,null,null,null,null,null,"Clásica","Disposición de efectivo",1,{"$f":"BC51&BD51&BE51","v":"ClásicaDisposición de efectivo1"},0.26500000000000001]
[null,null,null,null,null,null,null,null,null,null,null,null,null,null,null,null,"Ministerio Público","Pensionista","PensionistaMinisterio Público",10,24,null,null,null,null,null,null,null,null,null,null,null,null,null,null,null,null,null,null,null,null,null,null,null,null,null,null,null,null,null,null,null,null,null,"Clásica","Disposición de efectivo",{"$f":"+BE51+1","v":2},{"$f":"BC52&BD52&BE52","v":"ClásicaDisposición de efectivo2"},0.26500000000000001]
[null,null,null,null,null,null,null,null,null,null,null,null,null,null,null,null,"Tribunal Constitucional","Pensionista","PensionistaTribunal Constitucional",10,25,null,null,null,null,null,null,null,null,null,null,null,null,null,null,null,null,null,null,null,null,null,null,null,null,null,null,null,null,null,null,null,null,null,"Clásica","Disposición de efectivo",{"$f":"+BE52+1","v":3},"ClásicaDisposición de efectivo3",0.26500000000000001]
[null,null,null,null,null,null,null,null,null,null,null,null,null,null,null,null,"Congreso de la República","Pensionista","PensionistaCongreso de la República",10,26,null,null,null,null,null,null,null,null,null,null,null,null,null,null,null,null,null,null,null,null,null,null,null,null,null,null,null,null,null,null,null,null,null,"Clásica","Disposición de efectivo",{"$f":"+BE53+1","v":4},"ClásicaDisposición de efectivo4",0.26500000000000001]
[null,null,null,null,null,null,null,null,null,null,null,null,null,null,null,null,"Jurado Nacional de Elecciones","Pensionista","PensionistaJurado Nacional de Elecciones",10,24,null,null,null,null,null,null,null,null,null,null,null,null,null,null,null,null,null,null,null,null,null,null,null,null,null,null,null,null,null,null,null,null,null,"Clásica","Disposición de efectivo",5,"ClásicaDisposición de efectivo5",0.26500000000000001]
[null,null,null,null,null,null,null,null,null,null,null,null,null,null,null,null,"Oficina Nacional de Procesos Electorales","Pensionista","PensionistaOficina Nacional de Procesos Electorales",10,28,null,null,null,null,null,null,null,null,null,null,null,null,null,null,null,null,null,null,null,null,null,null,null,null,null,null,null,null,null,null,null,null,null,"Clásica","Disposición de efectivo",6,"ClásicaDisposición de efectivo6",0.26500000000000001]
[null,null,null,null,null,null,null,null,null,null,null,null,null,null,null,null,"Registro Nacional de Identificación y Estado Civil","Pensionista","PensionistaRegistro Nacional de Identificación y Estado Civil",10,24,null,null,null,null,null,null,null,null,null,null,null,null,null,null,null,null,null,null,null,null,null,null,null,null,null,null,null,null,null,null,null,null,null,"Clásica","Disposición de efectivo",7,"ClásicaDisposición de efectivo7",0.26500000000000001]
[null,null,null,null,null,null,null,null,null,null,null,null,null,null,null,null,"Gobiernos Regionales: Unidades Ejecutoras de Agricultura","Pensionista","PensionistaGobiernos Regionales: Unidades Ejecutoras de Agricultura",10,26,null,null,null,null,null,null,null,null,null,null,null,null,null,null,null,null,null,null,null,null,null,null,null,null,null,null,null,null,null,null,null,null,null,"Clásica","Disposición de efectivo",8,"ClásicaDisposición de efectivo8",0.26500000000000001]
[null,null,null,null,null,null,null,null,null,null,null,null,null,null,null,null,"Ministerio de Cultura","Pensionista","PensionistaMinisterio de Cultura",10,26,null,null,null,null,null,null,null,null,null,null,null,null,null,null,null,null,null,null,null,null,null,null,null,null,null,null,null,null,null,null,null,null,null,"Clásica","Disposición de efectivo",9,"ClásicaDisposición de efectivo9",0.26500000000000001]
[null,null,null,null,null,null,null,null,null,null,null,null,null,null,null,null,"Ministerio de Educación: excepto UGEL 01, 03 y 07","Pensionista","PensionistaMinisterio de Educación: excepto UGEL 01, 03 y 07",10,28,null,null,null,null,null,null,null,null,null,null,null,null,null,null,null,null,null,null,null,null,null,null,null,null,null,null,null,null,null,null,null,null,null,"Clásica","Disposición de efectivo",10,"ClásicaDisposición de efectivo10",0.26500000000000001]
[null,null,null,null,null,null,null,null,null,null,null,null,null,null,null,null,"Gobiernos Regionales: Unidades Ejecutoras de Educación","Pensionista","PensionistaGobiernos Regionales: Unidades Ejecutoras de Educación",11,26,null,null,null,null,null,null,null,null,null,null,null,null,null,null,null,null,null,null,null,null,null,null,null,null,null,null,null,null,null,null,null,null,null,"Clásica","Disposición de efectivo",11,"ClásicaDisposición de efectivo11",0.26500000000000001]
[null,null,null,null,null,null,null,null,null,null,null,null,null,null,null,null,"Ministerio de Educación: UGEL 01, 03 y 07","Pensionista","PensionistaMinisterio de Educación: UGEL 01, 03 y 07",10,24,null,null,null,null,null,null,null,null,null,null,null,null,null,null,null,null,null,null,null,null,null,null,null,null,null,null,null,null,null,null,null,null,null,"Clásica","Disposición de efectivo",12,"ClásicaDisposición de efectivo12",0.25]
[null,null,null,null,null,null,null,null,null,null,null,null,null,null,null,null,"Ministerio del Ambiente","Pensionista","PensionistaMinisterio del Ambiente",10,28,null,null,null,null,null,null,null,null,null,null,null,null,null,null,null,null,null,null,null,null,null,null,null,null,null,null,null,null,null,null,null,null,null,"Clásica","Disposición de efectivo",13,"ClásicaDisposición de efectivo13",0.26500000000000001]
[null,null,null,null,null,null,null,null,null,null,null,null,null,null,null,null,"Ministerio de Trabajo y Promoción del Empleo","Pensionista","PensionistaMinisterio de Trabajo y Promoción del Empleo",10,27,null,null,null,null,null,null,null,null,null,null,null,null,null,null,null,null,null,null,null,null,null,null,null,null,null,null,null,null,null,null,null,null,null,"Clásica","Disposición de efectivo",14,"ClásicaDisposición de efectivo14",0.26500000000000001]
[null,null,null,null,null,null,null,null,null,null,null,null,null,null,null,null,"Ministerio de Agricultura ","Pensionista","PensionistaMinisterio de Agricultura ",10,26,null,null,null,null,null,null,null,null,null,null,null,null,null,null,null,null,null,null,null,null,null,null,null,null,null,null,null,null,null,null,null,null,null,"Clásica","Disposición de efectivo",15,"ClásicaDisposición de efectivo15",0.26500000000000001]
[null,null,null,null,null,null,null,null,null,null,null,null,null,null,null,null,"Ministerio de Energía y Minas","Pensionista","PensionistaMinisterio de Energía y Minas",10,26,null,null,null,null,null,null,null,null,null,null,null,null,null,null,null,null,null,null,null,null,null,null,null,null,null,null,null,null,null,null,null,null,null,"Clásica","Disposición de efectivo",16,"ClásicaDisposición de efectivo16",0.26500000000000001]
[null,null,null,null,null,null,null,null,null,null,null,null,null,null,null,null,"Ministerio de Comercio Exterior y Turismo","Pensionista",{"$f":"R67&Q67","v":"PensionistaMinisterio de Comercio Exterior y Turismo"},10,24,null,null,null,null,null,null,null,null,null,null,null,null,null,null,null,null,null,null,null,null,null,null,null,null,null,null,null,null,null,null,null,null,null,"Clásica","Disposición de efectivo",17,"ClásicaDisposición de efectivo17",0.26500000000000001]
[null,null,null,null,null,null,null,null,null,null,null,null,null,null,null,null,"Ministerio de Transporte y Comunicaciones","Pensionista","PensionistaMinisterio de Transporte y Comunicaciones",10,26,null,null,null,null,null,null,null,null,null,null,null,null,null,null,null,null,null,null,null,null,null,null,null,null,null,null,null,null,null,null,null,null,null,"Clásica","Disposición de efectivo",18,"ClásicaDisposición de efectivo18",0.26500000000000001]
[null,null,null,null,null,null,null,null,null,null,null,null,null,null,null,null,"Ministerio de Vivienda, Construcción y Saneamiento","Pensionista","PensionistaMinisterio de Vivienda, Construcción y Saneamiento",10,26,null,null,null,null,null,null,null,null,null,null,null,null,null,null,null,null,null,null,null,null,null,null,null,null,null,null,null,null,null,null,null,null,null,"Clásica","Disposición de efectivo",19,"ClásicaDisposición de efectivo19",0.26500000000000001]
[null,null,null,null,null,null,null,null,null,null,null,null,null,null,null,null,"Ministerio de la Producción","Pensionista","PensionistaMinisterio de la Producción",10,24,null,null,null,null,null,null,null,null,null,null,null,null,null,null,null,null,null,null,null,null,null,null,null,null,null,null,null,null,null,null,null,null,null,"Clásica","Disposición de efectivo",20,"ClásicaDisposición de efectivo20",0.26500000000000001]
[null,null,null,null,null,null,null,null,null,null,null,null,null,null,null,null,"Ministerio de la Mujer y Poblaciones Vulnerables","Pensionista","PensionistaMinisterio de la Mujer y Poblaciones Vulnerables",12,26,null,null,null,null,null,null,null,null,null,null,null,null,null,null,null,null,null,null,null,null,null,null,null,null,null,null,null,null,null,null,null,null,null,"Clásica","Disposición de efectivo",21,"ClásicaDisposición de efectivo21",0.26500000000000001]
[null,null,null,null,null,null,null,null,null,null,null,null,null,null,null,null,"Ministerio de Desarrollo e Inclusión Social","Pensionista","PensionistaMinisterio de Desarrollo e Inclusión Social",10,26,null,null,null,null,null,null,null,null,null,null,null,null,null,null,null,null,null,null,null,null,null,null,null,null,null,null,null,null,null,null,null,null,null,"Clásica","Disposición de efectivo",22,"ClásicaDisposición de efectivo22",0.26500000000000001]
[null,null,null,null,null,null,null,null,null,null,null,null,null,null,null,null,"Gobiernos Regionales: Todas las Unidades Ejecutoras excepto las de Educación y Agricultura","Pensionista","PensionistaGobiernos Regionales: Todas las Unidades Ejecutoras excepto las de Educación y Agricultura",10,26,null,null,null,null,null,null,null,null,null,null,null,null,null,null,null,null,null,null,null,null,null,null,null,null,null,null,null,null,null,null,null,null,null,"Clásica","Disposición de efectivo",23,"ClásicaDisposición de efectivo23",0.26500000000000001]
[null,null,null,null,null,null,null,null,null,null,null,null,null,null,null,null,"Ministerio de Defensa (FAP, Marina, Ejército)","Pensionista","PensionistaMinisterio de Defensa (FAP, Marina, Ejército)",10,26,null,null,null,null,null,null,null,null,null,null,null,null,null,null,null,null,null,null,null,null,null,null,null,null,null,null,null,null,null,null,null,null,null,"Clásica","Disposición de efectivo",24,"ClásicaDisposición de efectivo24",0.26500000000000001]
[null,null,null,null,null,null,null,null,null,null,null,null,null,null,null,null,"Ministerio de Salud","Pensionista","PensionistaMinisterio de Salud",10,26,null,null,null,null,null,null,null,null,null,null,null,null,null,null,null,null,null,null,null,null,null,null,null,null,null,null,null,null,null,null,null,null,null,"Clásica","Disposición de efectivo",25,"ClásicaDisposición de efectivo25",0.28499999999999998]
[null,null,null,null,null,null,null,null,null,null,null,null,null,null,null,null,"Gobiernos Locales (Municipalidades) (2)","Pensionista","PensionistaGobiernos Locales (Municipalidades) (2)",11,25,null,null,null,null,null,null,null,null,null,null,null,null,null,null,null,null,null,null,null,null,null,null,null,null,null,null,null,null,null,null,null,null,null,"Clásica","Disposición de efectivo",26,"ClásicaDisposición de efectivo26",0.28499999999999998]
[null,null,null,null,null,null,null,null,null,null,null,null,null,null,null,null,"Ministerio del Interior (PNP) ","Pensionista","PensionistaMinisterio del Interior (PNP) ",10,24,null,null,null,null,null,null,null,null,null,null,null,null,null,null,null,null,null,null,null,null,null,null,null,null,null,null,null,null,null,null,null,null,null,"Clásica","Disposición de efectivo",27,"ClásicaDisposición de efectivo27",0.28499999999999998]
[null,null,null,null,null,null,null,null,null,null,null,null,null,null,null,null,"ONP : D.L. 19990 y Ley 26790","Pensionista","PensionistaONP : D.L. 19990 y Ley 26790",10,24,null,null,null,null,null,null,null,null,null,null,null,null,null,null,null,null,null,null,null,null,null,null,null,null,null,null,null,null,null,null,null,null,null,"Clásica","Disposición de efectivo",28,"ClásicaDisposición de efectivo28",0.28499999999999998]
[null,null,null,null,null,null,null,null,null,null,null,null,null,null,null,null,"ONP: D.L. 18846, Pensiones por Encargo (D.L. 20530), RTP, Electrolima, Empresa Nacional Tabaco","Pensionista","PensionistaONP: D.L. 18846, Pensiones por Encargo (D.L. 20530), RTP, Electrolima, Empresa Nacional Tabaco",14,29,null,null,null,null,null,null,null,null,null,null,null,null,null,null,null,null,null,null,null,null,null,null,null,null,null,null,null,null,null,null,null,null,null,"Clásica","Disposición de efectivo",29,"ClásicaDisposición de efectivo29",0.28499999999999998]
[null,null,null,null,null,null,null,null,null,null,null,null,null,null,null,null,null,null,"",4,19,null,null,null,null,null,null,null,null,null,null,null,null,null,null,null,null,null,null,null,null,null,null,null,null,null,null,null,null,null,null,null,null,null,"Clásica","Disposición de efectivo",30,"ClásicaDisposición de efectivo30",0.28499999999999998]
[null,null,null,null,null,null,null,null,null,null,null,null,null,null,null,null,null,null,"",10,24,null,null,null,null,null,null,null,null,null,null,null,null,null,null,null,null,null,null,null,null,null,null,null,null,null,null,null,null,null,null,null,null,null,"Clásica","Disposición de efectivo",31,"ClásicaDisposición de efectivo31",0.28499999999999998]
[null,null,null,null,null,null,null,null,null,null,null,null,null,null,null,null,null,null,"",10,24,null,null,null,null,null,null,null,null,null,null,null,null,null,null,null,null,null,null,null,null,null,null,null,null,null,null,null,null,null,null,null,null,null,"Clásica","Disposición de efectivo",32,"ClásicaDisposición de efectivo32",0.28499999999999998]
[null,null,null,null,null,null,null,null,null,null,null,null,null,null,null,null,null,null,"",10,24,null,null,null,null,null,null,null,null,null,null,null,null,null,null,null,null,null,null,null,null,null,null,null,null,null,null,null,null,null,null,null,null,null,"Clásica","Disposición de efectivo",33,"ClásicaDisposición de efectivo33",0.28499999999999998]
[null,null,null,null,null,null,null,null,null,null,null,null,null,null,null,null,null,null,"",10,26,null,null,null,null,null,null,null,null,null,null,null,null,null,null,null,null,null,null,null,null,null,null,null,null,null,null,null,null,null,null,null,null,null,"Clásica","Disposición de efectivo",34,"ClásicaDisposición de efectivo34",0.28499999999999998]
[null,null,null,null,null,null,null,null,null,null,null,null,null,null,null,null,null,null,"",10,24,null,null,null,null,null,null,null,null,null,null,null,null,null,null,null,null,null,null,null,null,null,null,null,null,null,null,null,null,null,null,null,null,null,"Clásica","Disposición de efectivo",35,"ClásicaDisposición de efectivo35",0.28499999999999998]
[null,null,null,null,null,null,null,null,null,null,null,null,null,null,null,null,null,null,"",10,24,null,null,null,null,null,null,null,null,null,null,null,null,null,null,null,null,null,null,null,null,null,null,null,null,null,null,null,null,null,null,null,null,null,"Clásica","Disposición de efectivo",36,"ClásicaDisposición de efectivo36",0.28499999999999998]
[null,null,null,null,null,null,null,null,null,null,null,null,null,null,null,null,null,null,null,null,null,null,null,null,null,null,null,null,null,null,null,null,null,null,null,null,null,null,null,null,null,null,null,null,null,null,null,null,null,null,null,null,null,null,"Clásica","Disposición de efectivo",37,"ClásicaDisposición de efectivo37",0.30499999999999999]
[null,null,null,null,null,null,null,null,null,null,null,null,null,null,null,null,null,null,null,null,null,null,null,null,null,null,null,null,null,null,null,null,null,null,null,null,null,null,null,null,null,null,null,null,null,null,null,null,null,null,null,null,null,null,"Clásica","Disposición de efectivo",38,"ClásicaDisposición de efectivo38",0.30499999999999999]
[null,null,null,null,null,null,null,null,null,null,null,null,null,null,null,null,null,null,null,null,null,null,null,null,null,null,null,null,null,null,null,null,null,null,null,null,null,null,null,null,null,null,null,null,null,null,null,null,null,null,null,null,null,null,"Clásica","Disposición de efectivo",39,"ClásicaDisposición de efectivo39",0.30499999999999999]
[null,null,null,null,null,null,null,null,null,null,null,null,null,null,null,null,null,null,null,null,null,null,null,null,null,null,null,null,null,null,null,null,null,null,null,null,null,null,null,null,null,null,null,null,null,null,null,null,null,null,null,null,null,null,"Clásica","Disposición de efectivo",40,"ClásicaDisposición de efectivo40",0.30499999999999999]
[null,null,null,null,null,null,null,null,null,null,null,null,null,null,null,null,null,null,null,null,null,null,null,null,null,null,null,null,null,null,null,null,null,null,null,null,null,null,null,null,null,null,null,null,null,null,null,null,null,null,null,null,null,null,"Clásica","Disposición de efectivo",41,"ClásicaDisposición de efectivo41",0.30499999999999999]
[null,null,null,null,null,null,null,null,null,null,null,null,null,null,null,null,null,null,null,null,null,null,null,null,null,null,null,null,null,null,null,null,null,null,null,null,null,null,null,null,null,null,null,null,null,null,null,null,null,null,null,null,null,null,"Clásica","Disposición de efectivo",42,"ClásicaDisposición de efectivo42",0.30499999999999999]
[null,null,null,null,null,null,null,null,null,null,null,null,null,null,null,null,null,null,null,null,null,null,null,null,null,null,null,null,null,null,null,null,null,null,null,null,null,null,null,null,null,null,null,null,null,null,null,null,null,null,null,null,null,null,"Clásica","Disposición de efectivo",43,"ClásicaDisposición de efectivo43",0.30499999999999999]
[null,null,null,null,null,null,null,null,null,null,null,null,null,null,null,null,null,null,null,null,null,null,null,null,null,null,null,null,null,null,null,null,null,null,null,null,null,null,null,null,null,null,null,null,null,null,null,null,null,null,null,null,null,null,"Clásica","Disposición de efectivo",44,"ClásicaDisposición de efectivo44",0.30499999999999999]
[null,null,null,null,null,null,null,null,null,null,null,null,null,null,null,null,null,null,null,null,null,null,null,null,null,null,null,null,null,null,null,null,null,null,null,null,null,null,null,null,null,null,null,null,null,null,null,null,null,null,null,null,null,null,"Clásica","Disposición de efectivo",45,"ClásicaDisposición de efectivo45",0.30499999999999999]
[null,null,null,null,null,null,null,null,null,null,null,null,null,null,null,null,null,null,null,null,null,null,null,null,null,null,null,null,null,null,null,null,null,null,null,null,null,null,null,null,null,null,null,null,null,null,null,null,null,null,null,null,null,null,"Clásica","Disposición de efectivo",46,"ClásicaDisposición de efectivo46",0.30499999999999999]
[null,null,null,null,null,null,null,null,null,null,null,null,null,null,null,null,null,null,null,null,null,null,null,null,null,null,null,null,null,null,null,null,null,null,null,null,null,null,null,null,null,null,null,null,null,null,null,null,null,null,null,null,null,null,"Clásica","Disposición de efectivo",47,"ClásicaDisposición de efectivo47",0.30499999999999999]
[null,null,null,null,null,null,null,null,null,null,null,null,null,null,null,null,null,null,null,null,null,null,null,null,null,null,null,null,null,null,null,null,null,null,null,null,null,null,null,null,null,null,null,null,null,null,null,null,null,null,null,null,null,null,"Clásica","Disposición de efectivo",48,"ClásicaDisposición de efectivo48",0.30499999999999999]
[null,null,null,null,null,null,null,null,null,null,null,null,null,null,null,null,null,null,null,null,null,null,null,null,null,null,null,null,null,null,null,null,null,null,null,null,null,null,null,null,null,null,null,null,null,null,null,null,null,null,null,null,null,null,"Gold","Compra",1,{"$f":"BC99&BD99&BE99","v":"GoldCompra1"},0.215]
[null,null,null,null,null,null,null,null,null,null,null,null,null,null,null,null,null,null,null,null,null,null,null,null,null,null,null,null,null,null,null,null,null,null,null,null,null,null,null,null,null,null,null,null,null,null,null,null,null,null,null,null,null,null,"Gold","Compra",{"$f":"+BE99+1","v":2},"GoldCompra2",0.215]
[null,null,null,null,null,null,null,null,null,null,null,null,null,null,null,null,null,null,null,null,null,null,null,null,null,null,null,null,null,null,null,null,null,null,null,null,null,null,null,null,null,null,null,null,null,null,null,null,null,null,null,null,null,null,"Gold","Compra",{"$f":"+BE100+1","v":3},"GoldCompra3",0.215]
[null,null,null,null,null,null,null,null,null,null,null,null,null,null,null,null,null,null,null,null,null,null,null,null,null,null,null,null,null,null,null,null,null,null,null,null,null,null,null,null,null,null,null,null,null,null,null,null,null,null,null,null,null,null,"Gold","Compra",{"$f":"+BE101+1","v":4},"GoldCompra4",0.215]
[null,null,null,null,null,null,null,null,null,null,null,null,null,null,null,null,null,null,null,null,null,null,null,null,null,null,null,null,null,null,null,null,null,null,null,null,null,null,null,null,null,null,null,null,null,null,null,null,null,null,null,null,null,null,"Gold","Compra",5,"GoldCompra5",0.215]
[null,null,null,null,null,null,null,null,null,null,null,null,null,null,null,null,null,null,null,null,null,null,null,null,null,null,null,null,null,null,null,null,null,null,null,null,null,null,null,null,null,null,null,null,null,null,null,null,null,null,null,null,null,null,"Gold","Compra",6,"GoldCompra6",0.215]
[null,null,null,null,null,null,null,null,null,null,null,null,null,null,null,null,null,null,null,null,null,null,null,null,null,null,null,null,null,null,null,null,null,null,null,null,null,null,null,null,null,null,null,null,null,null,null,null,null,null,null,null,null,null,"Gold","Compra",7,"GoldCompra7",0.215]
[null,null,null,null,null,null,null,null,null,null,null,null,null,null,null,null,null,null,null,null,null,null,null,null,null,null,null,null,null,null,null,null,null,null,null,null,null,null,null,null,null,null,null,null,null,null,null,null,null,null,null,null,null,null,"Gold","Compra",8,"GoldCompra8",0.215]
[null,null,null,null,null,null,null,null,null,null,null,null,null,null,null,null,null,null,null,null,null,null,null,null,null,null,null,null,null,null,null,null,null,null,null,null,null,null,null,null,null,null,null,null,null,null,null,null,null,null,null,null,null,null,"Gold","Compra",9,"GoldCompra9",0.215]
[null,null,null,null,null,null,null,null,null,null,null,null,null,null,null,null,null,null,null,null,null,null,null,null,null,null,null,null,null,null,null,null,null,null,null,null,null,null,null,null,null,null,null,null,null,null,null,null,null,null,null,null,null,null,"Gold","Compra",10,"GoldCompra10",0.215]
[null,null,null,null,null,null,null,null,null,null,null,null,null,null,null,null,null,null,null,null,null,null,null,null,null,null,null,null,null,null,null,null,null,null,null,null,null,null,null,null,null,null,null,null,null,null,null,null,null,null,null,null,null,null,"Gold","Compra",11,"GoldCompra11",0.215]
[null,null,null,null,null,null,null,null,null,null,null,null,null,null,null,null,null,null,null,null,null,null,null,null,null,null,null,null,null,null,null,null,null,null,null,null,null,null,null,null,null,null,null,null,null,null,null,null,null,null,null,null,null,null,"Gold","Compra",12,"GoldCompra12",0.25]
[null,null,null,null,null,null,null,null,null,null,null,null,null,null,null,null,null,null,null,null,null,null,null,null,null,null,null,null,null,null,null,null,null,null,null,null,null,null,null,null,null,null,null,null,null,null,null,null,null,null,null,null,null,null,"Gold","Compra",13,"GoldCompra13",0.215]
[null,null,null,null,null,null,null,null,null,null,null,null,null,null,null,null,null,null,null,null,null,null,null,null,null,null,null,null,null,null,null,null,null,null,null,null,null,null,null,null,null,null,null,null,null,null,null,null,null,null,null,null,null,null,"Gold","Compra",14,"GoldCompra14",0.215]
[null,null,null,null,null,null,null,null,null,null,null,null,null,null,null,null,null,null,null,null,null,null,null,null,null,null,null,null,null,null,null,null,null,null,null,null,null,null,null,null,null,null,null,null,null,null,null,null,null,null,null,null,null,null,"Gold","Compra",15,"GoldCompra15",0.215]
[null,null,null,null,null,null,null,null,null,null,null,null,null,null,null,null,null,null,null,null,null,null,null,null,null,null,null,null,null,null,null,null,null,null,null,null,null,null,null,null,null,null,null,null,null,null,null,null,null,null,null,null,null,null,"Gold","Compra",16,"GoldCompra16",0.215]
[null,null,null,null,null,null,null,null,null,null,null,null,null,null,null,null,null,null,null,null,null,null,null,null,null,null,null,null,null,null,null,null,null,null,null,null,null,null,null,null,null,null,null,null,null,null,null,null,null,null,null,null,null,null,"Gold","Compra",17,"GoldCompra17",0.215]
[null,null,null,null,null,null,null,null,null,null,null,null,null,null,null,null,null,null,null,null,null,null,null,null,null,null,null,null,null,null,null,null,null,null,null,null,null,null,null,null,null,null,null,null,null,null,null,null,null,null,null,null,null,null,"Gold","Compra",18,"GoldCompra18",0.215]
[null,null,null,null,null,null,null,null,null,null,null,null,null,null,null,null,null,null,null,null,null,null,null,null,null,null,null,null,null,null,null,null,null,null,null,null,null,null,null,null,null,null,null,null,null,null,null,null,null,null,null,null,null,null,"Gold","Compra",19,"GoldCompra19",0.215]
[null,null,null,null,null,null,null,null,null,null,null,null,null,null,null,null,null,null,null,null,null,null,null,null,null,null,null,null,null,null,null,null,null,null,null,null,null,null,null,null,null,null,null,null,null,null,null,null,null,null,null,null,null,null,"Gold","Compra",20,"GoldCompra20",0.215]
[null,null,null,null,null,null,null,null,null,null,null,null,null,null,null,null,null,null,null,null,null,null,null,null,null,null,null,null,null,null,null,null,null,null,null,null,null,null,null,null,null,null,null,null,null,null,null,null,null,null,null,null,null,null,"Gold","Compra",21,"GoldCompra21",0.215]
[null,null,null,null,null,null,null,null,null,null,null,null,null,null,null,null,null,null,null,null,null,null,null,null,null,null,null,null,null,null,null,null,null,null,null,null,null,null,null,null,null,null,null,null,null,null,null,null,null,null,null,null,null,null,"Gold","Compra",22,"GoldCompra22",0.215]
[null,null,null,null,null,null,null,null,null,null,null,null,null,null,null,null,null,null,null,null,null,null,null,null,null,null,null,null,null,null,null,null,null,null,null,null,null,null,null,null,null,null,null,null,null,null,null,null,null,null,null,null,null,null,"Gold","Compra",23,"GoldCompra23",0.215]
[null,null,null,null,null,null,null,null,null,null,null,null,null,null,null,null,null,null,null,null,null,null,null,null,null,null,null,null,null,null,null,null,null,null,null,null,null,null,null,null,null,null,null,null,null,null,null,null,null,null,null,null,null,null,"Gold","Compra",24,"GoldCompra24",0.215]
[null,null,null,null,null,null,null,null,null,null,null,null,null,null,null,null,null,null,null,null,null,null,null,null,null,null,null,null,null,null,null,null,null,null,null,null,null,null,null,null,null,null,null,null,null,null,null,null,null,null,null,null,null,null,"Gold","Compra",25,"GoldCompra25",0.23499999999999999]
[null,null,null,null,null,null,null,null,null,null,null,null,null,null,null,null,null,null,null,null,null,null,null,null,null,null,null,null,null,null,null,null,null,null,null,null,null,null,null,null,null,null,null,null,null,null,null,null,null,null,null,null,null,null,"Gold","Compra",26,"GoldCompra26",0.23499999999999999]
[null,null,null,null,null,null,null,null,null,null,null,null,null,null,null,null,null,null,null,null,null,null,null,null,null,null,null,null,null,null,null,null,null,null,null,null,null,null,null,null,null,null,null,null,null,null,null,null,null,null,null,null,null,null,"Gold","Compra",27,"GoldCompra27",0.23499999999999999]
[null,null,null,null,null,null,null,null,null,null,null,null,null,null,null,null,null,null,null,null,null,null,null,null,null,null,null,null,null,null,null,null,null,null,null,null,null,null,null,null,null,null,null,null,null,null,null,null,null,null,null,null,null,null,"Gold","Compra",28,"GoldCompra28",0.23499999999999999]
[null,null,null,null,null,null,null,null,null,null,null,null,null,null,null,null,null,null,null,null,null,null,null,null,null,null,null,null,null,null,null,null,null,null,null,null,null,null,null,null,null,null,null,null,null,null,null,null,null,null,null,null,null,null,"Gold","Compra",29,"GoldCompra29",0.23499999999999999]
[null,null,null,null,null,null,null,null,null,null,null,null,null,null,null,null,null,null,null,null,null,null,null,null,null,null,null,null,null,null,null,null,null,null,null,null,null,null,null,null,null,null,null,null,null,null,null,null,null,null,null,null,null,null,"Gold","Compra",30,"GoldCompra30",0.23499999999999999]
[null,null,null,null,null,null,null,null,null,null,null,null,null,null,null,null,null,null,null,null,null,null,null,null,null,null,null,null,null,null,null,null,null,null,null,null,null,null,null,null,null,null,null,null,null,null,null,null,null,null,null,null,null,null,"Gold","Compra",31,"GoldCompra31",0.23499999999999999]
[null,null,null,null,null,null,null,null,null,null,null,null,null,null,null,null,null,null,null,null,null,null,null,null,null,null,null,null,null,null,null,null,null,null,null,null,null,null,null,null,null,null,null,null,null,null,null,null,null,null,null,null,null,null,"Gold","Compra",32,"GoldCompra32",0.23499999999999999]
[null,null,null,null,null,null,null,null,null,null,null,null,null,null,null,null,null,null,null,null,null,null,null,null,null,null,null,null,null,null,null,null,null,null,null,null,null,null,null,null,null,null,null,null,null,null,null,null,null,null,null,null,null,null,"Gold","Compra",33,"GoldCompra33",0.23499999999999999]
[null,null,null,null,null,null,null,null,null,null,null,null,null,null,null,null,null,null,null,null,null,null,null,null,null,null,null,null,null,null,null,null,null,null,null,null,null,null,null,null,null,null,null,null,null,null,null,null,null,null,null,null,null,null,"Gold","Compra",34,{"$f":"BC132&BD132&BE132","v":"GoldCompra34"},0.23499999999999999]
[null,null,null,null,null,null,null,null,null,null,null,null,null,null,null,null,null,null,null,null,null,null,null,null,null,null,null,null,null,null,null,null,null,null,null,null,null,null,null,null,null,null,null,null,null,null,null,null,null,null,null,null,null,null,"Gold","Compra",35,"GoldCompra35",0.23499999999999999]
[null,null,null,null,null,null,null,null,null,null,null,null,null,null,null,null,null,null,null,null,null,null,null,null,null,null,null,null,null,null,null,null,null,null,null,null,null,null,null,null,null,null,null,null,null,null,null,null,null,null,null,null,null,null,"Gold","Compra",36,"GoldCompra36",0.23499999999999999]
[null,null,null,null,null,null,null,null,null,null,null,null,null,null,null,null,null,null,null,null,null,null,null,null,null,null,null,null,null,null,null,null,null,null,null,null,null,null,null,null,null,null,null,null,null,null,null,null,null,null,null,null,null,null,"Gold","Compra",37,"GoldCompra37",0.255]
[null,null,null,null,null,null,null,null,null,null,null,null,null,null,null,null,null,null,null,null,null,null,null,null,null,null,null,null,null,null,null,null,null,null,null,null,null,null,null,null,null,null,null,null,null,null,null,null,null,null,null,null,null,null,"Gold","Compra",38,"GoldCompra38",0.255]
[null,null,null,null,null,null,null,null,null,null,null,null,null,null,null,null,null,null,null,null,null,null,null,null,null,null,null,null,null,null,null,null,null,null,null,null,null,null,null,null,null,null,null,null,null,null,null,null,null,null,null,null,null,null,"Gold","Compra",39,"GoldCompra39",0.255]
[null,null,null,null,null,null,null,null,null,null,null,null,null,null,null,null,null,null,null,null,null,null,null,null,null,null,null,null,null,null,null,null,null,null,null,null,null,null,null,null,null,null,null,null,null,null,null,null,null,null,null,null,null,null,"Gold","Compra",40,"GoldCompra40",0.255]
[null,null,null,null,null,null,null,null,null,null,null,null,null,null,null,null,null,null,null,null,null,null,null,null,null,null,null,null,null,null,null,null,null,null,null,null,null,null,null,null,null,null,null,null,null,null,null,null,null,null,null,null,null,null,"Gold","Compra",41,"GoldCompra41",0.255]
[null,null,null,null,null,null,null,null,null,null,null,null,null,null,null,null,null,null,null,null,null,null,null,null,null,null,null,null,null,null,null,null,null,null,null,null,null,null,null,null,null,null,null,null,null,null,null,null,null,null,null,null,null,null,"Gold","Compra",42,"GoldCompra42",0.255]
[null,null,null,null,null,null,null,null,null,null,null,null,null,null,null,null,null,null,null,null,null,null,null,null,null,null,null,null,null,null,null,null,null,null,null,null,null,null,null,null,null,null,null,null,null,null,null,null,null,null,null,null,null,null,"Gold","Compra",43,"GoldCompra43",0.255]
[null,null,null,null,null,null,null,null,null,null,null,null,null,null,null,null,null,null,null,null,null,null,null,null,null,null,null,null,null,null,null,null,null,null,null,null,null,null,null,null,null,null,null,null,null,null,null,null,null,null,null,null,null,null,"Gold","Compra",44,"GoldCompra44",0.255]
[null,null,null,null,null,null,null,null,null,null,null,null,null,null,null,null,null,null,null,null,null,null,null,null,null,null,null,null,null,null,null,null,null,null,null,null,null,null,null,null,null,null,null,null,null,null,null,null,null,null,null,null,null,null,"Gold","Compra",45,"GoldCompra45",0.255]
[null,null,null,null,null,null,null,null,null,null,null,null,null,null,null,null,null,null,null,null,null,null,null,null,null,null,null,null,null,null,null,null,null,null,null,null,null,null,null,null,null,null,null,null,null,null,null,null,null,null,null,null,null,null,"Gold","Compra",46,"GoldCompra46",0.255]
[null,null,null,null,null,null,null,null,null,null,null,null,null,null,null,null,null,null,null,null,null,null,null,null,null,null,null,null,null,null,null,null,null,null,null,null,null,null,null,null,null,null,null,null,null,null,null,null,null,null,null,null,null,null,"Gold","Compra",47,"GoldCompra47",0.255]
[null,null,null,null,null,null,null,null,null,null,null,null,null,null,null,null,null,null,null,null,null,null,null,null,null,null,null,null,null,null,null,null,null,null,null,null,null,null,null,null,null,null,null,null,null,null,null,null,null,null,null,null,null,null,"Gold","Compra",48,"GoldCompra48",0.255]
[null,null,null,null,null,null,null,null,null,null,null,null,null,null,null,null,null,null,null,null,null,null,null,null,null,null,null,null,null,null,null,null,null,null,null,null,null,null,null,null,null,null,null,null,null,null,null,null,null,null,null,null,null,null,"Gold","Disposición de efectivo",1,"GoldDisposición de efectivo1",0.245]
[null,null,null,null,null,null,null,null,null,null,null,null,null,null,null,null,null,null,null,null,null,null,null,null,null,null,null,null,null,null,null,null,null,null,null,null,null,null,null,null,null,null,null,null,null,null,null,null,null,null,null,null,null,null,"Gold","Disposición de efectivo",{"$f":"+BE147+1","v":2},"GoldDisposición de efectivo2",0.245]
[null,null,null,null,null,null,null,null,null,null,null,null,null,null,null,null,null,null,null,null,null,null,null,null,null,null,null,null,null,null,null,null,null,null,null,null,null,null,null,null,null,null,null,null,null,null,null,null,null,null,null,null,null,null,"Gold","Disposición de efectivo",{"$f":"+BE148+1","v":3},"GoldDisposición de efectivo3",0.245]
[null,null,null,null,null,null,null,null,null,null,null,null,null,null,null,null,null,null,null,null,null,null,null,null,null,null,null,null,null,null,null,null,null,null,null,null,null,null,null,null,null,null,null,null,null,null,null,null,null,null,null,null,null,null,"Gold","Disposición de efectivo",{"$f":"+BE149+1","v":4},"GoldDisposición de efectivo4",0.245]
[null,null,null,null,null,null,null,null,null,null,null,null,null,null,null,null,null,null,null,null,null,null,null,null,null,null,null,null,null,null,null,null,null,null,null,null,null,null,null,null,null,null,null,null,null,null,null,null,null,null,null,null,null,null,"Gold","Disposición de efectivo",5,"GoldDisposición de efectivo5",0.245]
[null,null,null,null,null,null,null,null,null,null,null,null,null,null,null,null,null,null,null,null,null,null,null,null,null,null,null,null,null,null,null,null,null,null,null,null,null,null,null,null,null,null,null,null,null,null,null,null,null,null,null,null,null,null,"Gold","Disposición de efectivo",6,"GoldDisposición de efectivo6",0.245]
[null,null,null,null,null,null,null,null,null,null,null,null,null,null,null,null,null,null,null,null,null,null,null,null,null,null,null,null,null,null,null,null,null,null,null,null,null,null,null,null,null,null,null,null,null,null,null,null,null,null,null,null,null,null,"Gold","Disposición de efectivo",7,"GoldDisposición de efectivo7",0.245]
[null,null,null,null,null,null,null,null,null,null,null,null,null,null,null,null,null,null,null,null,null,null,null,null,null,null,null,null,null,null,null,null,null,null,null,null,null,null,null,null,null,null,null,null,null,null,null,null,null,null,null,null,null,null,"Gold","Disposición de efectivo",8,"GoldDisposición de efectivo8",0.245]
[null,null,null,null,null,null,null,null,null,null,null,null,null,null,null,null,null,null,null,null,null,null,null,null,null,null,null,null,null,null,null,null,null,null,null,null,null,null,null,null,null,null,null,null,null,null,null,null,null,null,null,null,null,null,"Gold","Disposición de efectivo",9,"GoldDisposición de efectivo9",0.245]
[null,null,null,null,null,null,null,null,null,null,null,null,null,null,null,null,null,null,null,null,null,null,null,null,null,null,null,null,null,null,null,null,null,null,null,null,null,null,null,null,null,null,null,null,null,null,null,null,null,null,null,null,null,null,"Gold","Disposición de efectivo",10,"GoldDisposición de efectivo10",0.245]
[null,null,null,null,null,null,null,null,null,null,null,null,null,null,null,null,null,null,null,null,null,null,null,null,null,null,null,null,null,null,null,null,null,null,null,null,null,null,null,null,null,null,null,null,null,null,null,null,null,null,null,null,null,null,"Gold","Disposición de efectivo",11,"GoldDisposición de efectivo11",0.245]
[null,null,null,null,null,null,null,null,null,null,null,null,null,null,null,null,null,null,null,null,null,null,null,null,null,null,null,null,null,null,null,null,null,null,null,null,null,null,null,null,null,null,null,null,null,null,null,null,null,null,null,null,null,null,"Gold","Disposición de efectivo",12,"GoldDisposición de efectivo12",0.245]
[null,null,null,null,null,null,null,null,null,null,null,null,null,null,null,null,null,null,null,null,null,null,null,null,null,null,null,null,null,null,null,null,null,null,null,null,null,null,null,null,null,null,null,null,null,null,null,null,null,null,null,null,null,null,"Gold","Disposición de efectivo",13,"GoldDisposición de efectivo13",0.245]
[null,null,null,null,null,null,null,null,null,null,null,null,null,null,null,null,null,null,null,null,null,null,null,null,null,null,null,null,null,null,null,null,null,null,null,null,null,null,null,null,null,null,null,null,null,null,null,null,null,null,null,null,null,null,"Gold","Disposición de efectivo",14,"GoldDisposición de efectivo14",0.245]
[null,null,null,null,null,null,null,null,null,null,null,null,null,null,null,null,null,null,null,null,null,null,null,null,null,null,null,null,null,null,null,null,null,null,null,null,null,null,null,null,null,null,null,null,null,null,null,null,null,null,null,null,null,null,"Gold","Disposición de efectivo",15,"GoldDisposición de efectivo15",0.245]
[null,null,null,null,null,null,null,null,null,null,null,null,null,null,null,null,null,null,null,null,null,null,null,null,null,null,null,null,null,null,null,null,null,null,null,null,null,null,null,null,null,null,null,null,null,null,null,null,null,null,null,null,null,null,"Gold","Disposición de efectivo",16,"GoldDisposición de efectivo16",0.245]
[null,null,null,null,null,null,null,null,null,null,null,null,null,null,null,null,null,null,null,null,null,null,null,null,null,null,null,null,null,null,null,null,null,null,null,null,null,null,null,null,null,null,null,null,null,null,null,null,null,null,null,null,null,null,"Gold","Disposición de efectivo",17,"GoldDisposición de efectivo17",0.245]
[null,null,null,null,null,null,null,null,null,null,null,null,null,null,null,null,null,null,null,null,null,null,null,null,null,null,null,null,null,null,null,null,null,null,null,null,null,null,null,null,null,null,null,null,null,null,null,null,null,null,null,null,null,null,"Gold","Disposición de efectivo",18,"GoldDisposición de efectivo18",0.245]
[null,null,null,null,null,null,null,null,null,null,null,null,null,null,null,null,null,null,null,null,null,null,null,null,null,null,null,null,null,null,null,null,null,null,null,null,null,null,null,null,null,null,null,null,null,null,null,null,null,null,null,null,null,null,"Gold","Disposición de efectivo",19,"GoldDisposición de efectivo19",0.245]
[null,null,null,null,null,null,null,null,null,null,null,null,null,null,null,null,null,null,null,null,null,null,null,null,null,null,null,null,null,null,null,null,null,null,null,null,null,null,null,null,null,null,null,null,null,null,null,null,null,null,null,null,null,null,"Gold","Disposición de efectivo",20,"GoldDisposición de efectivo20",0.245]
[null,null,null,null,null,null,null,null,null,null,null,null,null,null,null,null,null,null,null,null,null,null,null,null,null,null,null,null,null,null,null,null,null,null,null,null,null,null,null,null,null,null,null,null,null,null,null,null,null,null,null,null,null,null,"Gold","Disposición de efectivo",21,"GoldDisposición de efectivo21",0.245]
[null,null,null,null,null,null,null,null,null,null,null,null,null,null,null,null,null,null,null,null,null,null,null,null,null,null,null,null,null,null,null,null,null,null,null,null,null,null,null,null,null,null,null,null,null,null,null,null,null,null,null,null,null,null,"Gold","Disposición de efectivo",22,"GoldDisposición de efectivo22",0.245]
[null,null,null,null,null,null,null,null,null,null,null,null,null,null,null,null,null,null,null,null,null,null,null,null,null,null,null,null,null,null,null,null,null,null,null,null,null,null,null,null,null,null,null,null,null,null,null,null,null,null,null,null,null,null,"Gold","Disposición de efectivo",23,"GoldDisposición de efectivo23",0.245]
[null,null,null,null,null,null,null,null,null,null,null,null,null,null,null,null,null,null,null,null,null,null,null,null,null,null,null,null,null,null,null,null,null,null,null,null,null,null,null,null,null,null,null,null,null,null,null,null,null,null,null,null,null,null,"Gold","Disposición de efectivo",24,"GoldDisposición de efectivo24",0.245]
[null,null,null,null,null,null,null,null,null,null,null,null,null,null,null,null,null,null,null,null,null,null,null,null,null,null,null,null,null,null,null,null,null,null,null,null,null,null,null,null,null,null,null,null,null,null,null,null,null,null,null,null,null,null,"Gold","Disposición de efectivo",25,"GoldDisposición de efectivo25",0.26500000000000001]
[null,null,null,null,null,null,null,null,null,null,null,null,null,null,null,null,null,null,null,null,null,null,null,null,null,null,null,null,null,null,null,null,null,null,null,null,null,null,null,null,null,null,null,null,null,null,null,null,null,null,null,null,null,null,"Gold","Disposición de efectivo",26,"GoldDisposición de efectivo26",0.26500000000000001]
[null,null,null,null,null,null,null,null,null,null,null,null,null,null,null,null,null,null,null,null,null,null,null,null,null,null,null,null,null,null,null,null,null,null,null,null,null,null,null,null,null,null,null,null,null,null,null,null,null,null,null,null,null,null,"Gold","Disposición de efectivo",27,"GoldDisposición de efectivo27",0.26500000000000001]
[null,null,null,null,null,null,null,null,null,null,null,null,null,null,null,null,null,null,null,null,null,null,null,null,null,null,null,null,null,null,null,null,null,null,null,null,null,null,null,null,null,null,null,null,null,null,null,null,null,null,null,null,null,null,"Gold","Disposición de efectivo",28,"GoldDisposición de efectivo28",0.26500000000000001]
[null,null,null,null,null,null,null,null,null,null,null,null,null,null,null,null,null,null,null,null,null,null,null,null,null,null,null,null,null,null,null,null,null,null,null,null,null,null,null,null,null,null,null,null,null,null,null,null,null,null,null,null,null,null,"Gold","Disposición de efectivo",29,"GoldDisposición de efectivo29",0.26500000000000001]
[null,null,null,null,null,null,null,null,null,null,null,null,null,null,null,null,null,null,null,null,null,null,null,null,null,null,null,null,null,null,null,null,null,null,null,null,null,null,null,null,null,null,null,null,null,null,null,null,null,null,null,null,null,null,"Gold","Disposición de efectivo",30,"GoldDisposición de efectivo30",0.26500000000000001]
[null,null,null,null,null,null,null,null,null,null,null,null,null,null,null,null,null,null,null,null,null,null,null,null,null,null,null,null,null,null,null,null,null,null,null,null,null,null,null,null,null,null,null,null,null,null,null,null,null,null,null,null,null,null,"Gold","Disposición de efectivo",31,"GoldDisposición de efectivo31",0.26500000000000001]
[null,null,null,null,null,null,null,null,null,null,null,null,null,null,null,null,null,null,null,null,null,null,null,null,null,null,null,null,null,null,null,null,null,null,null,null,null,null,null,null,null,null,null,null,null,null,null,null,null,null,null,null,null,null,"Gold","Disposición de efectivo",32,"GoldDisposición de efectivo32",0.26500000000000001]
[null,null,null,null,null,null,null,null,null,null,null,null,null,null,null,null,null,null,null,null,null,null,null,null,null,null,null,null,null,null,null,null,null,null,null,null,null,null,null,null,null,null,null,null,null,null,null,null,null,null,null,null,null,null,"Gold","Disposición de efectivo",33,"GoldDisposición de efectivo33",0.26500000000000001]
[null,null,null,null,null,null,null,null,null,null,null,null,null,null,null,null,null,null,null,null,null,null,null,null,null,null,null,null,null,null,null,null,null,null,null,null,null,null,null,null,null,null,null,null,null,null,null,null,null,null,null,null,null,null,"Gold","Disposición de efectivo",34,{"$f":"BC180&BD180&BE180","v":"GoldDisposición de efectivo34"},0.26500000000000001]
[null,null,null,null,null,null,null,null,null,null,null,null,null,null,null,null,null,null,null,null,null,null,null,null,null,null,null,null,null,null,null,null,null,null,null,null,null,null,null,null,null,null,null,null,null,null,null,null,null,null,null,null,null,null,"Gold","Disposición de efectivo",35,"GoldDisposición de efectivo35",0.26500000000000001]
[null,null,null,null,null,null,null,null,null,null,null,null,null,null,null,null,null,null,null,null,null,null,null,null,null,null,null,null,null,null,null,null,null,null,null,null,null,null,null,null,null,null,null,null,null,null,null,null,null,null,null,null,null,null,"Gold","Disposición de efectivo",36,"GoldDisposición de efectivo36",0.26500000000000001]
[null,null,null,null,null,null,null,null,null,null,null,null,null,null,null,null,null,null,null,null,null,null,null,null,null,null,null,null,null,null,null,null,null,null,null,null,null,null,null,null,null,null,null,null,null,null,null,null,null,null,null,null,null,null,"Gold","Disposición de efectivo",37,"GoldDisposición de efectivo37",0.28499999999999998]
[null,null,null,null,null,null,null,null,null,null,null,null,null,null,null,null,null,null,null,null,null,null,null,null,null,null,null,null,null,null,null,null,null,null,null,null,null,null,null,null,null,null,null,null,null,null,null,null,null,null,null,null,null,null,"Gold","Disposición de efectivo",38,"GoldDisposición de efectivo38",0.28499999999999998]
[null,null,null,null,null,null,null,null,null,null,null,null,null,null,null,null,null,null,null,null,null,null,null,null,null,null,null,null,null,null,null,null,null,null,null,null,null,null,null,null,null,null,null,null,null,null,null,null,null,null,null,null,null,null,"Gold","Disposición de efectivo",39,"GoldDisposición de efectivo39",0.28499999999999998]
[null,null,null,null,null,null,null,null,null,null,null,null,null,null,null,null,null,null,null,null,null,null,null,null,null,null,null,null,null,null,null,null,null,null,null,null,null,null,null,null,null,null,null,null,null,null,null,null,null,null,null,null,null,null,"Gold","Disposición de efectivo",40,"GoldDisposición de efectivo40",0.28499999999999998]
[null,null,null,null,null,null,null,null,null,null,null,null,null,null,null,null,null,null,null,null,null,null,null,null,null,null,null,null,null,null,null,null,null,null,null,null,null,null,null,null,null,null,null,null,null,null,null,null,null,null,null,null,null,null,"Gold","Disposición de efectivo",41,"GoldDisposición de efectivo41",0.28499999999999998]
[null,null,null,null,null,null,null,null,null,null,null,null,null,null,null,null,null,null,null,null,null,null,null,null,null,null,null,null,null,null,null,null,null,null,null,null,null,null,null,null,null,null,null,null,null,null,null,null,null,null,null,null,null,null,"Gold","Disposición de efectivo",42,"GoldDisposición de efectivo42",0.28499999999999998]
[null,null,null,null,null,null,null,null,null,null,null,null,null,null,null,null,null,null,null,null,null,null,null,null,null,null,null,null,null,null,null,null,null,null,null,null,null,null,null,null,null,null,null,null,null,null,null,null,null,null,null,null,null,null,"Gold","Disposición de efectivo",43,"GoldDisposición de efectivo43",0.28499999999999998]
[null,null,null,null,null,null,null,null,null,null,null,null,null,null,null,null,null,null,null,null,null,null,null,null,null,null,null,null,null,null,null,null,null,null,null,null,null,null,null,null,null,null,null,null,null,null,null,null,null,null,null,null,null,null,"Gold","Disposición de efectivo",44,"GoldDisposición de efectivo44",0.28499999999999998]
[null,null,null,null,null,null,null,null,null,null,null,null,null,null,null,null,null,null,null,null,null,null,null,null,null,null,null,null,null,null,null,null,null,null,null,null,null,null,null,null,null,null,null,null,null,null,null,null,null,null,null,null,null,null,"Gold","Disposición de efectivo",45,"GoldDisposición de efectivo45",0.28499999999999998]
[null,null,null,null,null,null,null,null,null,null,null,null,null,null,null,null,null,null,null,null,null,null,null,null,null,null,null,null,null,null,null,null,null,null,null,null,null,null,null,null,null,null,null,null,null,null,null,null,null,null,null,null,null,null,"Gold","Disposición de efectivo",46,"GoldDisposición de efectivo46",0.28499999999999998]
[null,null,null,null,null,null,null,null,null,null,null,null,null,null,null,null,null,null,null,null,null,null,null,null,null,null,null,null,null,null,null,null,null,null,null,null,null,null,null,null,null,null,null,null,null,null,null,null,null,null,null,null,null,null,"Gold","Disposición de efectivo",47,"GoldDisposición de efectivo47",0.28499999999999998]
[null,null,null,null,null,null,null,null,null,null,null,null,null,null,null,null,null,null,null,null,null,null,null,null,null,null,null,null,null,null,null,null,null,null,null,null,null,null,null,null,null,null,null,null,null,null,null,null,null,null,null,null,null,null,"Gold","Disposición de efectivo",48,"GoldDisposición de efectivo48",0.28499999999999998]
[null,null,null,null,null,null,null,null,null,null,null,null,null,null,null,null,null,null,null,null,null,null,null,null,null,null,null,null,null,null,null,null,null,null,null,null,null,null,null,null,null,null,null,null,null,null,null,null,null,null,null,null,null,null,"Platinium","Compra",1,"PlatiniumCompra1",0.19500000000000001]
[null,null,null,null,null,null,null,null,null,null,null,null,null,null,null,null,null,null,null,null,null,null,null,null,null,null,null,null,null,null,null,null,null,null,null,null,null,null,null,null,null,null,null,null,null,null,null,null,null,null,null,null,null,null,"Platinium","Compra",{"$f":"+BE195+1","v":2},"PlatiniumCompra2",0.19500000000000001]
[null,null,null,null,null,null,null,null,null,null,null,null,null,null,null,null,null,null,null,null,null,null,null,null,null,null,null,null,null,null,null,null,null,null,null,null,null,null,null,null,null,null,null,null,null,null,null,null,null,null,null,null,null,null,"Platinium","Compra",{"$f":"+BE196+1","v":3},"PlatiniumCompra3",0.19500000000000001]
[null,null,null,null,null,null,null,null,null,null,null,null,null,null,null,null,null,null,null,null,null,null,null,null,null,null,null,null,null,null,null,null,null,null,null,null,null,null,null,null,null,null,null,null,null,null,null,null,null,null,null,null,null,null,"Platinium","Compra",{"$f":"+BE197+1","v":4},"PlatiniumCompra4",0.19500000000000001]
[null,null,null,null,null,null,null,null,null,null,null,null,null,null,null,null,null,null,null,null,null,null,null,null,null,null,null,null,null,null,null,null,null,null,null,null,null,null,null,null,null,null,null,null,null,null,null,null,null,null,null,null,null,null,"Platinium","Compra",5,"PlatiniumCompra5",0.19500000000000001]
[null,null,null,null,null,null,null,null,null,null,null,null,null,null,null,null,null,null,null,null,null,null,null,null,null,null,null,null,null,null,null,null,null,null,null,null,null,null,null,null,null,null,null,null,null,null,null,null,null,null,null,null,null,null,"Platinium","Compra",6,"PlatiniumCompra6",0.19500000000000001]
[null,null,null,null,null,null,null,null,null,null,null,null,null,null,null,null,null,null,null,null,null,null,null,null,null,null,null,null,null,null,null,null,null,null,null,null,null,null,null,null,null,null,null,null,null,null,null,null,null,null,null,null,null,null,"Platinium","Compra",7,"PlatiniumCompra7",0.19500000000000001]
[null,null,null,null,null,null,null,null,null,null,null,null,null,null,null,null,null,null,null,null,null,null,null,null,null,null,null,null,null,null,null,null,null,null,null,null,null,null,null,null,null,null,null,null,null,null,null,null,null,null,null,null,null,null,"Platinium","Compra",8,"PlatiniumCompra8",0.19500000000000001]
[null,null,null,null,null,null,null,null,null,null,null,null,null,null,null,null,null,null,null,null,null,null,null,null,null,null,null,null,null,null,null,null,null,null,null,null,null,null,null,null,null,null,null,null,null,null,null,null,null,null,null,null,null,null,"Platinium","Compra",9,"PlatiniumCompra9",0.19500000000000001]
[null,null,null,null,null,null,null,null,null,null,null,null,null,null,null,null,null,null,null,null,null,null,null,null,null,null,null,null,null,null,null,null,null,null,null,null,null,null,null,null,null,null,null,null,null,null,null,null,null,null,null,null,null,null,"Platinium","Compra",10,"PlatiniumCompra10",0.19500000000000001]
[null,null,null,null,null,null,null,null,null,null,null,null,null,null,null,null,null,null,null,null,null,null,null,null,null,null,null,null,null,null,null,null,null,null,null,null,null,null,null,null,null,null,null,null,null,null,null,null,null,null,null,null,null,null,"Platinium","Compra",11,"PlatiniumCompra11",0.19500000000000001]
[null,null,null,null,null,null,null,null,null,null,null,null,null,null,null,null,null,null,null,null,null,null,null,null,null,null,null,null,null,null,null,null,null,null,null,null,null,null,null,null,null,null,null,null,null,null,null,null,null,null,null,null,null,null,"Platinium","Compra",12,"PlatiniumCompra12",0.19500000000000001]
[null,null,null,null,null,null,null,null,null,null,null,null,null,null,null,null,null,null,null,null,null,null,null,null,null,null,null,null,null,null,null,null,null,null,null,null,null,null,null,null,null,null,null,null,null,null,null,null,null,null,null,null,null,null,"Platinium","Compra",13,"PlatiniumCompra13",0.19500000000000001]
[null,null,null,null,null,null,null,null,null,null,null,null,null,null,null,null,null,null,null,null,null,null,null,null,null,null,null,null,null,null,null,null,null,null,null,null,null,null,null,null,null,null,null,null,null,null,null,null,null,null,null,null,null,null,"Platinium","Compra",14,"PlatiniumCompra14",0.19500000000000001]
[null,null,null,null,null,null,null,null,null,null,null,null,null,null,null,null,null,null,null,null,null,null,null,null,null,null,null,null,null,null,null,null,null,null,null,null,null,null,null,null,null,null,null,null,null,null,null,null,null,null,null,null,null,null,"Platinium","Compra",15,"PlatiniumCompra15",0.19500000000000001]
[null,null,null,null,null,null,null,null,null,null,null,null,null,null,null,null,null,null,null,null,null,null,null,null,null,null,null,null,null,null,null,null,null,null,null,null,null,null,null,null,null,null,null,null,null,null,null,null,null,null,null,null,null,null,"Platinium","Compra",16,"PlatiniumCompra16",0.19500000000000001]
[null,null,null,null,null,null,null,null,null,null,null,null,null,null,null,null,null,null,null,null,null,null,null,null,null,null,null,null,null,null,null,null,null,null,null,null,null,null,null,null,null,null,null,null,null,null,null,null,null,null,null,null,null,null,"Platinium","Compra",17,"PlatiniumCompra17",0.19500000000000001]
[null,null,null,null,null,null,null,null,null,null,null,null,null,null,null,null,null,null,null,null,null,null,null,null,null,null,null,null,null,null,null,null,null,null,null,null,null,null,null,null,null,null,null,null,null,null,null,null,null,null,null,null,null,null,"Platinium","Compra",18,"PlatiniumCompra18",0.19500000000000001]
[null,null,null,null,null,null,null,null,null,null,null,null,null,null,null,null,null,null,null,null,null,null,null,null,null,null,null,null,null,null,null,null,null,null,null,null,null,null,null,null,null,null,null,null,null,null,null,null,null,null,null,null,null,null,"Platinium","Compra",19,"PlatiniumCompra19",0.19500000000000001]
[null,null,null,null,null,null,null,null,null,null,null,null,null,null,null,null,null,null,null,null,null,null,null,null,null,null,null,null,null,null,null,null,null,null,null,null,null,null,null,null,null,null,null,null,null,null,null,null,null,null,null,null,null,null,"Platinium","Compra",20,"PlatiniumCompra20",0.19500000000000001]
[null,null,null,null,null,null,null,null,null,null,null,null,null,null,null,null,null,null,null,null,null,null,null,null,null,null,null,null,null,null,null,null,null,null,null,null,null,null,null,null,null,null,null,null,null,null,null,null,null,null,null,null,null,null,"Platinium","Compra",21,"PlatiniumCompra21",0.19500000000000001]
[null,null,null,null,null,null,null,null,null,null,null,null,null,null,null,null,null,null,null,null,null,null,null,null,null,null,null,null,null,null,null,null,null,null,null,null,null,null,null,null,null,null,null,null,null,null,null,null,null,null,null,null,null,null,"Platinium","Compra",22,"PlatiniumCompra22",0.19500000000000001]
[null,null,null,null,null,null,null,null,null,null,null,null,null,null,null,null,null,null,null,null,null,null,null,null,null,null,null,null,null,null,null,null,null,null,null,null,null,null,null,null,null,null,null,null,null,null,null,null,null,null,null,null,null,null,"Platinium","Compra",23,"PlatiniumCompra23",0.19500000000000001]
[null,null,null,null,null,null,null,null,null,null,null,null,null,null,null,null,null,null,null,null,null,null,null,null,null,null,null,null,null,null,null,null,null,null,null,null,null,null,null,null,null,null,null,null,null,null,null,null,null,null,null,null,null,null,"Platinium","Compra",24,"PlatiniumCompra24",0.19500000000000001]
[null,null,null,null,null,null,null,null,null,null,null,null,null,null,null,null,null,null,null,null,null,null,null,null,null,null,null,null,null,null,null,null,null,null,null,null,null,null,null,null,null,null,null,null,null,null,null,null,null,null,null,null,null,null,"Platinium","Compra",25,"PlatiniumCompra25",0.215]
[null,null,null,null,null,null,null,null,null,null,null,null,null,null,null,null,null,null,null,null,null,null,null,null,null,null,null,null,null,null,null,null,null,null,null,null,null,null,null,null,null,null,null,null,null,null,null,null,null,null,null,null,null,null,"Platinium","Compra",26,"PlatiniumCompra26",0.215]
[null,null,null,null,null,null,null,null,null,null,null,null,null,null,null,null,null,null,null,null,null,null,null,null,null,null,null,null,null,null,null,null,null,null,null,null,null,null,null,null,null,null,null,null,null,null,null,null,null,null,null,null,null,null,"Platinium","Compra",27,"PlatiniumCompra27",0.215]
[null,null,null,null,null,null,null,null,null,null,null,null,null,null,null,null,null,null,null,null,null,null,null,null,null,null,null,null,null,null,null,null,null,null,null,null,null,null,null,null,null,null,null,null,null,null,null,null,null,null,null,null,null,null,"Platinium","Compra",28,"PlatiniumCompra28",0.215]
[null,null,null,null,null,null,null,null,null,null,null,null,null,null,null,null,null,null,null,null,null,null,null,null,null,null,null,null,null,null,null,null,null,null,null,null,null,null,null,null,null,null,null,null,null,null,null,null,null,null,null,null,null,null,"Platinium","Compra",29,"PlatiniumCompra29",0.215]
[null,null,null,null,null,null,null,null,null,null,null,null,null,null,null,null,null,null,null,null,null,null,null,null,null,null,null,null,null,null,null,null,null,null,null,null,null,null,null,null,null,null,null,null,null,null,null,null,null,null,null,null,null,null,"Platinium","Compra",30,"PlatiniumCompra30",0.215]
[null,null,null,null,null,null,null,null,null,null,null,null,null,null,null,null,null,null,null,null,null,null,null,null,null,null,null,null,null,null,null,null,null,null,null,null,null,null,null,null,null,null,null,null,null,null,null,null,null,null,null,null,null,null,"Platinium","Compra",31,"PlatiniumCompra31",0.215]
[null,null,null,null,null,null,null,null,null,null,null,null,null,null,null,null,null,null,null,null,null,null,null,null,null,null,null,null,null,null,null,null,null,null,null,null,null,null,null,null,null,null,null,null,null,null,null,null,null,null,null,null,null,null,"Platinium","Compra",32,"PlatiniumCompra32",0.215]
[null,null,null,null,null,null,null,null,null,null,null,null,null,null,null,null,null,null,null,null,null,null,null,null,null,null,null,null,null,null,null,null,null,null,null,null,null,null,null,null,null,null,null,null,null,null,null,null,null,null,null,null,null,null,"Platinium","Compra",33,"PlatiniumCompra33",0.215]
[null,null,null,null,null,null,null,null,null,null,null,null,null,null,null,null,null,null,null,null,null,null,null,null,null,null,null,null,null,null,null,null,null,null,null,null,null,null,null,null,null,null,null,null,null,null,null,null,null,null,null,null,null,null,"Platinium","Compra",34,"PlatiniumCompra34",0.215]
[null,null,null,null,null,null,null,null,null,null,null,null,null,null,null,null,null,null,null,null,null,null,null,null,null,null,null,null,null,null,null,null,null,null,null,null,null,null,null,null,null,null,null,null,null,null,null,null,null,null,null,null,null,null,"Platinium","Compra",35,"PlatiniumCompra35",0.215]
[null,null,null,null,null,null,null,null,null,null,null,null,null,null,null,null,null,null,null,null,null,null,null,null,null,null,null,null,null,null,null,null,null,null,null,null,null,null,null,null,null,null,null,null,null,null,null,null,null,null,null,null,null,null,"Platinium","Compra",36,"PlatiniumCompra36",0.215]
[null,null,null,null,null,null,null,null,null,null,null,null,null,null,null,null,null,null,null,null,null,null,null,null,null,null,null,null,null,null,null,null,null,null,null,null,null,null,null,null,null,null,null,null,null,null,null,null,null,null,null,null,null,null,"Platinium","Compra",37,"PlatiniumCompra37",0.23499999999999999]
[null,null,null,null,null,null,null,null,null,null,null,null,null,null,null,null,null,null,null,null,null,null,null,null,null,null,null,null,null,null,null,null,null,null,null,null,null,null,null,null,null,null,null,null,null,null,null,null,null,null,null,null,null,null,"Platinium","Compra",38,"PlatiniumCompra38",0.23499999999999999]
[null,null,null,null,null,null,null,null,null,null,null,null,null,null,null,null,null,null,null,null,null,null,null,null,null,null,null,null,null,null,null,null,null,null,null,null,null,null,null,null,null,null,null,null,null,null,null,null,null,null,null,null,null,null,"Platinium","Compra",39,"PlatiniumCompra39",0.23499999999999999]
[null,null,null,null,null,null,null,null,null,null,null,null,null,null,null,null,null,null,null,null,null,null,null,null,null,null,null,null,null,null,null,null,null,null,null,null,null,null,null,null,null,null,null,null,null,null,null,null,null,null,null,null,null,null,"Platinium","Compra",40,"PlatiniumCompra40",0.23499999999999999]
[null,null,null,null,null,null,null,null,null,null,null,null,null,null,null,null,null,null,null,null,null,null,null,null,null,null,null,null,null,null,null,null,null,null,null,null,null,null,null,null,null,null,null,null,null,null,null,null,null,null,null,null,null,null,"Platinium","Compra",41,"PlatiniumCompra41",0.23499999999999999]
[null,null,null,null,null,null,null,null,null,null,null,null,null,null,null,null,null,null,null,null,null,null,null,null,null,null,null,null,null,null,null,null,null,null,null,null,null,null,null,null,null,null,null,null,null,null,null,null,null,null,null,null,null,null,"Platinium","Compra",42,"PlatiniumCompra42",0.23499999999999999]
[null,null,null,null,null,null,null,null,null,null,null,null,null,null,null,null,null,null,null,null,null,null,null,null,null,null,null,null,null,null,null,null,null,null,null,null,null,null,null,null,null,null,null,null,null,null,null,null,null,null,null,null,null,null,"Platinium","Compra",43,"PlatiniumCompra43",0.23499999999999999]
[null,null,null,null,null,null,null,null,null,null,null,null,null,null,null,null,null,null,null,null,null,null,null,null,null,null,null,null,null,null,null,null,null,null,null,null,null,null,null,null,null,null,null,null,null,null,null,null,null,null,null,null,null,null,"Platinium","Compra",44,"PlatiniumCompra44",0.23499999999999999]
[null,null,null,null,null,null,null,null,null,null,null,null,null,null,null,null,null,null,null,null,null,null,null,null,null,null,null,null,null,null,null,null,null,null,null,null,null,null,null,null,null,null,null,null,null,null,null,null,null,null,null,null,null,null,"Platinium","Compra",45,"PlatiniumCompra45",0.23499999999999999]
[null,null,null,null,null,null,null,null,null,null,null,null,null,null,null,null,null,null,null,null,null,null,null,null,null,null,null,null,null,null,null,null,null,null,null,null,null,null,null,null,null,null,null,null,null,null,null,null,null,null,null,null,null,null,"Platinium","Compra",46,"PlatiniumCompra46",0.23499999999999999]
[null,null,null,null,null,null,null,null,null,null,null,null,null,null,null,null,null,null,null,null,null,null,null,null,null,null,null,null,null,null,null,null,null,null,null,null,null,null,null,null,null,null,null,null,null,null,null,null,null,null,null,null,null,null,"Platinium","Compra",47,"PlatiniumCompra47",0.23499999999999999]
[null,null,null,null,null,null,null,null,null,null,null,null,null,null,null,null,null,null,null,null,null,null,null,null,null,null,null,null,null,null,null,null,null,null,null,null,null,null,null,null,null,null,null,null,null,null,null,null,null,null,null,null,null,null,"Platinium","Compra",48,"PlatiniumCompra48",0.23499999999999999]
[null,null,null,null,null,null,null,null,null,null,null,null,null,null,null,null,null,null,null,null,null,null,null,null,null,null,null,null,null,null,null,null,null,null,null,null,null,null,null,null,null,null,null,null,null,null,null,null,null,null,null,null,null,null,"Platinium","Disposición de efectivo",1,"PlatiniumDisposición de efectivo1",0.22500000000000001]
[null,null,null,null,null,null,null,null,null,null,null,null,null,null,null,null,null,null,null,null,null,null,null,null,null,null,null,null,null,null,null,null,null,null,null,null,null,null,null,null,null,null,null,null,null,null,null,null,null,null,null,null,null,null,"Platinium","Disposición de efectivo",{"$f":"+BE243+1","v":2},{"$f":"BC244&BD244&BE244","v":"PlatiniumDisposición de efectivo2"},0.22500000000000001]
[null,null,null,null,null,null,null,null,null,null,null,null,null,null,null,null,null,null,null,null,null,null,null,null,null,null,null,null,null,null,null,null,null,null,null,null,null,null,null,null,null,null,null,null,null,null,null,null,null,null,null,null,null,null,"Platinium","Disposición de efectivo",{"$f":"+BE244+1","v":3},"PlatiniumDisposición de efectivo3",0.22500000000000001]
[null,null,null,null,null,null,null,null,null,null,null,null,null,null,null,null,null,null,null,null,null,null,null,null,null,null,null,null,null,null,null,null,null,null,null,null,null,null,null,null,null,null,null,null,null,null,null,null,null,null,null,null,null,null,"Platinium","Disposición de efectivo",{"$f":"+BE245+1","v":4},"PlatiniumDisposición de efectivo4",0.22500000000000001]
[null,null,null,null,null,null,null,null,null,null,null,null,null,null,null,null,null,null,null,null,null,null,null,null,null,null,null,null,null,null,null,null,null,null,null,null,null,null,null,null,null,null,null,null,null,null,null,null,null,null,null,null,null,null,"Platinium","Disposición de efectivo",5,"PlatiniumDisposición de efectivo5",0.22500000000000001]
[null,null,null,null,null,null,null,null,null,null,null,null,null,null,null,null,null,null,null,null,null,null,null,null,null,null,null,null,null,null,null,null,null,null,null,null,null,null,null,null,null,null,null,null,null,null,null,null,null,null,null,null,null,null,"Platinium","Disposición de efectivo",6,"PlatiniumDisposición de efectivo6",0.22500000000000001]
[null,null,null,null,null,null,null,null,null,null,null,null,null,null,null,null,null,null,null,null,null,null,null,null,null,null,null,null,null,null,null,null,null,null,null,null,null,null,null,null,null,null,null,null,null,null,null,null,null,null,null,null,null,null,"Platinium","Disposición de efectivo",7,"PlatiniumDisposición de efectivo7",0.22500000000000001]
[null,null,null,null,null,null,null,null,null,null,null,null,null,null,null,null,null,null,null,null,null,null,null,null,null,null,null,null,null,null,null,null,null,null,null,null,null,null,null,null,null,null,null,null,null,null,null,null,null,null,null,null,null,null,"Platinium","Disposición de efectivo",8,"PlatiniumDisposición de efectivo8",0.22500000000000001]
[null,null,null,null,null,null,null,null,null,null,null,null,null,null,null,null,null,null,null,null,null,null,null,null,null,null,null,null,null,null,null,null,null,null,null,null,null,null,null,null,null,null,null,null,null,null,null,null,null,null,null,null,null,null,"Platinium","Disposición de efectivo",9,"PlatiniumDisposición de efectivo9",0.22500000000000001]
[null,null,null,null,null,null,null,null,null,null,null,null,null,null,null,null,null,null,null,null,null,null,null,null,null,null,null,null,null,null,null,null,null,null,null,null,null,null,null,null,null,null,null,null,null,null,null,null,null,null,null,null,null,null,"Platinium","Disposición de efectivo",10,"PlatiniumDisposición de efectivo10",0.22500000000000001]
[null,null,null,null,null,null,null,null,null,null,null,null,null,null,null,null,null,null,null,null,null,null,null,null,null,null,null,null,null,null,null,null,null,null,null,null,null,null,null,null,null,null,null,null,null,null,null,null,null,null,null,null,null,null,"Platinium","Disposición de efectivo",11,"PlatiniumDisposición de efectivo11",0.22500000000000001]
[null,null,null,null,null,null,null,null,null,null,null,null,null,null,null,null,null,null,null,null,null,null,null,null,null,null,null,null,null,null,null,null,null,null,null,null,null,null,null,null,null,null,null,null,null,null,null,null,null,null,null,null,null,null,"Platinium","Disposición de efectivo",12,"PlatiniumDisposición de efectivo12",0.22500000000000001]
[null,null,null,null,null,null,null,null,null,null,null,null,null,null,null,null,null,null,null,null,null,null,null,null,null,null,null,null,null,null,null,null,null,null,null,null,null,null,null,null,null,null,null,null,null,null,null,null,null,null,null,null,null,null,"Platinium","Disposición de efectivo",13,"PlatiniumDisposición de efectivo13",0.22500000000000001]
[null,null,null,null,null,null,null,null,null,null,null,null,null,null,null,null,null,null,null,null,null,null,null,null,null,null,null,null,null,null,null,null,null,null,null,null,null,null,null,null,null,null,null,null,null,null,null,null,null,null,null,null,null,null,"Platinium","Disposición de efectivo",14,"PlatiniumDisposición de efectivo14",0.22500000000000001]
[null,null,null,null,null,null,null,null,null,null,null,null,null,null,null,null,null,null,null,null,null,null,null,null,null,null,null,null,null,null,null,null,null,null,null,null,null,null,null,null,null,null,null,null,null,null,null,null,null,null,null,null,null,null,"Platinium","Disposición de efectivo",15,"PlatiniumDisposición de efectivo15",0.22500000000000001]
[null,null,null,null,null,null,null,null,null,null,null,null,null,null,null,null,null,null,null,null,null,null,null,null,null,null,null,null,null,null,null,null,null,null,null,null,null,null,null,null,null,null,null,null,null,null,null,null,null,null,null,null,null,null,"Platinium","Disposición de efectivo",16,"PlatiniumDisposición de efectivo16",0.22500000000000001]
[null,null,null,null,null,null,null,null,null,null,null,null,null,null,null,null,null,null,null,null,null,null,null,null,null,null,null,null,null,null,null,null,null,null,null,null,null,null,null,null,null,null,null,null,null,null,null,null,null,null,null,null,null,null,"Platinium","Disposición de efectivo",17,"PlatiniumDisposición de efectivo17",0.22500000000000001]
[null,null,null,null,null,null,null,null,null,null,null,null,null,null,null,null,null,null,null,null,null,null,null,null,null,null,null,null,null,null,null,null,null,null,null,null,null,null,null,null,null,null,null,null,null,null,null,null,null,null,null,null,null,null,"Platinium","Disposición de efectivo",18,"PlatiniumDisposición de efectivo18",0.22500000000000001]
[null,null,null,null,null,null,null,null,null,null,null,null,null,null,null,null,null,null,null,null,null,null,null,null,null,null,null,null,null,null,null,null,null,null,null,null,null,null,null,null,null,null,null,null,null,null,null,null,null,null,null,null,null,null,"Platinium","Disposición de efectivo",19,"PlatiniumDisposición de efectivo19",0.22500000000000001]
[null,null,null,null,null,null,null,null,null,null,null,null,null,null,null,null,null,null,null,null,null,null,null,null,null,null,null,null,null,null,null,null,null,null,null,null,null,null,null,null,null,null,null,null,null,null,null,null,null,null,null,null,null,null,"Platinium","Disposición de efectivo",20,"PlatiniumDisposición de efectivo20",0.22500000000000001]
[null,null,null,null,null,null,null,null,null,null,null,null,null,null,null,null,null,null,null,null,null,null,null,null,null,null,null,null,null,null,null,null,null,null,null,null,null,null,null,null,null,null,null,null,null,null,null,null,null,null,null,null,null,null,"Platinium","Disposición de efectivo",21,"PlatiniumDisposición de efectivo21",0.22500000000000001]
[null,null,null,null,null,null,null,null,null,null,null,null,null,null,null,null,null,null,null,null,null,null,null,null,null,null,null,null,null,null,null,null,null,null,null,null,null,null,null,null,null,null,null,null,null,null,null,null,null,null,null,null,null,null,"Platinium","Disposición de efectivo",22,"PlatiniumDisposición de efectivo22",0.22500000000000001]
[null,null,null,null,null,null,null,null,null,null,null,null,null,null,null,null,null,null,null,null,null,null,null,null,null,null,null,null,null,null,null,null,null,null,null,null,null,null,null,null,null,null,null,null,null,null,null,null,null,null,null,null,null,null,"Platinium","Disposición de efectivo",23,"PlatiniumDisposición de efectivo23",0.22500000000000001]
[null,null,null,null,null,null,null,null,null,null,null,null,null,null,null,null,null,null,null,null,null,null,null,null,null,null,null,null,null,null,null,null,null,null,null,null,null,null,null,null,null,null,null,null,null,null,null,null,null,null,null,null,null,null,"Platinium","Disposición de efectivo",24,"PlatiniumDisposición de efectivo24",0.22500000000000001]
[null,null,null,null,null,null,null,null,null,null,null,null,null,null,null,null,null,null,null,null,null,null,null,null,null,null,null,null,null,null,null,null,null,null,null,null,null,null,null,null,null,null,null,null,null,null,null,null,null,null,null,null,null,null,"Platinium","Disposición de efectivo",25,"PlatiniumDisposición de efectivo25",0.245]
[null,null,null,null,null,null,null,null,null,null,null,null,null,null,null,null,null,null,null,null,null,null,null,null,null,null,null,null,null,null,null,null,null,null,null,null,null,null,null,null,null,null,null,null,null,null,null,null,null,null,null,null,null,null,"Platinium","Disposición de efectivo",26,"PlatiniumDisposición de efectivo26",0.245]
[null,null,null,null,null,null,null,null,null,null,null,null,null,null,null,null,null,null,null,null,null,null,null,null,null,null,null,null,null,null,null,null,null,null,null,null,null,null,null,null,null,null,null,null,null,null,null,null,null,null,null,null,null,null,"Platinium","Disposición de efectivo",27,"PlatiniumDisposición de efectivo27",0.245]
[null,null,null,null,null,null,null,null,null,null,null,null,null,null,null,null,null,null,null,null,null,null,null,null,null,null,null,null,null,null,null,null,null,null,null,null,null,null,null,null,null,null,null,null,null,null,null,null,null,null,null,null,null,null,"Platinium","Disposición de efectivo",28,"PlatiniumDisposición de efectivo28",0.245]
[null,null,null,null,null,null,null,null,null,null,null,null,null,null,null,null,null,null,null,null,null,null,null,null,null,null,null,null,null,null,null,null,null,null,null,null,null,null,null,null,null,null,null,null,null,null,null,null,null,null,null,null,null,null,"Platinium","Disposición de efectivo",29,"PlatiniumDisposición de efectivo29",0.245]
[null,null,null,null,null,null,null,null,null,null,null,null,null,null,null,null,null,null,null,null,null,null,null,null,null,null,null,null,null,null,null,null,null,null,null,null,null,null,null,null,null,null,null,null,null,null,null,null,null,null,null,null,null,null,"Platinium","Disposición de efectivo",30,"PlatiniumDisposición de efectivo30",0.245]
[null,null,null,null,null,null,null,null,null,null,null,null,null,null,null,null,null,null,null,null,null,null,null,null,null,null,null,null,null,null,null,null,null,null,null,null,null,null,null,null,null,null,null,null,null,null,null,null,null,null,null,null,null,null,"Platinium","Disposición de efectivo",31,"PlatiniumDisposición de efectivo31",0.245]
[null,null,null,null,null,null,null,null,null,null,null,null,null,null,null,null,null,null,null,null,null,null,null,null,null,null,null,null,null,null,null,null,null,null,null,null,null,null,null,null,null,null,null,null,null,null,null,null,null,null,null,null,null,null,"Platinium","Disposición de efectivo",32,"PlatiniumDisposición de efectivo32",0.245]
[null,null,null,null,null,null,null,null,null,null,null,null,null,null,null,null,null,null,null,null,null,null,null,null,null,null,null,null,null,null,null,null,null,null,null,null,null,null,null,null,null,null,null,null,null,null,null,null,null,null,null,null,null,null,"Platinium","Disposición de efectivo",33,"PlatiniumDisposición de efectivo33",0.245]
[null,null,null,null,null,null,null,null,null,null,null,null,null,null,null,null,null,null,null,null,null,null,null,null,null,null,null,null,null,null,null,null,null,null,null,null,null,null,null,null,null,null,null,null,null,null,null,null,null,null,null,null,null,null,"Platinium","Disposición de efectivo",34,"PlatiniumDisposición de efectivo34",0.245]
[null,null,null,null,null,null,null,null,null,null,null,null,null,null,null,null,null,null,null,null,null,null,null,null,null,null,null,null,null,null,null,null,null,null,null,null,null,null,null,null,null,null,null,null,null,null,null,null,null,null,null,null,null,null,"Platinium","Disposición de efectivo",35,"PlatiniumDisposición de efectivo35",0.245]
[null,null,null,null,null,null,null,null,null,null,null,null,null,null,null,null,null,null,null,null,null,null,null,null,null,null,null,null,null,null,null,null,null,null,null,null,null,null,null,null,null,null,null,null,null,null,null,null,null,null,null,null,null,null,"Platinium","Disposición de efectivo",36,"PlatiniumDisposición de efectivo36",0.245]
[null,null,null,null,null,null,null,null,null,null,null,null,null,null,null,null,null,null,null,null,null,null,null,null,null,null,null,null,null,null,null,null,null,null,null,null,null,null,null,null,null,null,null,null,null,null,null,null,null,null,null,null,null,null,"Platinium","Disposición de efectivo",37,"PlatiniumDisposición de efectivo37",0.26500000000000001]
[null,null,null,null,null,null,null,null,null,null,null,null,null,null,null,null,null,null,null,null,null,null,null,null,null,null,null,null,null,null,null,null,null,null,null,null,null,null,null,null,null,null,null,null,null,null,null,null,null,null,null,null,null,null,"Platinium","Disposición de efectivo",38,"PlatiniumDisposición de efectivo38",0.26500000000000001]
[null,null,null,null,null,null,null,null,null,null,null,null,null,null,null,null,null,null,null,null,null,null,null,null,null,null,null,null,null,null,null,null,null,null,null,null,null,null,null,null,null,null,null,null,null,null,null,null,null,null,null,null,null,null,"Platinium","Disposición de efectivo",39,"PlatiniumDisposición de efectivo39",0.26500000000000001]
[null,null,null,null,null,null,null,null,null,null,null,null,null,null,null,null,null,null,null,null,null,null,null,null,null,null,null,null,null,null,null,null,null,null,null,null,null,null,null,null,null,null,null,null,null,null,null,null,null,null,null,null,null,null,"Platinium","Disposición de efectivo",40,"PlatiniumDisposición de efectivo40",0.26500000000000001]
[null,null,null,null,null,null,null,null,null,null,null,null,null,null,null,null,null,null,null,null,null,null,null,null,null,null,null,null,null,null,null,null,null,null,null,null,null,null,null,null,null,null,null,null,null,null,null,null,null,null,null,null,null,null,"Platinium","Disposición de efectivo",41,"PlatiniumDisposición de efectivo41",0.26500000000000001]
[null,null,null,null,null,null,null,null,null,null,null,null,null,null,null,null,null,null,null,null,null,null,null,null,null,null,null,null,null,null,null,null,null,null,null,null,null,null,null,null,null,null,null,null,null,null,null,null,null,null,null,null,null,null,"Platinium","Disposición de efectivo",42,"PlatiniumDisposición de efectivo42",0.26500000000000001]
[null,null,null,null,null,null,null,null,null,null,null,null,null,null,null,null,null,null,null,null,null,null,null,null,null,null,null,null,null,null,null,null,null,null,null,null,null,null,null,null,null,null,null,null,null,null,null,null,null,null,null,null,null,null,"Platinium","Disposición de efectivo",43,"PlatiniumDisposición de efectivo43",0.26500000000000001]
[null,null,null,null,null,null,null,null,null,null,null,null,null,null,null,null,null,null,null,null,null,null,null,null,null,null,null,null,null,null,null,null,null,null,null,null,null,null,null,null,null,null,null,null,null,null,null,null,null,null,null,null,null,null,"Platinium","Disposición de efectivo",44,"PlatiniumDisposición de efectivo44",0.26500000000000001]
[null,null,null,null,null,null,null,null,null,null,null,null,null,null,null,null,null,null,null,null,null,null,null,null,null,null,null,null,null,null,null,null,null,null,null,null,null,null,null,null,null,null,null,null,null,null,null,null,null,null,null,null,null,null,"Platinium","Disposición de efectivo",45,"PlatiniumDisposición de efectivo45",0.26500000000000001]
[null,null,null,null,null,null,null,null,null,null,null,null,null,null,null,null,null,null,null,null,null,null,null,null,null,null,null,null,null,null,null,null,null,null,null,null,null,null,null,null,null,null,null,null,null,null,null,null,null,null,null,null,null,null,"Platinium","Disposición de efectivo",46,"PlatiniumDisposición de efectivo46",0.26500000000000001]
[null,null,null,null,null,null,null,null,null,null,null,null,null,null,null,null,null,null,null,null,null,null,null,null,null,null,null,null,null,null,null,null,null,null,null,null,null,null,null,null,null,null,null,null,null,null,null,null,null,null,null,null,null,null,"Platinium","Disposición de efectivo",47,"PlatiniumDisposición de efectivo47",0.26500000000000001]
[null,null,null,null,null,null,null,null,null,null,null,null,null,null,null,null,null,null,null,null,null,null,null,null,null,null,null,null,null,null,null,null,null,null,null,null,null,null,null,null,null,null,null,null,null,null,null,null,null,null,null,null,null,null,"Platinium","Disposición de efectivo",48,"PlatiniumDisposición de efectivo48",0.26500000000000001]
[null,null,null,null,null,null,null,null,null,null,null,null,null,null,null,null,null,null,null,null,null,null,null,null,null,null,null,null,null,null,null,null,null,null,null,null,null,null,null,null,null,null,null,null,null,null,null,null,null,null,null,null,null,null,"Clásica Sin Seg. Desgravamen","Compra",1,"Clásica Sin Seg. DesgravamenCompra1",0.36]
[null,null,null,null,null,null,null,null,null,null,null,null,null,null,null,null,null,null,null,null,null,null,null,null,null,null,null,null,null,null,null,null,null,null,null,null,null,null,null,null,null,null,null,null,null,null,null,null,null,null,null,null,null,null,"Clásica Sin Seg. Desgravamen","Compra",{"$f":"+BE291+1","v":2},{"$f":"BC292&BD292&BE292","v":"Clásica Sin Seg. DesgravamenCompra2"},0.36]
[null,null,null,null,null,null,null,null,null,null,null,null,null,null,null,null,null,null,null,null,null,null,null,null,null,null,null,null,null,null,null,null,null,null,null,null,null,null,null,null,null,null,null,null,null,null,null,null,null,null,null,null,null,null,"Clásica Sin Seg. Desgravamen","Compra",{"$f":"+BE292+1","v":3},"Clásica Sin Seg. DesgravamenCompra3",0.36]
[null,null,null,null,null,null,null,null,null,null,null,null,null,null,null,null,null,null,null,null,null,null,null,null,null,null,null,null,null,null,null,null,null,null,null,null,null,null,null,null,null,null,null,null,null,null,null,null,null,null,null,null,null,null,"Clásica Sin Seg. Desgravamen","Compra",{"$f":"+BE293+1","v":4},"Clásica Sin Seg. DesgravamenCompra4",0.36]
[null,null,null,null,null,null,null,null,null,null,null,null,null,null,null,null,null,null,null,null,null,null,null,null,null,null,null,null,null,null,null,null,null,null,null,null,null,null,null,null,null,null,null,null,null,null,null,null,null,null,null,null,null,null,"Clásica Sin Seg. Desgravamen","Compra",5,"Clásica Sin Seg. DesgravamenCompra5",0.36]
[null,null,null,null,null,null,null,null,null,null,null,null,null,null,null,null,null,null,null,null,null,null,null,null,null,null,null,null,null,null,null,null,null,null,null,null,null,null,null,null,null,null,null,null,null,null,null,null,null,null,null,null,null,null,"Clásica Sin Seg. Desgravamen","Compra",6,"Clásica Sin Seg. DesgravamenCompra6",0.36]
[null,null,null,null,null,null,null,null,null,null,null,null,null,null,null,null,null,null,null,null,null,null,null,null,null,null,null,null,null,null,null,null,null,null,null,null,null,null,null,null,null,null,null,null,null,null,null,null,null,null,null,null,null,null,"Clásica Sin Seg. Desgravamen","Compra",7,"Clásica Sin Seg. DesgravamenCompra7",0.36]
[null,null,null,null,null,null,null,null,null,null,null,null,null,null,null,null,null,null,null,null,null,null,null,null,null,null,null,null,null,null,null,null,null,null,null,null,null,null,null,null,null,null,null,null,null,null,null,null,null,null,null,null,null,null,"Clásica Sin Seg. Desgravamen","Compra",8,"Clásica Sin Seg. DesgravamenCompra8",0.36]
[null,null,null,null,null,null,null,null,null,null,null,null,null,null,null,null,null,null,null,null,null,null,null,null,null,null,null,null,null,null,null,null,null,null,null,null,null,null,null,null,null,null,null,null,null,null,null,null,null,null,null,null,null,null,"Clásica Sin Seg. Desgravamen","Compra",9,"Clásica Sin Seg. DesgravamenCompra9",0.36]
[null,null,null,null,null,null,null,null,null,null,null,null,null,null,null,null,null,null,null,null,null,null,null,null,null,null,null,null,null,null,null,null,null,null,null,null,null,null,null,null,null,null,null,null,null,null,null,null,null,null,null,null,null,null,"Clásica Sin Seg. Desgravamen","Compra",10,"Clásica Sin Seg. DesgravamenCompra10",0.36]
[null,null,null,null,null,null,null,null,null,null,null,null,null,null,null,null,null,null,null,null,null,null,null,null,null,null,null,null,null,null,null,null,null,null,null,null,null,null,null,null,null,null,null,null,null,null,null,null,null,null,null,null,null,null,"Clásica Sin Seg. Desgravamen","Compra",11,"Clásica Sin Seg. DesgravamenCompra11",0.36]
[null,null,null,null,null,null,null,null,null,null,null,null,null,null,null,null,null,null,null,null,null,null,null,null,null,null,null,null,null,null,null,null,null,null,null,null,null,null,null,null,null,null,null,null,null,null,null,null,null,null,null,null,null,null,"Clásica Sin Seg. Desgravamen","Compra",12,"Clásica Sin Seg. DesgravamenCompra12",0.36]
[null,null,null,null,null,null,null,null,null,null,null,null,null,null,null,null,null,null,null,null,null,null,null,null,null,null,null,null,null,null,null,null,null,null,null,null,null,null,null,null,null,null,null,null,null,null,null,null,null,null,null,null,null,null,"Clásica Sin Seg. Desgravamen","Compra",13,"Clásica Sin Seg. DesgravamenCompra13",0.36]
[null,null,null,null,null,null,null,null,null,null,null,null,null,null,null,null,null,null,null,null,null,null,null,null,null,null,null,null,null,null,null,null,null,null,null,null,null,null,null,null,null,null,null,null,null,null,null,null,null,null,null,null,null,null,"Clásica Sin Seg. Desgravamen","Compra",14,"Clásica Sin Seg. DesgravamenCompra14",0.36]
[null,null,null,null,null,null,null,null,null,null,null,null,null,null,null,null,null,null,null,null,null,null,null,null,null,null,null,null,null,null,null,null,null,null,null,null,null,null,null,null,null,null,null,null,null,null,null,null,null,null,null,null,null,null,"Clásica Sin Seg. Desgravamen","Compra",15,"Clásica Sin Seg. DesgravamenCompra15",0.36]
[null,null,null,null,null,null,null,null,null,null,null,null,null,null,null,null,null,null,null,null,null,null,null,null,null,null,null,null,null,null,null,null,null,null,null,null,null,null,null,null,null,null,null,null,null,null,null,null,null,null,null,null,null,null,"Clásica Sin Seg. Desgravamen","Compra",16,"Clásica Sin Seg. DesgravamenCompra16",0.36]
[null,null,null,null,null,null,null,null,null,null,null,null,null,null,null,null,null,null,null,null,null,null,null,null,null,null,null,null,null,null,null,null,null,null,null,null,null,null,null,null,null,null,null,null,null,null,null,null,null,null,null,null,null,null,"Clásica Sin Seg. Desgravamen","Compra",17,"Clásica Sin Seg. DesgravamenCompra17",0.36]
[null,null,null,null,null,null,null,null,null,null,null,null,null,null,null,null,null,null,null,null,null,null,null,null,null,null,null,null,null,null,null,null,null,null,null,null,null,null,null,null,null,null,null,null,null,null,null,null,null,null,null,null,null,null,"Clásica Sin Seg. Desgravamen","Compra",18,"Clásica Sin Seg. DesgravamenCompra18",0.36]
[null,null,null,null,null,null,null,null,null,null,null,null,null,null,null,null,null,null,null,null,null,null,null,null,null,null,null,null,null,null,null,null,null,null,null,null,null,null,null,null,null,null,null,null,null,null,null,null,null,null,null,null,null,null,"Clásica Sin Seg. Desgravamen","Compra",19,"Clásica Sin Seg. DesgravamenCompra19",0.36]
[null,null,null,null,null,null,null,null,null,null,null,null,null,null,null,null,null,null,null,null,null,null,null,null,null,null,null,null,null,null,null,null,null,null,null,null,null,null,null,null,null,null,null,null,null,null,null,null,null,null,null,null,null,null,"Clásica Sin Seg. Desgravamen","Compra",20,"Clásica Sin Seg. DesgravamenCompra20",0.36]
[null,null,null,null,null,null,null,null,null,null,null,null,null,null,null,null,null,null,null,null,null,null,null,null,null,null,null,null,null,null,null,null,null,null,null,null,null,null,null,null,null,null,null,null,null,null,null,null,null,null,null,null,null,null,"Clásica Sin Seg. Desgravamen","Compra",21,"Clásica Sin Seg. DesgravamenCompra21",0.36]
[null,null,null,null,null,null,null,null,null,null,null,null,null,null,null,null,null,null,null,null,null,null,null,null,null,null,null,null,null,null,null,null,null,null,null,null,null,null,null,null,null,null,null,null,null,null,null,null,null,null,null,null,null,null,"Clásica Sin Seg. Desgravamen","Compra",22,"Clásica Sin Seg. DesgravamenCompra22",0.36]
[null,null,null,null,null,null,null,null,null,null,null,null,null,null,null,null,null,null,null,null,null,null,null,null,null,null,null,null,null,null,null,null,null,null,null,null,null,null,null,null,null,null,null,null,null,null,null,null,null,null,null,null,null,null,"Clásica Sin Seg. Desgravamen","Compra",23,"Clásica Sin Seg. DesgravamenCompra23",0.36]
[null,null,null,null,null,null,null,null,null,null,null,null,null,null,null,null,null,null,null,null,null,null,null,null,null,null,null,null,null,null,null,null,null,null,null,null,null,null,null,null,null,null,null,null,null,null,null,null,null,null,null,null,null,null,"Clásica Sin Seg. Desgravamen","Compra",24,"Clásica Sin Seg. DesgravamenCompra24",0.36]
[null,null,null,null,null,null,null,null,null,null,null,null,null,null,null,null,null,null,null,null,null,null,null,null,null,null,null,null,null,null,null,null,null,null,null,null,null,null,null,null,null,null,null,null,null,null,null,null,null,null,null,null,null,null,"Clásica Sin Seg. Desgravamen","Compra",25,"Clásica Sin Seg. DesgravamenCompra25",0.38]
[null,null,null,null,null,null,null,null,null,null,null,null,null,null,null,null,null,null,null,null,null,null,null,null,null,null,null,null,null,null,null,null,null,null,null,null,null,null,null,null,null,null,null,null,null,null,null,null,null,null,null,null,null,null,"Clásica Sin Seg. Desgravamen","Compra",26,"Clásica Sin Seg. DesgravamenCompra26",0.38]
[null,null,null,null,null,null,null,null,null,null,null,null,null,null,null,null,null,null,null,null,null,null,null,null,null,null,null,null,null,null,null,null,null,null,null,null,null,null,null,null,null,null,null,null,null,null,null,null,null,null,null,null,null,null,"Clásica Sin Seg. Desgravamen","Compra",27,"Clásica Sin Seg. DesgravamenCompra27",0.38]
[null,null,null,null,null,null,null,null,null,null,null,null,null,null,null,null,null,null,null,null,null,null,null,null,null,null,null,null,null,null,null,null,null,null,null,null,null,null,null,null,null,null,null,null,null,null,null,null,null,null,null,null,null,null,"Clásica Sin Seg. Desgravamen","Compra",28,"Clásica Sin Seg. DesgravamenCompra28",0.38]
[null,null,null,null,null,null,null,null,null,null,null,null,null,null,null,null,null,null,null,null,null,null,null,null,null,null,null,null,null,null,null,null,null,null,null,null,null,null,null,null,null,null,null,null,null,null,null,null,null,null,null,null,null,null,"Clásica Sin Seg. Desgravamen","Compra",29,"Clásica Sin Seg. DesgravamenCompra29",0.38]
[null,null,null,null,null,null,null,null,null,null,null,null,null,null,null,null,null,null,null,null,null,null,null,null,null,null,null,null,null,null,null,null,null,null,null,null,null,null,null,null,null,null,null,null,null,null,null,null,null,null,null,null,null,null,"Clásica Sin Seg. Desgravamen","Compra",30,"Clásica Sin Seg. DesgravamenCompra30",0.38]
[null,null,null,null,null,null,null,null,null,null,null,null,null,null,null,null,null,null,null,null,null,null,null,null,null,null,null,null,null,null,null,null,null,null,null,null,null,null,null,null,null,null,null,null,null,null,null,null,null,null,null,null,null,null,"Clásica Sin Seg. Desgravamen","Compra",31,"Clásica Sin Seg. DesgravamenCompra31",0.38]
[null,null,null,null,null,null,null,null,null,null,null,null,null,null,null,null,null,null,null,null,null,null,null,null,null,null,null,null,null,null,null,null,null,null,null,null,null,null,null,null,null,null,null,null,null,null,null,null,null,null,null,null,null,null,"Clásica Sin Seg. Desgravamen","Compra",32,"Clásica Sin Seg. DesgravamenCompra32",0.38]
[null,null,null,null,null,null,null,null,null,null,null,null,null,null,null,null,null,null,null,null,null,null,null,null,null,null,null,null,null,null,null,null,null,null,null,null,null,null,null,null,null,null,null,null,null,null,null,null,null,null,null,null,null,null,"Clásica Sin Seg. Desgravamen","Compra",33,"Clásica Sin Seg. DesgravamenCompra33",0.38]
[null,null,null,null,null,null,null,null,null,null,null,null,null,null,null,null,null,null,null,null,null,null,null,null,null,null,null,null,null,null,null,null,null,null,null,null,null,null,null,null,null,null,null,null,null,null,null,null,null,null,null,null,null,null,"Clásica Sin Seg. Desgravamen","Compra",34,"Clásica Sin Seg. DesgravamenCompra34",0.38]
[null,null,null,null,null,null,null,null,null,null,null,null,null,null,null,null,null,null,null,null,null,null,null,null,null,null,null,null,null,null,null,null,null,null,null,null,null,null,null,null,null,null,null,null,null,null,null,null,null,null,null,null,null,null,"Clásica Sin Seg. Desgravamen","Compra",35,"Clásica Sin Seg. DesgravamenCompra35",0.38]
[null,null,null,null,null,null,null,null,null,null,null,null,null,null,null,null,null,null,null,null,null,null,null,null,null,null,null,null,null,null,null,null,null,null,null,null,null,null,null,null,null,null,null,null,null,null,null,null,null,null,null,null,null,null,"Clásica Sin Seg. Desgravamen","Compra",36,"Clásica Sin Seg. DesgravamenCompra36",0.38]
[null,null,null,null,null,null,null,null,null,null,null,null,null,null,null,null,null,null,null,null,null,null,null,null,null,null,null,null,null,null,null,null,null,null,null,null,null,null,null,null,null,null,null,null,null,null,null,null,null,null,null,null,null,null,"Clásica Sin Seg. Desgravamen","Compra",37,"Clásica Sin Seg. DesgravamenCompra37",0.42]
[null,null,null,null,null,null,null,null,null,null,null,null,null,null,null,null,null,null,null,null,null,null,null,null,null,null,null,null,null,null,null,null,null,null,null,null,null,null,null,null,null,null,null,null,null,null,null,null,null,null,null,null,null,null,"Clásica Sin Seg. Desgravamen","Compra",38,"Clásica Sin Seg. DesgravamenCompra38",0.42]
[null,null,null,null,null,null,null,null,null,null,null,null,null,null,null,null,null,null,null,null,null,null,null,null,null,null,null,null,null,null,null,null,null,null,null,null,null,null,null,null,null,null,null,null,null,null,null,null,null,null,null,null,null,null,"Clásica Sin Seg. Desgravamen","Compra",39,"Clásica Sin Seg. DesgravamenCompra39",0.42]
[null,null,null,null,null,null,null,null,null,null,null,null,null,null,null,null,null,null,null,null,null,null,null,null,null,null,null,null,null,null,null,null,null,null,null,null,null,null,null,null,null,null,null,null,null,null,null,null,null,null,null,null,null,null,"Clásica Sin Seg. Desgravamen","Compra",40,"Clásica Sin Seg. DesgravamenCompra40",0.42]
[null,null,null,null,null,null,null,null,null,null,null,null,null,null,null,null,null,null,null,null,null,null,null,null,null,null,null,null,null,null,null,null,null,null,null,null,null,null,null,null,null,null,null,null,null,null,null,null,null,null,null,null,null,null,"Clásica Sin Seg. Desgravamen","Compra",41,"Clásica Sin Seg. DesgravamenCompra41",0.42]
[null,null,null,null,null,null,null,null,null,null,null,null,null,null,null,null,null,null,null,null,null,null,null,null,null,null,null,null,null,null,null,null,null,null,null,null,null,null,null,null,null,null,null,null,null,null,null,null,null,null,null,null,null,null,"Clásica Sin Seg. Desgravamen","Compra",42,"Clásica Sin Seg. DesgravamenCompra42",0.42]
[null,null,null,null,null,null,null,null,null,null,null,null,null,null,null,null,null,null,null,null,null,null,null,null,null,null,null,null,null,null,null,null,null,null,null,null,null,null,null,null,null,null,null,null,null,null,null,null,null,null,null,null,null,null,"Clásica Sin Seg. Desgravamen","Compra",43,"Clásica Sin Seg. DesgravamenCompra43",0.42]
[null,null,null,null,null,null,null,null,null,null,null,null,null,null,null,null,null,null,null,null,null,null,null,null,null,null,null,null,null,null,null,null,null,null,null,null,null,null,null,null,null,null,null,null,null,null,null,null,null,null,null,null,null,null,"Clásica Sin Seg. Desgravamen","Compra",44,"Clásica Sin Seg. DesgravamenCompra44",0.42]
[null,null,null,null,null,null,null,null,null,null,null,null,null,null,null,null,null,null,null,null,null,null,null,null,null,null,null,null,null,null,null,null,null,null,null,null,null,null,null,null,null,null,null,null,null,null,null,null,null,null,null,null,null,null,"Clásica Sin Seg. Desgravamen","Compra",45,"Clásica Sin Seg. DesgravamenCompra45",0.42]
[null,null,null,null,null,null,null,null,null,null,null,null,null,null,null,null,null,null,null,null,null,null,null,null,null,null,null,null,null,null,null,null,null,null,null,null,null,null,null,null,null,null,null,null,null,null,null,null,null,null,null,null,null,null,"Clásica Sin Seg. Desgravamen","Compra",46,"Clásica Sin Seg. DesgravamenCompra46",0.42]
[null,null,null,null,null,null,null,null,null,null,null,null,null,null,null,null,null,null,null,null,null,null,null,null,null,null,null,null,null,null,null,null,null,null,null,null,null,null,null,null,null,null,null,null,null,null,null,null,null,null,null,null,null,null,"Clásica Sin Seg. Desgravamen","Compra",47,"Clásica Sin Seg. DesgravamenCompra47",0.42]
[null,null,null,null,null,null,null,null,null,null,null,null,null,null,null,null,null,null,null,null,null,null,null,null,null,null,null,null,null,null,null,null,null,null,null,null,null,null,null,null,null,null,null,null,null,null,null,null,null,null,null,null,null,null,"Clásica Sin Seg. Desgravamen","Compra",48,"Clásica Sin Seg. DesgravamenCompra48",0.42]
[null,null,null,null,null,null,null,null,null,null,null,null,null,null,null,null,null,null,null,null,null,null,null,null,null,null,null,null,null,null,null,null,null,null,null,null,null,null,null,null,null,null,null,null,null,null,null,null,null,null,null,null,null,null,"Clásica Sin Seg. Desgravamen","Disposición de efectivo",1,"Clásica Sin Seg. DesgravamenDisposición de efectivo1",0.41]
[null,null,null,null,null,null,null,null,null,null,null,null,null,null,null,null,null,null,null,null,null,null,null,null,null,null,null,null,null,null,null,null,null,null,null,null,null,null,null,null,null,null,null,null,null,null,null,null,null,null,null,null,null,null,"Clásica Sin Seg. Desgravamen","Disposición de efectivo",{"$f":"+BE339+1","v":2},{"$f":"BC340&BD340&BE340","v":"Clásica Sin Seg. DesgravamenDisposición de efectivo2"},0.41]
[null,null,null,null,null,null,null,null,null,null,null,null,null,null,null,null,null,null,null,null,null,null,null,null,null,null,null,null,null,null,null,null,null,null,null,null,null,null,null,null,null,null,null,null,null,null,null,null,null,null,null,null,null,null,"Clásica Sin Seg. Desgravamen","Disposición de efectivo",{"$f":"+BE340+1","v":3},"Clásica Sin Seg. DesgravamenDisposición de efectivo3",0.41]
[null,null,null,null,null,null,null,null,null,null,null,null,null,null,null,null,null,null,null,null,null,null,null,null,null,null,null,null,null,null,null,null,null,null,null,null,null,null,null,null,null,null,null,null,null,null,null,null,null,null,null,null,null,null,"Clásica Sin Seg. Desgravamen","Disposición de efectivo",{"$f":"+BE341+1","v":4},"Clásica Sin Seg. DesgravamenDisposición de efectivo4",0.41]
[null,null,null,null,null,null,null,null,null,null,null,null,null,null,null,null,null,null,null,null,null,null,null,null,null,null,null,null,null,null,null,null,null,null,null,null,null,null,null,null,null,null,null,null,null,null,null,null,null,null,null,null,null,null,"Clásica Sin Seg. Desgravamen","Disposición de efectivo",5,"Clásica Sin Seg. DesgravamenDisposición de efectivo5",0.41]
[null,null,null,null,null,null,null,null,null,null,null,null,null,null,null,null,null,null,null,null,null,null,null,null,null,null,null,null,null,null,null,null,null,null,null,null,null,null,null,null,null,null,null,null,null,null,null,null,null,null,null,null,null,null,"Clásica Sin Seg. Desgravamen","Disposición de efectivo",6,"Clásica Sin Seg. DesgravamenDisposición de efectivo6",0.41]
[null,null,null,null,null,null,null,null,null,null,null,null,null,null,null,null,null,null,null,null,null,null,null,null,null,null,null,null,null,null,null,null,null,null,null,null,null,null,null,null,null,null,null,null,null,null,null,null,null,null,null,null,null,null,"Clásica Sin Seg. Desgravamen","Disposición de efectivo",7,"Clásica Sin Seg. DesgravamenDisposición de efectivo7",0.41]
[null,null,null,null,null,null,null,null,null,null,null,null,null,null,null,null,null,null,null,null,null,null,null,null,null,null,null,null,null,null,null,null,null,null,null,null,null,null,null,null,null,null,null,null,null,null,null,null,null,null,null,null,null,null,"Clásica Sin Seg. Desgravamen","Disposición de efectivo",8,"Clásica Sin Seg. DesgravamenDisposición de efectivo8",0.41]
[null,null,null,null,null,null,null,null,null,null,null,null,null,null,null,null,null,null,null,null,null,null,null,null,null,null,null,null,null,null,null,null,null,null,null,null,null,null,null,null,null,null,null,null,null,null,null,null,null,null,null,null,null,null,"Clásica Sin Seg. Desgravamen","Disposición de efectivo",9,"Clásica Sin Seg. DesgravamenDisposición de efectivo9",0.41]
[null,null,null,null,null,null,null,null,null,null,null,null,null,null,null,null,null,null,null,null,null,null,null,null,null,null,null,null,null,null,null,null,null,null,null,null,null,null,null,null,null,null,null,null,null,null,null,null,null,null,null,null,null,null,"Clásica Sin Seg. Desgravamen","Disposición de efectivo",10,"Clásica Sin Seg. DesgravamenDisposición de efectivo10",0.41]
[null,null,null,null,null,null,null,null,null,null,null,null,null,null,null,null,null,null,null,null,null,null,null,null,null,null,null,null,null,null,null,null,null,null,null,null,null,null,null,null,null,null,null,null,null,null,null,null,null,null,null,null,null,null,"Clásica Sin Seg. Desgravamen","Disposición de efectivo",11,"Clásica Sin Seg. DesgravamenDisposición de efectivo11",0.41]
[null,null,null,null,null,null,null,null,null,null,null,null,null,null,null,null,null,null,null,null,null,null,null,null,null,null,null,null,null,null,null,null,null,null,null,null,null,null,null,null,null,null,null,null,null,null,null,null,null,null,null,null,null,null,"Clásica Sin Seg. Desgravamen","Disposición de efectivo",12,"Clásica Sin Seg. DesgravamenDisposición de efectivo12",0.41]
[null,null,null,null,null,null,null,null,null,null,null,null,null,null,null,null,null,null,null,null,null,null,null,null,null,null,null,null,null,null,null,null,null,null,null,null,null,null,null,null,null,null,null,null,null,null,null,null,null,null,null,null,null,null,"Clásica Sin Seg. Desgravamen","Disposición de efectivo",13,"Clásica Sin Seg. DesgravamenDisposición de efectivo13",0.41]
[null,null,null,null,null,null,null,null,null,null,null,null,null,null,null,null,null,null,null,null,null,null,null,null,null,null,null,null,null,null,null,null,null,null,null,null,null,null,null,null,null,null,null,null,null,null,null,null,null,null,null,null,null,null,"Clásica Sin Seg. Desgravamen","Disposición de efectivo",14,"Clásica Sin Seg. DesgravamenDisposición de efectivo14",0.41]
[null,null,null,null,null,null,null,null,null,null,null,null,null,null,null,null,null,null,null,null,null,null,null,null,null,null,null,null,null,null,null,null,null,null,null,null,null,null,null,null,null,null,null,null,null,null,null,null,null,null,null,null,null,null,"Clásica Sin Seg. Desgravamen","Disposición de efectivo",15,"Clásica Sin Seg. DesgravamenDisposición de efectivo15",0.41]
[null,null,null,null,null,null,null,null,null,null,null,null,null,null,null,null,null,null,null,null,null,null,null,null,null,null,null,null,null,null,null,null,null,null,null,null,null,null,null,null,null,null,null,null,null,null,null,null,null,null,null,null,null,null,"Clásica Sin Seg. Desgravamen","Disposición de efectivo",16,"Clásica Sin Seg. DesgravamenDisposición de efectivo16",0.41]
[null,null,null,null,null,null,null,null,null,null,null,null,null,null,null,null,null,null,null,null,null,null,null,null,null,null,null,null,null,null,null,null,null,null,null,null,null,null,null,null,null,null,null,null,null,null,null,null,null,null,null,null,null,null,"Clásica Sin Seg. Desgravamen","Disposición de efectivo",17,"Clásica Sin Seg. DesgravamenDisposición de efectivo17",0.41]
[null,null,null,null,null,null,null,null,null,null,null,null,null,null,null,null,null,null,null,null,null,null,null,null,null,null,null,null,null,null,null,null,null,null,null,null,null,null,null,null,null,null,null,null,null,null,null,null,null,null,null,null,null,null,"Clásica Sin Seg. Desgravamen","Disposición de efectivo",18,"Clásica Sin Seg. DesgravamenDisposición de efectivo18",0.41]
[null,null,null,null,null,null,null,null,null,null,null,null,null,null,null,null,null,null,null,null,null,null,null,null,null,null,null,null,null,null,null,null,null,null,null,null,null,null,null,null,null,null,null,null,null,null,null,null,null,null,null,null,null,null,"Clásica Sin Seg. Desgravamen","Disposición de efectivo",19,"Clásica Sin Seg. DesgravamenDisposición de efectivo19",0.41]
[null,null,null,null,null,null,null,null,null,null,null,null,null,null,null,null,null,null,null,null,null,null,null,null,null,null,null,null,null,null,null,null,null,null,null,null,null,null,null,null,null,null,null,null,null,null,null,null,null,null,null,null,null,null,"Clásica Sin Seg. Desgravamen","Disposición de efectivo",20,"Clásica Sin Seg. DesgravamenDisposición de efectivo20",0.41]
[null,null,null,null,null,null,null,null,null,null,null,null,null,null,null,null,null,null,null,null,null,null,null,null,null,null,null,null,null,null,null,null,null,null,null,null,null,null,null,null,null,null,null,null,null,null,null,null,null,null,null,null,null,null,"Clásica Sin Seg. Desgravamen","Disposición de efectivo",21,"Clásica Sin Seg. DesgravamenDisposición de efectivo21",0.41]
[null,null,null,null,null,null,null,null,null,null,null,null,null,null,null,null,null,null,null,null,null,null,null,null,null,null,null,null,null,null,null,null,null,null,null,null,null,null,null,null,null,null,null,null,null,null,null,null,null,null,null,null,null,null,"Clásica Sin Seg. Desgravamen","Disposición de efectivo",22,"Clásica Sin Seg. DesgravamenDisposición de efectivo22",0.41]
[null,null,null,null,null,null,null,null,null,null,null,null,null,null,null,null,null,null,null,null,null,null,null,null,null,null,null,null,null,null,null,null,null,null,null,null,null,null,null,null,null,null,null,null,null,null,null,null,null,null,null,null,null,null,"Clásica Sin Seg. Desgravamen","Disposición de efectivo",23,"Clásica Sin Seg. DesgravamenDisposición de efectivo23",0.41]
[null,null,null,null,null,null,null,null,null,null,null,null,null,null,null,null,null,null,null,null,null,null,null,null,null,null,null,null,null,null,null,null,null,null,null,null,null,null,null,null,null,null,null,null,null,null,null,null,null,null,null,null,null,null,"Clásica Sin Seg. Desgravamen","Disposición de efectivo",24,"Clásica Sin Seg. DesgravamenDisposición de efectivo24",0.41]
[null,null,null,null,null,null,null,null,null,null,null,null,null,null,null,null,null,null,null,null,null,null,null,null,null,null,null,null,null,null,null,null,null,null,null,null,null,null,null,null,null,null,null,null,null,null,null,null,null,null,null,null,null,null,"Clásica Sin Seg. Desgravamen","Disposición de efectivo",25,"Clásica Sin Seg. DesgravamenDisposición de efectivo25",0.43]
[null,null,null,null,null,null,null,null,null,null,null,null,null,null,null,null,null,null,null,null,null,null,null,null,null,null,null,null,null,null,null,null,null,null,null,null,null,null,null,null,null,null,null,null,null,null,null,null,null,null,null,null,null,null,"Clásica Sin Seg. Desgravamen","Disposición de efectivo",26,"Clásica Sin Seg. DesgravamenDisposición de efectivo26",0.43]
[null,null,null,null,null,null,null,null,null,null,null,null,null,null,null,null,null,null,null,null,null,null,null,null,null,null,null,null,null,null,null,null,null,null,null,null,null,null,null,null,null,null,null,null,null,null,null,null,null,null,null,null,null,null,"Clásica Sin Seg. Desgravamen","Disposición de efectivo",27,"Clásica Sin Seg. DesgravamenDisposición de efectivo27",0.43]
[null,null,null,null,null,null,null,null,null,null,null,null,null,null,null,null,null,null,null,null,null,null,null,null,null,null,null,null,null,null,null,null,null,null,null,null,null,null,null,null,null,null,null,null,null,null,null,null,null,null,null,null,null,null,"Clásica Sin Seg. Desgravamen","Disposición de efectivo",28,"Clásica Sin Seg. DesgravamenDisposición de efectivo28",0.43]
[null,null,null,null,null,null,null,null,null,null,null,null,null,null,null,null,null,null,null,null,null,null,null,null,null,null,null,null,null,null,null,null,null,null,null,null,null,null,null,null,null,null,null,null,null,null,null,null,null,null,null,null,null,null,"Clásica Sin Seg. Desgravamen","Disposición de efectivo",29,"Clásica Sin Seg. DesgravamenDisposición de efectivo29",0.43]
[null,null,null,null,null,null,null,null,null,null,null,null,null,null,null,null,null,null,null,null,null,null,null,null,null,null,null,null,null,null,null,null,null,null,null,null,null,null,null,null,null,null,null,null,null,null,null,null,null,null,null,null,null,null,"Clásica Sin Seg. Desgravamen","Disposición de efectivo",30,"Clásica Sin Seg. DesgravamenDisposición de efectivo30",0.43]
[null,null,null,null,null,null,null,null,null,null,null,null,null,null,null,null,null,null,null,null,null,null,null,null,null,null,null,null,null,null,null,null,null,null,null,null,null,null,null,null,null,null,null,null,null,null,null,null,null,null,null,null,null,null,"Clásica Sin Seg. Desgravamen","Disposición de efectivo",31,"Clásica Sin Seg. DesgravamenDisposición de efectivo31",0.43]
[null,null,null,null,null,null,null,null,null,null,null,null,null,null,null,null,null,null,null,null,null,null,null,null,null,null,null,null,null,null,null,null,null,null,null,null,null,null,null,null,null,null,null,null,null,null,null,null,null,null,null,null,null,null,"Clásica Sin Seg. Desgravamen","Disposición de efectivo",32,"Clásica Sin Seg. DesgravamenDisposición de efectivo32",0.43]
[null,null,null,null,null,null,null,null,null,null,null,null,null,null,null,null,null,null,null,null,null,null,null,null,null,null,null,null,null,null,null,null,null,null,null,null,null,null,null,null,null,null,null,null,null,null,null,null,null,null,null,null,null,null,"Clásica Sin Seg. Desgravamen","Disposición de efectivo",33,"Clásica Sin Seg. DesgravamenDisposición de efectivo33",0.43]
[null,null,null,null,null,null,null,null,null,null,null,null,null,null,null,null,null,null,null,null,null,null,null,null,null,null,null,null,null,null,null,null,null,null,null,null,null,null,null,null,null,null,null,null,null,null,null,null,null,null,null,null,null,null,"Clásica Sin Seg. Desgravamen","Disposición de efectivo",34,"Clásica Sin Seg. DesgravamenDisposición de efectivo34",0.43]
[null,null,null,null,null,null,null,null,null,null,null,null,null,null,null,null,null,null,null,null,null,null,null,null,null,null,null,null,null,null,null,null,null,null,null,null,null,null,null,null,null,null,null,null,null,null,null,null,null,null,null,null,null,null,"Clásica Sin Seg. Desgravamen","Disposición de efectivo",35,"Clásica Sin Seg. DesgravamenDisposición de efectivo35",0.43]
[null,null,null,null,null,null,null,null,null,null,null,null,null,null,null,null,null,null,null,null,null,null,null,null,null,null,null,null,null,null,null,null,null,null,null,null,null,null,null,null,null,null,null,null,null,null,null,null,null,null,null,null,null,null,"Clásica Sin Seg. Desgravamen","Disposición de efectivo",36,"Clásica Sin Seg. DesgravamenDisposición de efectivo36",0.43]
[null,null,null,null,null,null,null,null,null,null,null,null,null,null,null,null,null,null,null,null,null,null,null,null,null,null,null,null,null,null,null,null,null,null,null,null,null,null,null,null,null,null,null,null,null,null,null,null,null,null,null,null,null,null,"Clásica Sin Seg. Desgravamen","Disposición de efectivo",37,"Clásica Sin Seg. DesgravamenDisposición de efectivo37",0.47]
[null,null,null,null,null,null,null,null,null,null,null,null,null,null,null,null,null,null,null,null,null,null,null,null,null,null,null,null,null,null,null,null,null,null,null,null,null,null,null,null,null,null,null,null,null,null,null,null,null,null,null,null,null,null,"Clásica Sin Seg. Desgravamen","Disposición de efectivo",38,"Clásica Sin Seg. DesgravamenDisposición de efectivo38",0.47]
[null,null,null,null,null,null,null,null,null,null,null,null,null,null,null,null,null,null,null,null,null,null,null,null,null,null,null,null,null,null,null,null,null,null,null,null,null,null,null,null,null,null,null,null,null,null,null,null,null,null,null,null,null,null,"Clásica Sin Seg. Desgravamen","Disposición de efectivo",39,"Clásica Sin Seg. DesgravamenDisposición de efectivo39",0.47]
[null,null,null,null,null,null,null,null,null,null,null,null,null,null,null,null,null,null,null,null,null,null,null,null,null,null,null,null,null,null,null,null,null,null,null,null,null,null,null,null,null,null,null,null,null,null,null,null,null,null,null,null,null,null,"Clásica Sin Seg. Desgravamen","Disposición de efectivo",40,"Clásica Sin Seg. DesgravamenDisposición de efectivo40",0.47]
[null,null,null,null,null,null,null,null,null,null,null,null,null,null,null,null,null,null,null,null,null,null,null,null,null,null,null,null,null,null,null,null,null,null,null,null,null,null,null,null,null,null,null,null,null,null,null,null,null,null,null,null,null,null,"Clásica Sin Seg. Desgravamen","Disposición de efectivo",41,"Clásica Sin Seg. DesgravamenDisposición de efectivo41",0.47]
[null,null,null,null,null,null,null,null,null,null,null,null,null,null,null,null,null,null,null,null,null,null,null,null,null,null,null,null,null,null,null,null,null,null,null,null,null,null,null,null,null,null,null,null,null,null,null,null,null,null,null,null,null,null,"Clásica Sin Seg. Desgravamen","Disposición de efectivo",42,"Clásica Sin Seg. DesgravamenDisposición de efectivo42",0.47]
[null,null,null,null,null,null,null,null,null,null,null,null,null,null,null,null,null,null,null,null,null,null,null,null,null,null,null,null,null,null,null,null,null,null,null,null,null,null,null,null,null,null,null,null,null,null,null,null,null,null,null,null,null,null,"Clásica Sin Seg. Desgravamen","Disposición de efectivo",43,"Clásica Sin Seg. DesgravamenDisposición de efectivo43",0.47]
[null,null,null,null,null,null,null,null,null,null,null,null,null,null,null,null,null,null,null,null,null,null,null,null,null,null,null,null,null,null,null,null,null,null,null,null,null,null,null,null,null,null,null,null,null,null,null,null,null,null,null,null,null,null,"Clásica Sin Seg. Desgravamen","Disposición de efectivo",44,"Clásica Sin Seg. DesgravamenDisposición de efectivo44",0.47]
[null,null,null,null,null,null,null,null,null,null,null,null,null,null,null,null,null,null,null,null,null,null,null,null,null,null,null,null,null,null,null,null,null,null,null,null,null,null,null,null,null,null,null,null,null,null,null,null,null,null,null,null,null,null,"Clásica Sin Seg. Desgravamen","Disposición de efectivo",45,"Clásica Sin Seg. DesgravamenDisposición de efectivo45",0.47]
[null,null,null,null,null,null,null,null,null,null,null,null,null,null,null,null,null,null,null,null,null,null,null,null,null,null,null,null,null,null,null,null,null,null,null,null,null,null,null,null,null,null,null,null,null,null,null,null,null,null,null,null,null,null,"Clásica Sin Seg. Desgravamen","Disposición de efectivo",46,"Clásica Sin Seg. DesgravamenDisposición de efectivo46",0.47]
[null,null,null,null,null,null,null,null,null,null,null,null,null,null,null,null,null,null,null,null,null,null,null,null,null,null,null,null,null,null,null,null,null,null,null,null,null,null,null,null,null,null,null,null,null,null,null,null,null,null,null,null,null,null,"Clásica Sin Seg. Desgravamen","Disposición de efectivo",47,"Clásica Sin Seg. DesgravamenDisposición de efectivo47",0.47]
[null,null,null,null,null,null,null,null,null,null,null,null,null,null,null,null,null,null,null,null,null,null,null,null,null,null,null,null,null,null,null,null,null,null,null,null,null,null,null,null,null,null,null,null,null,null,null,null,null,null,null,null,null,null,"Clásica Sin Seg. Desgravamen","Disposición de efectivo",48,"Clásica Sin Seg. DesgravamenDisposición de efectivo48",0.47]

{"sheet":"Simulador_TC","index":1,"n_rows":180,"n_cols":6,"rows_kept":180,"cut":false,"hidden":false,"merged":[[2,1,2,5]]}
[]
[]
[null,"Simulador de Tarjeta de Crédito Sin Seguro de Desgravamen"]
[null,"Simulación de la Línea de Crédito"]
[null,"Situación laboral:"]
[]
[null,"Sector donde labora:"]
[]
[null,"Promedio de Abonos:",null,"S/",4500,"Ingresar datos"]
[]
[null,"Cuota en el Sistema Financiero:",null,"S/",300,"Ingresar datos"]
[]
[null,"Cuota de Préstamo Multired BN:",null,"S/",0,"Ingresar datos"]
[]
[null,"Cuota de Crédito Hipotecario BN:",null,"S/",0,"Ingresar datos"]
[]
[null,"Tipo de Seguro para Linea de Crédito:"]
[]
[null,"Envío de Estado de Cuenta:"]
[]
[null,"Máxima Linea de Crédito:",null,"S/",{"$f":"IF(C169<1000,0,IF(C169<=5000,C169,IF(C169>5000,5000,0)))","v":5000},"Campo calculado"]
[]
[null,"Tarjetas a las que califica:",null,null,{"$f":"C176","v":"Clásica sin Seg. Desgravamen"},"Campo calculado"]
[]
[null,"Simulación del uso de la línea"]
[null,"Seleccionar tipo de tarjeta"]
[]
[null,"Tipo de Seguro para Compras o Disp.Efect.:"]
[]
[null,"Tipo de Consumo:"]
[]
[null,"Ingrese el monto de disposición de la línea:",null," S/",1500,"Ingresar datos"]
[]
[null,"Ingrese el número de cuotas:"]
[]
[]
[]
[]
[]
[]
[]
[]
[]
[]
[]
[]
[]
[]
[]
[]
[]
[]
[]
[]
[]
[]
[]
[]
[]
[]
[]
[]
[]
[]
[]
[]
[]
[]
[]
[]
[]
[]
[]
[]
[]
[]
[]
[]
[]
[]
[]
[]
[]
[]
[]
[]
[]
[]
[]
[]
[]
[]
[]
[]
[]
[]
[]
[]
[]
[]
[]
[]
[]
[]
[]
[]
[]
[]
[]
[]
[]
[]
[]
[]
[]
[]
[]
[]
[]
[]
[]
[]
[]
[]
[]
[]
[]
[]
[]
[]
[]
[]
[]
[]
[]
[]
[]
[]
[]
[]
[]
[]
[]
[]
[]
[]
[]
[null,"Cálculo de la Línea Máxima"]
[null,"Deudas Sist. Finan.",{"$f":"E11+E13+E15","v":300}]
[null,"Seguro Desgravamen",{"$f":"VLOOKUP(Input!AF3,Input!AD3:AE6,2,FALSE)","v":0}]
[null,"Envío de EECC a domic.",{"$f":"VLOOKUP(Input!AU3,Input!AS3:AT4,2,FALSE)","v":0}]
[null,"Total Pago Mensual",{"$f":"SUM(C149:C151)","v":300},"C13",{"$f":"+C152/$C$154","v":6.6666666666666666E-2}]
[]
[null,"Ingreso Estimado",{"$f":"E9","v":4500},"C15"]
[null,"Nivel máximo Cuota/Ing.",0.25,"C16 Fijo"]
[null,"Factor de Actualizacion"]
[null,"Factor de la Línea",{"$f":"+ROUND((C155-(C152/C154))*C156,7)","v":0}]
[null,"Línea Máxima",{"$f":"IF(ROUND(C157*C154,2)<300,0,IF(ROUND(C157*C154,2)>50000,50000,ROUND(C157*C154,2)))","v":0},null,null,{"$f":"+E152+E165","v":0.25}]
[null,"Cuota (Sin comisiones)",{"$f":"ROUND(C158/C156,2)","v":{"$error":"#DIV/0!"}}]
[null,"Cuota (Con comisiones)",{"$f":"+C159+C150+#REF!+C151","v":{"$error":"#DIV/0!"}}]
[null,"Ratio Cuota/Ingreso",{"$f":"+(C160+C149)/C154","v":{"$error":"#DIV/0!"}}]
[null,"Linea por ingreso",{"$f":"ROUND(IF(C154=0,0,IF(C154<=1000,1*C154,IF(AND(C154>1000,C154<=5000),1.3*C154,IF(AND(C154>5000,C154<8000),2*C154,IF(AND(C154>8000,C154<=10000),2.5*C154,3*C154))))),2)","v":5850}]
[null,"Linea Máxima",{"$f":"TRUNC(MIN(C162,C158),0)","v":0}]
[]
[null,"MCM",{"$f":"((C155*C154-C152))","v":825},"C26",{"$f":"+C165/$C$154","v":0.18333333333333332}]
[null,"Factor Cuota",{"$f":"(((1+C173)^(C174))*C173/((1+C173)^(C174)-1))*(1-C168)","v":2.366487418773711E-2},"C27"]
[null,"Factor Revolvente",{"$f":"(C173+1/C174)*C168","v":2.2987569233333331E-2},"C28"]
[null,"% Consumo Revolvente",0.43,"C29"]
[null,"Linea Máxima",{"$f":"TRUNC(IF((C155*C154-C152)<=0,0,C165/((C166+C167))),0)","v":17683}]
[null,"Nro Veces el Ingreso",{"$f":"C165/((C166+C167)*C154)","v":3.9297691586831518}]
[null,"Factor de Actualización:"]
[null,"Tasa Interés (TEA)",0.47,"C33","TEA para máximizar la Linea"]
[null,"TEM",{"$f":"ROUND((1+C172)^(1/12)-1,8)","v":3.2626130000000003E-2},"C34"]
[null,"Plazo",48,null,"Plazo Máximo"]
[]
[null,"Tipo de tarjeta de crédito","Clásica sin Seg. Desgravamen"]
[]
[null,"Tope de consumo ",{"$f":"IF(Input!$G$3=\"Compra\",E21*C179,C180*E21)","v":5000}]
[null,"% Compras ",1]
[null,"% Disposición de Efectivo",0.3]

{"sheet":"Cronograma","index":2,"n_rows":67,"n_cols":34,"rows_kept":67,"cut":false,"hidden":false,"merged":[[2,1,2,7],[4,4,4,5],[5,4,5,5],[6,4,6,5],[12,4,12,5],[7,4,7,5],[8,4,8,5],[9,4,9,5],[10,4,10,5],[11,4,11,5]]}
[null,null,null,null,null,null,null,null,null,null,null,null,null,null,null,null,null,null,null,null,"=SI(S7=12;\"01\";SI(Y(R7>O8;O9<O8);S7+2;S7+1))"]
[null,null,null,null,null,null,null,null,null,null,null,null,null,null,null,null,null,"MENSUAL","DIARIO"]
[null,"Cronograma de pagos -  Tarjeta de Crédito Sin Seguro de Desgravamen",null,null,null,null,null,null,null,null,null,null,null,null,null,"Tasa Efectiva Anual (TEA)",{"$f":"Input!AW3","v":0.36},{"$f":"((Q3+1)^(1/12)-1)","v":2.5954834658546311E-2},{"$f":"((Q3+1)^(1/360)-1)","v":8.5448903388551933E-4}]
[null,null,null,null,null,null,null,null,null,null,null,null,null,null,null,"Tasa Nominal Anual (TNA)",{"$f":"360*((1+Q3)^(1/360)-1)","v":0.30761605219878696},{"$f":"Q4/12","v":2.563467101656558E-2},{"$f":"Q4/360","v":8.5448903388551933E-4},null,null,{"$f":"((1+$Q$3)^((S18-R18)/360)-1)*$Q$11","v":31.065790651161549}]
[null,"Producto",null,null,{"$f":"Input!D3","v":"Clásica Sin Seg. Desgravamen"},null,null,null,null,null,null,null,null,null,null,"Tasa de seguro de desgravamen",{"$f":"Input!AN9","v":0}]
[null,"Tipo de consumo",null,null,{"$f":"Input!G3","v":"Compra"},null,null,null,null,null,null,null,null,null,null,null,null,"Día","Mes","Año"]
[null,"Fecha de Consumo",null,null,{"$f":"+Q7","v":"2026-04-22"},null,null,null,null,null,null,null,null,"Día de Compra",{"$f":"DAY(Q7)","v":22},"Fecha de compra",{"$f":"TODAY()","v":"2026-04-22"},{"$f":"+O7","v":22},{"$f":"MONTH(Q7)","v":4},{"$f":"YEAR(Q7)","v":2026}]
[null,"Monto de consumo S/",null,null,{"$f":"Simulador_TC!E32","v":1500},null,null,null,null,null,null,null,null,"Día de Facturación",{"$f":"+Input!X3","v":4},"Fecha de facturación",{"$f":"TEXT(CONCATENATE(O8,\"/\",S9,\"/\",T9),\"dd/mm/yyyy\")","v":"04/05/2026"},{"$f":"+O8","v":4},{"$f":"MONTH(Q8)","v":5},{"$f":"YEAR(Q8)","v":2026}]
[null,"Número de Cuotas Mensuales",null,null,{"$f":"Input!AQ3","v":"17"},null,null,null,null,null,null,null,null,"Día de pago",{"$f":"Input!W3","v":16},"Fecha de Pago",{"$f":"TEXT(IF(AND(R8=R7,O8<O9),CONCATENATE(O9,\"/\",S9,\"/\",T9),IF(R8=R7,CONCATENATE(O9,\"/\",S9+1,\"/\",T9),IF(S7=12,CONCATENATE(R9,\"/\",\"01\",\"/\",T9),CONCATENATE(R9,\"/\",S9,\"/\",T9)))),\"dd/mm/yyyy\")","v":"16/05/2026"},{"$f":"+O9","v":16},{"$f":"IF(S7=12,\"01\",IF(AND(R7>O8,O9<O8),S7+2,S7+1))","v":5},{"$f":"IF(S7=12,T7+1,T7)","v":2026}]
[null,"Tipo de Seguro",null,null,{"$f":"Input!AN3","v":"Sin Seguro de Desgravamen"},null,null,null,null,null,null,null,null,null,null,"Numero de cuotas",{"$f":"VALUE(Input!AQ3)","v":17}]
[null,"Tasa de Seguro de Desgravamen",null,null,{"$f":"Input!AN9","v":0},null,null,null,null,null,null,null,null,null,null,"Imprte de compra",{"$f":"VALUE(Simulador_TC!E32)","v":1500}]
[null,"Tasa de Interés Efectiva Anual Fija (TEA)",null,null,{"$f":"Q3","v":0.36},null,null,null,null,null,null,null,null,null,null,"TCEA",{"$f":"XIRR(X17:X65,S17:S65)","v":0.36570641398429871}]
[null,"Tasa de Costo Efectiva Anual (TCEA)",null,null,{"$f":"+Q12","v":0.36570641398429871},null,null,null,null,null,null,null,null,null,null,"TCEA Buscar Objetivo"]
[null,null,null,null,null,null,null,null,null,null,null,null,null,null,null,null,null,{"$f":"IF(AND(R7=R8,O8<O9),S9,S9+1)","v":6},"=SI(Y(R7=R8;O8<O9);S9;S9+1)"]
[]
[null,"Periodo","Fecha de Facturación","Fecha de\nPago","Interés\nS/","Amortización\nS/","Cuota Sin SD\nS/","Saldo Sin SD\n S/","Seguro de Desgravamen S/","Cuota Con SD\nS/","Saldo Con SD S/",null,null,null,null,"Fecha de Facturación","Nro de\ncuotas","Fecha inicio","Fecha de Pago","Días calculados \n","Dias acumulados\n\nINMA","FAS1","FAS","Cuota Sin SD","Amortización Sin SD","Saldo Sin SD","FACT","Interes Cuota","Exceso Interes","Saldo Importe\nc/Exceso \nInteres","Nuevo interes cuota \n\n*exceso","Capital cuota\n\n\n*exceso","nueva Cuota\n\nAJUSTADA","Seguro de Desgravamen"]
[null,{"$f":"Q17","v":0},{"$f":"+S17","v":"2026-04-22"},{"$f":"+E7","v":"2026-04-22"},null,null,{"$f":"-Q11","v":-1500},{"$f":"+Z18","v":1500},null,null,null,null,null,null,null,null,0,{"$f":"+Q7","v":"2026-04-22"},{"$f":"Q7","v":"2026-04-22"},null,null,null,null,{"$f":"-Q11","v":-1500}]
[null,1,{"$f":"+P18","v":"04/05/2026"},{"$f":"+S18","v":"16/05/2026"},{"$f":"+AB18","v":31.06},{"$f":"IF(B18=\"Total\",SUM($F17:F$18),IF(B18=\"\",\"\",Y18))","v":78.98},{"$f":"+X18","v":110.04},{"$f":"IF(B18=\"Total\",\"\",IF(B18=\"\",\"\",Z19))","v":1421.02},{"$f":"+AH18","v":0},null,null,null,null,null,null,{"$f":"+Q8","v":"04/05/2026"},{"$f":"+IF(Q17=VALUE($Q$10),\"Total\",IF(Q17=\"Total\",\"\",IF(Q17=\"\",\"\",Q17+1)))","v":1},{"$f":"+R17","v":"2026-04-22"},{"$f":"+Q9","v":"16/05/2026"},{"$f":"IF(OR(Q18=\"\",Q18=\"Total\"),0,S18-R18)","v":24},{"$f":"+T18","v":24},{"$f":"IF(Q18=\"Total\",\"-\",TRUNC(ROUND(((Q$4/360)+1)^U18,8),8))","v":1.0207105299999999},{"$f":"IF(OR(Q18=\"Total\",Q18=\"\"),0,TRUNC(ROUND((1/V18),8),8))","v":0.97970968999999997},{"$f":"IF(OR(Q18=\"\",Q18=\"Total\"),0,IF(Q18=$Q$10,Z18+AB18,TRUNC($Q$11*(1/$W$66),2)))","v":110.04},{"$f":"+X18-AB18","v":78.98},{"$f":"$Q$11","v":1500},{"$f":"TRUNC(ROUND(((Q$4/360)+1)^T18,8),8)-1","v":2.0710529999999894E-2},{"$f":"IF(OR(Q18=\"\",Q18=\"Total\"),\" \",TRUNC(Z18*AA18,2))","v":31.06},{"$f":"IF(AB18>X18,AB18-X18,0)","v":0},{"$f":"Z18+AC18","v":1500},{"$f":"IF(AB18>X18,X18,AB18)","v":31.06},{"$f":"X18-AE18","v":78.98},{"$f":"AE18+AF18","v":110.04},{"$f":"IF($Q$5*Z18>=8.9,8.9,$Q$5*Z18)","v":0}]
[null,2,{"$f":"IF(OR(B19=\"Total\",B19=\"\"),\"\",P19)","v":"2026-06-04"},{"$f":"IF(OR(B19=\"Total\",B19=\"\"),\"\",S19)","v":"2026-06-16"},{"$f":"IF(B19=\"Total\",SUM($E$18:E18),IF(B19=\"\",\"\",AB19))","v":38.119999999999997},{"$f":"IF(B19=\"Total\",SUM($F$18:F18),IF(B19=\"\",\"\",Y19))","v":71.920000000000016},{"$f":"IF(B19=\"Total\",SUM($G$18:G18),IF(B19=\"\",\"\",X19))","v":110.04},1349.1,null,null,null,null,null,null,null,{"$f":"EDATE(P18,1)","v":"2026-06-04"},2,{"$f":"IF(S19=\"-\",\"-\",S18+1)","v":"2026-05-17"},{"$f":"IF(Q18=VALUE($Q$10),0,IF(Q18=\"Total\",0,IF(Q18=\"\",0,DATE(YEAR(S18),MONTH(S18)+1,Input!W$3))))","v":"2026-06-16"},{"$f":"IF(OR(Q19=\"\",Q19=\"Total\"),0,S19-R19+1)","v":31},{"$f":"IF(Q19=\"Total\",\"-\",U18+T19)","v":55},{"$f":"IF(Q19=\"Total\",\"-\",TRUNC(ROUND(((Q$4/360)+1)^U19,8),8))","v":1.0480977199999999},{"$f":"IF(OR(Q19=\"Total\",Q19=\"\"),0,TRUNC(ROUND((1/V19),8),8))","v":0.95410950999999999},{"$f":"IF(OR(Q19=\"\",Q19=\"Total\"),0,IF(Q19=$Q$10,Z19+AB19,TRUNC($Q$11*(1/$W$66),2)))","v":110.04},71.920000000000016,{"$f":"IF(OR(B18=\"\",B18=\"Total\"),\"\",AD18-AF18)","v":1421.02},{"$f":"TRUNC(ROUND(((Q$4/360)+1)^T19,8),8)-1","v":2.6831499999999897E-2},38.119999999999997,{"$f":"IF(AB19>X19,AB19-X19,0)","v":0},{"$f":"Z19-AC18+AC19","v":1421.02},{"$f":"IF(AB19>X19,X19,AB19)","v":38.119999999999997},71.920000000000016,{"$f":"AE19+AF19","v":110.04000000000002},{"$f":"IF($Q$5*Z19>=8.9,8.9,$Q$5*Z19)","v":0}]
[null,3,"2026-07-04","2026-07-16",{"$f":"IF(B20=\"Total\",SUM($E$18:E19),IF(B20=\"\",\"\",AB20))","v":35.01},{"$f":"IF(B20=\"Total\",SUM($F$18:F19),IF(B20=\"\",\"\",Y20))","v":75.03},{"$f":"IF(B20=\"Total\",SUM($G$18:G19),IF(B20=\"\",\"\",X20))","v":110.04},1274.07,null,null,null,null,null,null,null,{"$f":"EDATE(P19,1)","v":"2026-07-04"},3,{"$f":"IF(S20=\"-\",\"-\",S19+1)","v":"2026-06-17"},{"$f":"IF(Q19=VALUE($Q$10),0,IF(Q19=\"Total\",0,IF(Q19=\"\",0,DATE(YEAR(S19),MONTH(S19)+1,Input!W$3))))","v":"2026-07-16"},{"$f":"IF(OR(Q20=\"\",Q20=\"Total\"),0,S20-R20+1)","v":30},85,1.07530093,0.92997222999999996,{"$f":"IF(OR(Q20=\"\",Q20=\"Total\"),0,IF(Q20=$Q$10,Z20+AB20,TRUNC($Q$11*(1/$W$66),2)))","v":110.04},75.03,1349.1,2.5954830000000095E-2,35.01,{"$f":"IF(AB20>X20,AB20-X20,0)","v":0},{"$f":"Z20-AC19+AC20","v":1349.1},35.01,75.03,110.03999999999999,{"$f":"IF($Q$5*Z20>=8.9,8.9,$Q$5*Z20)","v":0}]
[null,4,"2026-08-04","2026-08-16",{"$f":"IF(B21=\"Total\",SUM($E$18:E20),IF(B21=\"\",\"\",AB21))","v":34.18},{"$f":"IF(B21=\"Total\",SUM($F$18:F20),IF(B21=\"\",\"\",Y21))","v":75.860000000000014},{"$f":"IF(B21=\"Total\",SUM($G$18:G20),IF(B21=\"\",\"\",X21))","v":110.04},1198.21,null,null,null,null,null,null,null,"2026-08-04",4,"2026-07-17",{"$f":"IF(Q20=VALUE($Q$10),0,IF(Q20=\"Total\",0,IF(Q20=\"\",0,DATE(YEAR(S20),MONTH(S20)+1,Input!W$3))))","v":"2026-08-16"},31,116,1.1041528700000001,0.90567169000000003,{"$f":"IF(OR(Q21=\"\",Q21=\"Total\"),0,IF(Q21=$Q$10,Z21+AB21,TRUNC($Q$11*(1/$W$66),2)))","v":110.04},75.860000000000014,1274.07,2.6831499999999897E-2,34.18,{"$f":"IF(AB21>X21,AB21-X21,0)","v":0},{"$f":"Z21-AC20+AC21","v":1274.07},34.18,75.860000000000014,110.04000000000002,0]
[null,5,"2026-09-04","2026-09-16",{"$f":"IF(B22=\"Total\",SUM($E$18:E21),IF(B22=\"\",\"\",AB22))","v":32.14},{"$f":"IF(B22=\"Total\",SUM($F$18:F21),IF(B22=\"\",\"\",Y22))","v":77.900000000000006},{"$f":"IF(B22=\"Total\",SUM($G$18:G21),IF(B22=\"\",\"\",X22))","v":110.04},1120.31,null,null,null,null,null,null,null,"2026-09-04",5,"2026-08-17",{"$f":"IF(Q21=VALUE($Q$10),0,IF(Q21=\"Total\",0,IF(Q21=\"\",0,DATE(YEAR(S21),MONTH(S21)+1,Input!W$3))))","v":"2026-09-16"},31,147,1.13377894,0.88200615000000004,110.04,77.900000000000006,1198.21,2.6831499999999897E-2,32.14,0,{"$f":"Z22-AC21+AC22","v":1198.21},32.14,77.900000000000006,110.04,0]
[null,6,"2026-10-04","2026-10-16",{"$f":"IF(B23=\"Total\",SUM($E$18:E22),IF(B23=\"\",\"\",AB23))","v":29.07},{"$f":"IF(B23=\"Total\",SUM($F$18:F22),IF(B23=\"\",\"\",Y23))","v":80.97},{"$f":"IF(B23=\"Total\",SUM($G$18:G22),IF(B23=\"\",\"\",X23))","v":110.04},1039.3399999999999,null,null,null,null,null,null,null,"2026-10-04",6,"2026-09-17",{"$f":"IF(Q22=VALUE($Q$10),0,IF(Q22=\"Total\",0,IF(Q22=\"\",0,DATE(YEAR(S22),MONTH(S22)+1,Input!W$3))))","v":"2026-10-16"},30,177,1.16320599,0.85969295999999995,110.04,80.97,1120.31,2.5954830000000095E-2,29.07,0,1120.31,29.07,80.97,110.03999999999999,0]
[null,7,"2026-11-04","2026-11-16",{"$f":"IF(B24=\"Total\",SUM($E$18:E23),IF(B24=\"\",\"\",AB24))","v":27.88},{"$f":"IF(B24=\"Total\",SUM($F$18:F23),IF(B24=\"\",\"\",Y24))","v":82.160000000000011},{"$f":"IF(B24=\"Total\",SUM($G$18:G23),IF(B24=\"\",\"\",X24))","v":110.04},957.18,null,null,null,null,null,null,null,"2026-11-04",7,"2026-10-17",{"$f":"IF(Q23=VALUE($Q$10),0,IF(Q23=\"Total\",0,IF(Q23=\"\",0,DATE(YEAR(S23),MONTH(S23)+1,Input!W$3))))","v":"2026-11-16"},31,208,1.1944165499999999,0.83722885000000002,110.04,82.160000000000011,1039.3399999999999,2.6831499999999897E-2,27.88,0,1039.3399999999999,27.88,82.160000000000011,110.04,0]
[null,8,"2026-12-04","2026-12-16",{"$f":"IF(B25=\"Total\",SUM($E$18:E24),IF(B25=\"\",\"\",AB25))","v":24.84},{"$f":"IF(B25=\"Total\",SUM($F$18:F24),IF(B25=\"\",\"\",Y25))","v":85.2},{"$f":"IF(B25=\"Total\",SUM($G$18:G24),IF(B25=\"\",\"\",X25))","v":110.04},871.9799999999999,null,null,null,null,null,null,null,"2026-12-04",8,"2026-11-17",{"$f":"IF(Q24=VALUE($Q$10),0,IF(Q24=\"Total\",0,IF(Q24=\"\",0,DATE(YEAR(S24),MONTH(S24)+1,Input!W$3))))","v":"2026-12-16"},30,238,1.22541744,0.81604845000000004,110.04,85.2,957.18,2.5954830000000095E-2,24.84,0,957.18,24.84,85.2,110.04,0]
[null,9,"2027-01-04","2027-01-16",{"$f":"IF(B26=\"Total\",SUM($E$18:E25),IF(B26=\"\",\"\",AB26))","v":23.39},{"$f":"IF(B26=\"Total\",SUM($F$18:F25),IF(B26=\"\",\"\",Y26))","v":86.65},{"$f":"IF(B26=\"Total\",SUM($G$18:G25),IF(B26=\"\",\"\",X26))","v":110.04},785.32999999999993,null,null,null,null,null,null,null,"2027-01-04",9,"2026-12-17",{"$f":"IF(Q25=VALUE($Q$10),0,IF(Q25=\"Total\",0,IF(Q25=\"\",0,DATE(YEAR(S25),MONTH(S25)+1,Input!W$3))))","v":"2027-01-16"},31,269,1.2582972299999999,0.79472478999999996,110.04,86.65,871.9799999999999,2.6831499999999897E-2,23.39,0,871.9799999999999,23.39,86.65,110.04,0]
[null,10,"2027-02-04","2027-02-16",{"$f":"IF(B27=\"Total\",SUM($E$18:E26),IF(B27=\"\",\"\",AB27))","v":21.07},{"$f":"IF(B27=\"Total\",SUM($F$18:F26),IF(B27=\"\",\"\",Y27))","v":88.97},{"$f":"IF(B27=\"Total\",SUM($G$18:G26),IF(B27=\"\",\"\",X27))","v":110.04},696.3599999999999,null,null,null,null,null,null,null,"2027-02-04",10,"2027-01-17",{"$f":"IF(Q26=VALUE($Q$10),0,IF(Q26=\"Total\",0,IF(Q26=\"\",0,DATE(YEAR(S26),MONTH(S26)+1,Input!W$3))))","v":"2027-02-16"},31,{"$f":"IF(Q27=\"Total\",\"-\",U26+T27)","v":300},1.29205923,0.77395833000000003,110.04,88.97,785.32999999999993,2.6831499999999897E-2,21.07,0,785.32999999999993,21.07,88.97,110.03999999999999,0]
[null,11,"2027-03-04","2027-03-16",{"$f":"IF(B28=\"Total\",SUM($E$18:E27),IF(B28=\"\",\"\",AB28))","v":16.850000000000001},{"$f":"IF(B28=\"Total\",SUM($F$18:F27),IF(B28=\"\",\"\",Y28))","v":93.19},{"$f":"IF(B28=\"Total\",SUM($G$18:G27),IF(B28=\"\",\"\",X28))","v":110.04},603.16999999999985,null,null,null,null,null,null,null,"2027-03-04",11,"2027-02-17",{"$f":"IF(Q27=VALUE($Q$10),0,IF(Q27=\"Total\",0,IF(Q27=\"\",0,DATE(YEAR(S27),MONTH(S27)+1,Input!W$3))))","v":"2027-03-16"},28,328,1.3233318999999999,0.75566831999999995,110.04,93.19,696.3599999999999,2.4203750000000079E-2,16.850000000000001,0,696.3599999999999,16.850000000000001,{"$f":"X28-AE28","v":93.19},110.03999999999999,0]
[null,12,"2027-04-04","2027-04-16",{"$f":"IF(B29=\"Total\",SUM($E$18:E28),IF(B29=\"\",\"\",AB29))","v":16.18},{"$f":"IF(B29=\"Total\",SUM($F$18:F28),IF(B29=\"\",\"\",Y29))","v":93.860000000000014},{"$f":"IF(B29=\"Total\",SUM($G$18:G28),IF(B29=\"\",\"\",X29))","v":110.04},509.30999999999983,null,null,null,null,null,null,null,"2027-04-04",12,"2027-03-17",{"$f":"IF(Q28=VALUE($Q$10),0,IF(Q28=\"Total\",0,IF(Q28=\"\",0,DATE(YEAR(S28),MONTH(S28)+1,Input!W$3))))","v":"2027-04-16"},31,359,1.3588388899999999,0.73592241999999997,110.04,93.860000000000014,603.16999999999985,2.6831499999999897E-2,16.18,0,603.16999999999985,16.18,{"$f":"X29-AE29","v":93.860000000000014},110.04000000000002,0]
[null,13,"2027-05-04","2027-05-16",{"$f":"IF(B30=\"Total\",SUM($E$18:E29),IF(B30=\"\",\"\",AB30))","v":13.21},{"$f":"IF(B30=\"Total\",SUM($F$18:F29),IF(B30=\"\",\"\",Y30))","v":96.830000000000013},{"$f":"IF(B30=\"Total\",SUM($G$18:G29),IF(B30=\"\",\"\",X30))","v":110.04},412.47999999999979,null,null,null,null,null,null,null,"2027-05-04",13,"2027-04-17",{"$f":"IF(Q29=VALUE($Q$10),0,IF(Q29=\"Total\",0,IF(Q29=\"\",0,DATE(YEAR(S29),MONTH(S29)+1,Input!W$3))))","v":"2027-05-16"},30,389,1.39410733,0.71730488999999997,110.04,96.830000000000013,509.30999999999983,2.5954830000000095E-2,13.21,0,509.30999999999983,13.21,{"$f":"X30-AE30","v":96.830000000000013},110.04000000000002,{"$f":"IF($Q$5*Z30>=8.9,8.9,$Q$5*Z30)","v":0}]
[null,14,"2027-06-04","2027-06-16",{"$f":"IF(B31=\"Total\",SUM($E$18:E30),IF(B31=\"\",\"\",AB31))","v":11.06},{"$f":"IF(B31=\"Total\",SUM($F$18:F30),IF(B31=\"\",\"\",Y31))","v":98.98},{"$f":"IF(B31=\"Total\",SUM($G$18:G30),IF(B31=\"\",\"\",X31))","v":110.04},313.49999999999977,null,null,null,null,null,null,null,"2027-06-04",14,{"$f":"IF(S31=\"-\",\"-\",S30+1)","v":"2027-05-17"},{"$f":"IF(Q30=VALUE($Q$10),0,IF(Q30=\"Total\",0,IF(Q30=\"\",0,DATE(YEAR(S30),MONTH(S30)+1,Input!W$3))))","v":"2027-06-16"},31,420,1.4315133200000001,0.69856143999999998,110.04,98.98,412.47999999999979,2.6831499999999897E-2,11.06,0,412.47999999999979,11.06,98.98,110.04,{"$f":"IF($Q$5*Z31>=8.9,8.9,$Q$5*Z31)","v":0}]
[null,15,"2027-07-04","2027-07-16",{"$f":"IF(B32=\"Total\",SUM($E$18:E31),IF(B32=\"\",\"\",AB32))","v":8.1300000000000008},{"$f":"IF(B32=\"Total\",SUM($F$18:F31),IF(B32=\"\",\"\",Y32))","v":101.91000000000001},{"$f":"IF(B32=\"Total\",SUM($G$18:G31),IF(B32=\"\",\"\",X32))","v":110.04},211.58999999999975,null,null,null,null,null,null,null,"2027-07-04",15,"2027-06-17",{"$f":"IF(Q31=VALUE($Q$10),0,IF(Q31=\"Total\",0,IF(Q31=\"\",0,DATE(YEAR(S31),MONTH(S31)+1,Input!W$3))))","v":"2027-07-16"},30,450,1.46866801,0.68088906999999999,110.04,101.91000000000001,313.49999999999977,2.5954830000000095E-2,8.1300000000000008,0,313.49999999999977,8.1300000000000008,101.91000000000001,110.04,0]
[null,16,"2027-08-04","2027-08-16",{"$f":"IF(B33=\"Total\",SUM($E$18:E32),IF(B33=\"\",\"\",AB33))","v":5.67},{"$f":"IF(B33=\"Total\",SUM($F$18:F32),IF(B33=\"\",\"\",Y33))","v":104.37},{"$f":"IF(B33=\"Total\",SUM($G$18:G32),IF(B33=\"\",\"\",X33))","v":110.04},107.21999999999974,null,null,null,null,null,null,null,"2027-08-04",16,"2027-07-17",{"$f":"IF(Q32=VALUE($Q$10),0,IF(Q32=\"Total\",0,IF(Q32=\"\",0,DATE(YEAR(S32),MONTH(S32)+1,Input!W$3))))","v":"2027-08-16"},31,481,1.5080745799999999,0.66309717999999995,110.04,104.37,211.58999999999975,2.6831499999999897E-2,5.67,0,211.58999999999975,5.67,104.37,110.04,0]
[null,17,"2027-09-04","2027-09-16",{"$f":"IF(B34=\"Total\",SUM($E$18:E33),IF(B34=\"\",\"\",AB34))","v":2.87},{"$f":"IF(B34=\"Total\",SUM($F$18:F33),IF(B34=\"\",\"\",Y34))","v":107.21999999999974},{"$f":"IF(B34=\"Total\",SUM($G$18:G33),IF(B34=\"\",\"\",X34))","v":110.08999999999975},0,null,null,null,null,null,null,null,"2027-09-04",17,"2027-08-17",{"$f":"IF(Q33=VALUE($Q$10),0,IF(Q33=\"Total\",0,IF(Q33=\"\",0,DATE(YEAR(S33),MONTH(S33)+1,Input!W$3))))","v":"2027-09-16"},31,512,1.5485384799999999,0.64577019999999996,110.08999999999975,107.21999999999974,107.21999999999974,2.6831499999999897E-2,2.87,0,107.21999999999974,2.87,107.21999999999974,110.08999999999975,0]
[null,"Total","","",{"$f":"IF(B35=\"Total\",SUM($E$18:E34),IF(B35=\"\",\"\",AB35))","v":370.73},{"$f":"IF(B35=\"Total\",SUM($F$18:F34),IF(B35=\"\",\"\",Y35))","v":1500},{"$f":"IF(B35=\"Total\",SUM($G$18:G34),IF(B35=\"\",\"\",X35))","v":1870.7299999999993},"",null,null,null,null,null,null,null,"2027-10-04","Total","2027-09-17",{"$f":"IF(Q34=VALUE($Q$10),0,IF(Q34=\"Total\",0,IF(Q34=\"\",0,DATE(YEAR(S34),MONTH(S34)+1,Input!W$3))))","v":"00:00:00"},0,"-","-",0,0,{"$error":"#VALUE!"},0,0," ",{"$error":"#VALUE!"},{"$error":"#VALUE!"},0,0,0,0]
[null,"","","",{"$f":"IF(B36=\"Total\",SUM($E$18:E35),IF(B36=\"\",\"\",AB36))","v":""},{"$f":"IF(B36=\"Total\",SUM($F$18:F35),IF(B36=\"\",\"\",Y36))","v":""},{"$f":"IF(B36=\"Total\",SUM($G$18:G35),IF(B36=\"\",\"\",X36))","v":""},"",null,null,null,null,null,null,null,"2027-11-04","","1900-01-01",{"$f":"IF(Q35=VALUE($Q$10),0,IF(Q35=\"Total\",0,IF(Q35=\"\",0,DATE(YEAR(S35),MONTH(S35)+1,Input!W$3))))","v":"00:00:00"},0,{"$error":"#VALUE!"},{"$error":"#VALUE!"},0,0,{"$error":"#VALUE!"},"",0," ",{"$error":"#VALUE!"},{"$error":"#VALUE!"},0,0,0,{"$error":"#VALUE!"}]
[null,"","","",{"$f":"IF(B37=\"Total\",SUM($E$18:E36),IF(B37=\"\",\"\",AB37))","v":""},{"$f":"IF(B37=\"Total\",SUM($F$18:F36),IF(B37=\"\",\"\",Y37))","v":""},{"$f":"IF(B37=\"Total\",SUM($G$18:G36),IF(B37=\"\",\"\",X37))","v":""},"",null,null,null,null,null,null,null,"2027-12-04","","1900-01-01",{"$f":"IF(Q36=VALUE($Q$10),0,IF(Q36=\"Total\",0,IF(Q36=\"\",0,DATE(YEAR(S36),MONTH(S36)+1,Input!W$3))))","v":"00:00:00"},0,{"$error":"#VALUE!"},{"$error":"#VALUE!"},0,0,{"$error":"#VALUE!"},"",0," ",{"$error":"#VALUE!"},{"$error":"#VALUE!"},0,0,0,{"$error":"#VALUE!"}]
[null,"","","",{"$f":"IF(B38=\"Total\",SUM($E$18:E37),IF(B38=\"\",\"\",AB38))","v":""},{"$f":"IF(B38=\"Total\",SUM($F$18:F37),IF(B38=\"\",\"\",Y38))","v":""},{"$f":"IF(B38=\"Total\",SUM($G$18:G37),IF(B38=\"\",\"\",X38))","v":""},"",null,null,null,null,null,null,null,"2028-01-04","",{"$f":"IF(S38=\"-\",\"-\",S37+1)","v":"1900-01-01"},{"$f":"IF(Q37=VALUE($Q$10),0,IF(Q37=\"Total\",0,IF(Q37=\"\",0,DATE(YEAR(S37),MONTH(S37)+1,Input!W$3))))","v":"00:00:00"},0,{"$error":"#VALUE!"},{"$error":"#VALUE!"},0,0,{"$error":"#VALUE!"},"",0," ",{"$error":"#VALUE!"},{"$error":"#VALUE!"},0,0,0,{"$error":"#VALUE!"}]
[null,"","","",{"$f":"IF(B39=\"Total\",SUM($E$18:E38),IF(B39=\"\",\"\",AB39))","v":""},{"$f":"IF(B39=\"Total\",SUM($F$18:F38),IF(B39=\"\",\"\",Y39))","v":""},{"$f":"IF(B39=\"Total\",SUM($G$18:G38),IF(B39=\"\",\"\",X39))","v":""},"",null,null,null,null,null,null,null,"2028-02-04","",{"$f":"IF(S39=\"-\",\"-\",S38+1)","v":"1900-01-01"},{"$f":"IF(Q38=VALUE($Q$10),0,IF(Q38=\"Total\",0,IF(Q38=\"\",0,DATE(YEAR(S38),MONTH(S38)+1,Input!W$3))))","v":"00:00:00"},0,{"$error":"#VALUE!"},{"$error":"#VALUE!"},0,0,{"$error":"#VALUE!"},"",0," ",{"$error":"#VALUE!"},{"$error":"#VALUE!"},0,0,0,{"$error":"#VALUE!"}]
[null,"","","",{"$f":"IF(B40=\"Total\",SUM($E$18:E39),IF(B40=\"\",\"\",AB40))","v":""},{"$f":"IF(B40=\"Total\",SUM($F$18:F39),IF(B40=\"\",\"\",Y40))","v":""},{"$f":"IF(B40=\"Total\",SUM($G$18:G39),IF(B40=\"\",\"\",X40))","v":""},"",null,null,null,null,null,null,null,"2028-03-04","",{"$f":"IF(S40=\"-\",\"-\",S39+1)","v":"1900-01-01"},{"$f":"IF(Q39=VALUE($Q$10),0,IF(Q39=\"Total\",0,IF(Q39=\"\",0,DATE(YEAR(S39),MONTH(S39)+1,Input!W$3))))","v":"00:00:00"},0,{"$error":"#VALUE!"},{"$error":"#VALUE!"},0,0,{"$error":"#VALUE!"},"",0," ",{"$error":"#VALUE!"},{"$error":"#VALUE!"},0,0,0,{"$error":"#VALUE!"}]
[null,"","","",{"$f":"IF(B41=\"Total\",SUM($E$18:E40),IF(B41=\"\",\"\",AB41))","v":""},{"$f":"IF(B41=\"Total\",SUM($F$18:F40),IF(B41=\"\",\"\",Y41))","v":""},{"$f":"IF(B41=\"Total\",SUM($G$18:G40),IF(B41=\"\",\"\",X41))","v":""},"",null,null,null,null,null,null,null,"2028-04-04","","1900-01-01",{"$f":"IF(Q40=VALUE($Q$10),0,IF(Q40=\"Total\",0,IF(Q40=\"\",0,DATE(YEAR(S40),MONTH(S40)+1,Input!W$3))))","v":"00:00:00"},0,{"$error":"#VALUE!"},{"$error":"#VALUE!"},0,0,{"$error":"#VALUE!"},"",0," ",{"$error":"#VALUE!"},{"$error":"#VALUE!"},0,0,0,{"$error":"#VALUE!"}]
[null,"","","",{"$f":"IF(B42=\"Total\",SUM($E$18:E41),IF(B42=\"\",\"\",AB42))","v":""},{"$f":"IF(B42=\"Total\",SUM($F$18:F41),IF(B42=\"\",\"\",Y42))","v":""},{"$f":"IF(B42=\"Total\",SUM($G$18:G41),IF(B42=\"\",\"\",X42))","v":""},"",null,null,null,null,null,null,null,{"$f":"IF(OR(Q42=\"\",Q42=\"Total\"),\"\",EDATE(P41,1))","v":""},"",{"$f":"IF(S42=\"-\",\"-\",S41+1)","v":"1900-01-01"},{"$f":"IF(Q41=VALUE($Q$10),0,IF(Q41=\"Total\",0,IF(Q41=\"\",0,DATE(YEAR(S41),MONTH(S41)+1,Input!W$3))))","v":"00:00:00"},0,{"$error":"#VALUE!"},{"$error":"#VALUE!"},0,0,{"$error":"#VALUE!"},"",0," ",{"$error":"#VALUE!"},{"$error":"#VALUE!"},0,0,0,{"$error":"#VALUE!"}]
[null,"","","",{"$f":"IF(B43=\"Total\",SUM($E$18:E42),IF(B43=\"\",\"\",AB43))","v":""},{"$f":"IF(B43=\"Total\",SUM($F$18:F42),IF(B43=\"\",\"\",Y43))","v":""},{"$f":"IF(B43=\"Total\",SUM($G$18:G42),IF(B43=\"\",\"\",X43))","v":""},"",null,null,null,null,null,null,null,{"$f":"IF(OR(Q43=\"\",Q43=\"Total\"),\"\",EDATE(P42,1))","v":""},"","1900-01-01",{"$f":"IF(Q42=VALUE($Q$10),0,IF(Q42=\"Total\",0,IF(Q42=\"\",0,DATE(YEAR(S42),MONTH(S42)+1,Input!W$3))))","v":"00:00:00"},0,{"$error":"#VALUE!"},{"$error":"#VALUE!"},0,0,{"$error":"#VALUE!"},"",0," ",{"$error":"#VALUE!"},{"$error":"#VALUE!"},0,0,0,{"$error":"#VALUE!"}]
[null,"","","",{"$f":"IF(B44=\"Total\",SUM($E$18:E43),IF(B44=\"\",\"\",AB44))","v":""},{"$f":"IF(B44=\"Total\",SUM($F$18:F43),IF(B44=\"\",\"\",Y44))","v":""},{"$f":"IF(B44=\"Total\",SUM($G$18:G43),IF(B44=\"\",\"\",X44))","v":""},"",null,null,null,null,null,null,null,"","","1900-01-01",{"$f":"IF(Q43=VALUE($Q$10),0,IF(Q43=\"Total\",0,IF(Q43=\"\",0,DATE(YEAR(S43),MONTH(S43)+1,Input!W$3))))","v":"00:00:00"},0,{"$error":"#VALUE!"},{"$error":"#VALUE!"},0,0,{"$error":"#VALUE!"},"",0," ",{"$error":"#VALUE!"},{"$error":"#VALUE!"},0,0,0,{"$error":"#VALUE!"}]
[null,"","","",{"$f":"IF(B45=\"Total\",SUM($E$18:E44),IF(B45=\"\",\"\",AB45))","v":""},{"$f":"IF(B45=\"Total\",SUM($F$18:F44),IF(B45=\"\",\"\",Y45))","v":""},{"$f":"IF(B45=\"Total\",SUM($G$18:G44),IF(B45=\"\",\"\",X45))","v":""},"",null,null,null,null,null,null,null,"","","1900-01-01",{"$f":"IF(Q44=VALUE($Q$10),0,IF(Q44=\"Total\",0,IF(Q44=\"\",0,DATE(YEAR(S44),MONTH(S44)+1,Input!W$3))))","v":"00:00:00"},0,{"$error":"#VALUE!"},{"$error":"#VALUE!"},0,0,{"$error":"#VALUE!"},"",0," ",{"$error":"#VALUE!"},{"$error":"#VALUE!"},0,0,0,{"$error":"#VALUE!"}]
[null,"","","",{"$f":"IF(B46=\"Total\",SUM($E$18:E45),IF(B46=\"\",\"\",AB46))","v":""},{"$f":"IF(B46=\"Total\",SUM($F$18:F45),IF(B46=\"\",\"\",Y46))","v":""},{"$f":"IF(B46=\"Total\",SUM($G$18:G45),IF(B46=\"\",\"\",X46))","v":""},"",null,null,null,null,null,null,null,"","","1900-01-01",{"$f":"IF(Q45=VALUE($Q$10),0,IF(Q45=\"Total\",0,IF(Q45=\"\",0,DATE(YEAR(S45),MONTH(S45)+1,Input!W$3))))","v":"00:00:00"},0,{"$error":"#VALUE!"},{"$error":"#VALUE!"},0,0,{"$error":"#VALUE!"},"",0," ",{"$error":"#VALUE!"},{"$error":"#VALUE!"},0,0,0,{"$error":"#VALUE!"}]
[null,"","","",{"$f":"IF(B47=\"Total\",SUM($E$18:E46),IF(B47=\"\",\"\",AB47))","v":""},{"$f":"IF(B47=\"Total\",SUM($F$18:F46),IF(B47=\"\",\"\",Y47))","v":""},{"$f":"IF(B47=\"Total\",SUM($G$18:G46),IF(B47=\"\",\"\",X47))","v":""},"",null,null,null,null,null,null,null,"","","1900-01-01",{"$f":"IF(Q46=VALUE($Q$10),0,IF(Q46=\"Total\",0,IF(Q46=\"\",0,DATE(YEAR(S46),MONTH(S46)+1,Input!W$3))))","v":"00:00:00"},0,{"$error":"#VALUE!"},{"$error":"#VALUE!"},0,0,{"$error":"#VALUE!"},"",0," ",{"$error":"#VALUE!"},{"$error":"#VALUE!"},0,0,0,{"$error":"#VALUE!"}]
[null,"","","",{"$f":"IF(B48=\"Total\",SUM($E$18:E47),IF(B48=\"\",\"\",AB48))","v":""},{"$f":"IF(B48=\"Total\",SUM($F$18:F47),IF(B48=\"\",\"\",Y48))","v":""},{"$f":"IF(B48=\"Total\",SUM($G$18:G47),IF(B48=\"\",\"\",X48))","v":""},"",null,null,null,null,null,null,null,"","","1900-01-01",{"$f":"IF(Q47=VALUE($Q$10),0,IF(Q47=\"Total\",0,IF(Q47=\"\",0,DATE(YEAR(S47),MONTH(S47)+1,Input!W$3))))","v":"00:00:00"},0,{"$error":"#VALUE!"},{"$error":"#VALUE!"},0,0,{"$error":"#VALUE!"},"",0," ",{"$error":"#VALUE!"},{"$error":"#VALUE!"},0,0,0,{"$error":"#VALUE!"}]
[null,{"$f":"Q49","v":""},"","",{"$f":"IF(B49=\"Total\",SUM($E$18:E48),IF(B49=\"\",\"\",AB49))","v":""},{"$f":"IF(B49=\"Total\",SUM($F$18:F48),IF(B49=\"\",\"\",Y49))","v":""},{"$f":"IF(B49=\"Total\",SUM($G$18:G48),IF(B49=\"\",\"\",X49))","v":""},"",null,null,null,null,null,null,null,"","","1900-01-01",{"$f":"IF(Q48=VALUE($Q$10),0,IF(Q48=\"Total\",0,IF(Q48=\"\",0,DATE(YEAR(S48),MONTH(S48)+1,Input!W$3))))","v":"00:00:00"},0,{"$error":"#VALUE!"},{"$error":"#VALUE!"},0,0,{"$error":"#VALUE!"},"",0," ",{"$error":"#VALUE!"},{"$error":"#VALUE!"},0,0,0,{"$error":"#VALUE!"}]
[null,"","","",{"$f":"IF(B50=\"Total\",SUM($E$18:E49),IF(B50=\"\",\"\",AB50))","v":""},{"$f":"IF(B50=\"Total\",SUM($F$18:F49),IF(B50=\"\",\"\",Y50))","v":""},{"$f":"IF(B50=\"Total\",SUM($G$18:G49),IF(B50=\"\",\"\",X50))","v":""},"",null,null,null,null,null,null,null,"",{"$f":"+IF(Q49=VALUE($Q$10),\"Total\",IF(Q49=\"Total\",\"\",IF(Q49=\"\",\"\",Q49+1)))","v":""},"1900-01-01",{"$f":"IF(Q49=VALUE($Q$10),0,IF(Q49=\"Total\",0,IF(Q49=\"\",0,DATE(YEAR(S49),MONTH(S49)+1,Input!W$3))))","v":"00:00:00"},0,{"$error":"#VALUE!"},{"$f":"IF(Q50=\"Total\",\"-\",TRUNC(ROUND(((Q$4/360)+1)^U50,8),8))","v":{"$error":"#VALUE!"}},0,0,{"$error":"#VALUE!"},"",0," ",{"$error":"#VALUE!"},{"$error":"#VALUE!"},0,0,0,{"$error":"#VALUE!"}]
[null,"","","",{"$f":"IF(B51=\"Total\",SUM($E$18:E50),IF(B51=\"\",\"\",AB51))","v":""},{"$f":"IF(B51=\"Total\",SUM($F$18:F50),IF(B51=\"\",\"\",Y51))","v":""},{"$f":"IF(B51=\"Total\",SUM($G$18:G50),IF(B51=\"\",\"\",X51))","v":""},"",null,null,null,null,null,null,null,"","","1900-01-01",{"$f":"IF(Q50=VALUE($Q$10),0,IF(Q50=\"Total\",0,IF(Q50=\"\",0,DATE(YEAR(S50),MONTH(S50)+1,Input!W$3))))","v":"00:00:00"},0,{"$error":"#VALUE!"},{"$error":"#VALUE!"},0,0,{"$error":"#VALUE!"},"",0," ",{"$error":"#VALUE!"},{"$error":"#VALUE!"},0,0,0,{"$error":"#VALUE!"}]
[null,"","","",{"$f":"IF(B52=\"Total\",SUM($E$18:E51),IF(B52=\"\",\"\",AB52))","v":""},{"$f":"IF(B52=\"Total\",SUM($F$18:F51),IF(B52=\"\",\"\",Y52))","v":""},{"$f":"IF(B52=\"Total\",SUM($G$18:G51),IF(B52=\"\",\"\",X52))","v":""},"",null,null,null,null,null,null,null,"","","1900-01-01",{"$f":"IF(Q51=VALUE($Q$10),0,IF(Q51=\"Total\",0,IF(Q51=\"\",0,DATE(YEAR(S51),MONTH(S51)+1,Input!W$3))))","v":"00:00:00"},0,{"$error":"#VALUE!"},{"$error":"#VALUE!"},0,0,{"$error":"#VALUE!"},"",0," ",{"$error":"#VALUE!"},{"$error":"#VALUE!"},0,0,{"$f":"AE52+AF52","v":0},{"$error":"#VALUE!"}]
[null,"","","",{"$f":"IF(B53=\"Total\",SUM($E$18:E52),IF(B53=\"\",\"\",AB53))","v":""},{"$f":"IF(B53=\"Total\",SUM($F$18:F52),IF(B53=\"\",\"\",Y53))","v":""},{"$f":"IF(B53=\"Total\",SUM($G$18:G52),IF(B53=\"\",\"\",X53))","v":""},"",null,null,null,null,null,null,null,"","","1900-01-01",{"$f":"IF(Q52=VALUE($Q$10),0,IF(Q52=\"Total\",0,IF(Q52=\"\",0,DATE(YEAR(S52),MONTH(S52)+1,Input!W$3))))","v":"00:00:00"},0,{"$error":"#VALUE!"},{"$error":"#VALUE!"},0,0,{"$error":"#VALUE!"},"",0," ",{"$error":"#VALUE!"},{"$error":"#VALUE!"},0,0,{"$f":"AE53+AF53","v":0},{"$error":"#VALUE!"}]
[null,"","","",{"$f":"IF(B54=\"Total\",SUM($E$18:E53),IF(B54=\"\",\"\",AB54))","v":""},{"$f":"IF(B54=\"Total\",SUM($F$18:F53),IF(B54=\"\",\"\",Y54))","v":""},{"$f":"IF(B54=\"Total\",SUM($G$18:G53),IF(B54=\"\",\"\",X54))","v":""},"",null,null,null,null,null,null,null,"","","1900-01-01",{"$f":"IF(Q53=VALUE($Q$10),0,IF(Q53=\"Total\",0,IF(Q53=\"\",0,DATE(YEAR(S53),MONTH(S53)+1,Input!W$3))))","v":"00:00:00"},0,{"$error":"#VALUE!"},{"$error":"#VALUE!"},0,0,{"$error":"#VALUE!"},"",0," ",{"$error":"#VALUE!"},{"$error":"#VALUE!"},0,0,0,{"$error":"#VALUE!"}]
[null,"","","",{"$f":"IF(B55=\"Total\",SUM($E$18:E54),IF(B55=\"\",\"\",AB55))","v":""},{"$f":"IF(B55=\"Total\",SUM($F$18:F54),IF(B55=\"\",\"\",Y55))","v":""},{"$f":"IF(B55=\"Total\",SUM($G$18:G54),IF(B55=\"\",\"\",X55))","v":""},"",null,null,null,null,null,null,null,"","",{"$f":"IF(S55=\"-\",\"-\",S54+1)","v":"1900-01-01"},{"$f":"IF(Q54=VALUE($Q$10),0,IF(Q54=\"Total\",0,IF(Q54=\"\",0,DATE(YEAR(S54),MONTH(S54)+1,Input!W$3))))","v":"00:00:00"},0,{"$error":"#VALUE!"},{"$error":"#VALUE!"},0,0,{"$error":"#VALUE!"},"",0," ",{"$error":"#VALUE!"},{"$error":"#VALUE!"},0,0,0,{"$error":"#VALUE!"}]
[null,"","","",{"$f":"IF(B56=\"Total\",SUM($E$18:E55),IF(B56=\"\",\"\",AB56))","v":""},{"$f":"IF(B56=\"Total\",SUM($F$18:F55),IF(B56=\"\",\"\",Y56))","v":""},{"$f":"IF(B56=\"Total\",SUM($G$18:G55),IF(B56=\"\",\"\",X56))","v":""},"",null,null,null,null,null,null,null,"",{"$f":"+IF(Q55=VALUE($Q$10),\"Total\",IF(Q55=\"Total\",\"\",IF(Q55=\"\",\"\",Q55+1)))","v":""},{"$f":"IF(S56=\"-\",\"-\",S55+1)","v":"1900-01-01"},{"$f":"IF(Q55=VALUE($Q$10),0,IF(Q55=\"Total\",0,IF(Q55=\"\",0,DATE(YEAR(S55),MONTH(S55)+1,Input!W$3))))","v":"00:00:00"},0,{"$error":"#VALUE!"},{"$error":"#VALUE!"},0,0,{"$error":"#VALUE!"},"",0," ",{"$error":"#VALUE!"},{"$error":"#VALUE!"},0,0,0,{"$error":"#VALUE!"}]
[null,"","","",{"$f":"IF(B57=\"Total\",SUM($E$18:E56),IF(B57=\"\",\"\",AB57))","v":""},{"$f":"IF(B57=\"Total\",SUM($F$18:F56),IF(B57=\"\",\"\",Y57))","v":""},{"$f":"IF(B57=\"Total\",SUM($G$18:G56),IF(B57=\"\",\"\",X57))","v":""},{"$f":"IF(B57=\"Total\",\"\",IF(B57=\"\",\"\",Z58))","v":""},null,null,null,null,null,null,null,"",{"$f":"+IF(Q56=VALUE($Q$10),\"Total\",IF(Q56=\"Total\",\"\",IF(Q56=\"\",\"\",Q56+1)))","v":""},{"$f":"IF(S57=\"-\",\"-\",S56+1)","v":"1900-01-01"},{"$f":"IF(Q56=VALUE($Q$10),0,IF(Q56=\"Total\",0,IF(Q56=\"\",0,DATE(YEAR(S56),MONTH(S56)+1,Input!W$3))))","v":"00:00:00"},0,{"$error":"#VALUE!"},{"$error":"#VALUE!"},0,0,{"$error":"#VALUE!"},"",0," ",{"$error":"#VALUE!"},{"$error":"#VALUE!"},0,0,0,{"$error":"#VALUE!"}]
[null,"","","",{"$f":"IF(B58=\"Total\",SUM($E$18:E57),IF(B58=\"\",\"\",AB58))","v":""},{"$f":"IF(B58=\"Total\",SUM($F$18:F57),IF(B58=\"\",\"\",Y58))","v":""},{"$f":"IF(B58=\"Total\",SUM($G$18:G57),IF(B58=\"\",\"\",X58))","v":""},"",null,null,null,null,null,null,null,"",{"$f":"+IF(Q57=VALUE($Q$10),\"Total\",IF(Q57=\"Total\",\"\",IF(Q57=\"\",\"\",Q57+1)))","v":""},"1900-01-01",{"$f":"IF(Q57=VALUE($Q$10),0,IF(Q57=\"Total\",0,IF(Q57=\"\",0,DATE(YEAR(S57),MONTH(S57)+1,Input!W$3))))","v":"00:00:00"},0,{"$error":"#VALUE!"},{"$error":"#VALUE!"},0,0,{"$error":"#VALUE!"},"",0," ",{"$error":"#VALUE!"},{"$error":"#VALUE!"},0,0,0,{"$error":"#VALUE!"}]
[null,"","","",{"$f":"IF(B59=\"Total\",SUM($E$18:E58),IF(B59=\"\",\"\",AB59))","v":""},{"$f":"IF(B59=\"Total\",SUM($F$18:F58),IF(B59=\"\",\"\",Y59))","v":""},{"$f":"IF(B59=\"Total\",SUM($G$18:G58),IF(B59=\"\",\"\",X59))","v":""},"",null,null,null,null,null,null,null,"","","1900-01-01",{"$f":"IF(Q58=VALUE($Q$10),0,IF(Q58=\"Total\",0,IF(Q58=\"\",0,DATE(YEAR(S58),MONTH(S58)+1,Input!W$3))))","v":"00:00:00"},0,{"$error":"#VALUE!"},{"$error":"#VALUE!"},0,0,{"$error":"#VALUE!"},"",0," ",{"$error":"#VALUE!"},{"$error":"#VALUE!"},0,0,0,{"$error":"#VALUE!"}]
[null,"","","",{"$f":"IF(B60=\"Total\",SUM($E$18:E59),IF(B60=\"\",\"\",AB60))","v":""},{"$f":"IF(B60=\"Total\",SUM($F$18:F59),IF(B60=\"\",\"\",Y60))","v":""},{"$f":"IF(B60=\"Total\",SUM($G$18:G59),IF(B60=\"\",\"\",X60))","v":""},"",null,null,null,null,null,null,null,"","","1900-01-01",{"$f":"IF(Q59=VALUE($Q$10),0,IF(Q59=\"Total\",0,IF(Q59=\"\",0,DATE(YEAR(S59),MONTH(S59)+1,Input!W$3))))","v":"00:00:00"},0,{"$error":"#VALUE!"},{"$error":"#VALUE!"},0,0,{"$error":"#VALUE!"},"",0," ",{"$error":"#VALUE!"},{"$error":"#VALUE!"},0,0,0,{"$error":"#VALUE!"}]
[null,"","","",{"$f":"IF(B61=\"Total\",SUM($E$18:E60),IF(B61=\"\",\"\",AB61))","v":""},{"$f":"IF(B61=\"Total\",SUM($F$18:F60),IF(B61=\"\",\"\",Y61))","v":""},{"$f":"IF(B61=\"Total\",SUM($G$18:G60),IF(B61=\"\",\"\",X61))","v":""},"",null,null,null,null,null,null,null,"","","1900-01-01",{"$f":"IF(Q60=VALUE($Q$10),0,IF(Q60=\"Total\",0,IF(Q60=\"\",0,DATE(YEAR(S60),MONTH(S60)+1,Input!W$3))))","v":"00:00:00"},0,{"$error":"#VALUE!"},{"$error":"#VALUE!"},0,0,{"$error":"#VALUE!"},"",0," ",{"$error":"#VALUE!"},{"$error":"#VALUE!"},0,0,0,{"$error":"#VALUE!"}]
[null,"","","",{"$f":"IF(B62=\"Total\",SUM($E$18:E61),IF(B62=\"\",\"\",AB62))","v":""},{"$f":"IF(B62=\"Total\",SUM($F$18:F61),IF(B62=\"\",\"\",Y62))","v":""},{"$f":"IF(B62=\"Total\",SUM($G$18:G61),IF(B62=\"\",\"\",X62))","v":""},"",null,null,null,null,null,null,null,"","","1900-01-01",{"$f":"IF(Q61=VALUE($Q$10),0,IF(Q61=\"Total\",0,IF(Q61=\"\",0,DATE(YEAR(S61),MONTH(S61)+1,Input!W$3))))","v":"00:00:00"},0,{"$error":"#VALUE!"},{"$error":"#VALUE!"},0,0,{"$error":"#VALUE!"},"",0," ",{"$error":"#VALUE!"},{"$error":"#VALUE!"},0,0,0,{"$f":"IF($Q$5*Z62>=8.9,8.9,$Q$5*Z62)","v":{"$error":"#VALUE!"}}]
[null,"","","",{"$f":"IF(B63=\"Total\",SUM($E$18:E62),IF(B63=\"\",\"\",AB63))","v":""},{"$f":"IF(B63=\"Total\",SUM($F$18:F62),IF(B63=\"\",\"\",Y63))","v":""},{"$f":"IF(B63=\"Total\",SUM($G$18:G62),IF(B63=\"\",\"\",X63))","v":""},"",null,null,null,null,null,null,null,"","","1900-01-01",{"$f":"IF(Q62=VALUE($Q$10),0,IF(Q62=\"Total\",0,IF(Q62=\"\",0,DATE(YEAR(S62),MONTH(S62)+1,Input!W$3))))","v":"00:00:00"},0,{"$error":"#VALUE!"},{"$error":"#VALUE!"},0,0,{"$error":"#VALUE!"},"",0," ",{"$error":"#VALUE!"},{"$error":"#VALUE!"},0,0,0,{"$error":"#VALUE!"}]
[null,"","","",{"$f":"IF(B64=\"Total\",SUM($E$18:E63),IF(B64=\"\",\"\",AB64))","v":""},{"$f":"IF(B64=\"Total\",SUM($F$18:F63),IF(B64=\"\",\"\",Y64))","v":""},{"$f":"IF(B64=\"Total\",SUM($G$18:G63),IF(B64=\"\",\"\",X64))","v":""},"",null,null,null,null,null,null,null,"","","1900-01-01",{"$f":"IF(Q63=VALUE($Q$10),0,IF(Q63=\"Total\",0,IF(Q63=\"\",0,DATE(YEAR(S63),MONTH(S63)+1,Input!W$3))))","v":"00:00:00"},0,{"$error":"#VALUE!"},{"$error":"#VALUE!"},0,0,{"$error":"#VALUE!"},"",0," ",{"$f":"IF(AB64>X64,AB64-X64,0)","v":{"$error":"#VALUE!"}},{"$error":"#VALUE!"},0,0,0,{"$error":"#VALUE!"}]
[null,"","","",{"$f":"IF(B65=\"Total\",SUM($E$18:E64),IF(B65=\"\",\"\",AB65))","v":""},{"$f":"IF(B65=\"Total\",SUM($F$18:F64),IF(B65=\"\",\"\",Y65))","v":""},{"$f":"IF(B65=\"Total\",SUM($G$18:G64),IF(B65=\"\",\"\",X65))","v":""},{"$f":"IF(B65=\"Total\",\"\",IF(B65=\"\",\"\",Z66))","v":""},null,null,null,null,null,null,null,"","","1900-01-01",{"$f":"IF(Q64=VALUE($Q$10),0,IF(Q64=\"Total\",0,IF(Q64=\"\",0,DATE(YEAR(S64),MONTH(S64)+1,Input!W$3))))","v":"00:00:00"},0,{"$error":"#VALUE!"},{"$error":"#VALUE!"},0,0,{"$error":"#VALUE!"},"",0," ",{"$f":"IF(AB65>X65,AB65-X65,0)","v":{"$error":"#VALUE!"}},{"$error":"#VALUE!"},0,0,0,{"$error":"#VALUE!"}]
[null,"","","",{"$f":"IF(B66=\"Total\",SUM($E$18:E65),IF(B66=\"\",\"\",AB66))","v":""},{"$f":"IF(B66=\"Total\",SUM($F$18:F65),IF(B66=\"\",\"\",Y66))","v":""},{"$f":"IF(B66=\"Total\",SUM($G$18:G65),IF(B66=\"\",\"\",X66))","v":""},null,null,null,null,null,null,null,null,"xxx","","1900-01-01",null,null,{"$error":"#VALUE!"},{"$error":"#VALUE!"},{"$f":"SUM(W18:W65)","v":13.630336169999998},null,null,null,null,{"$f":"SUM(AB18:AB65)","v":370.73},{"$f":"SUM(AC18:AC65)","v":{"$error":"#VALUE!"}},null,{"$f":"SUM(AE18:AE65)","v":370.73},{"$f":"ROUND(SUM(AF18:AF65),0)","v":1500}]
[null,null,null,null,null,null,null,null,"xx",null,"xx"]